Body Name,Date Paid,Transaction Number,Amount,Supplier Name,Supplier Type,Expense Area,Cost Centre Description,Expense Type
Cambridgeshire County Council,04-May-21,51301561053,"-44,402.96",NOTTINGHAM REHAB SUPPLIES LTD,TRADE SUPPLIER,Integrated Community Equipment Service,ICES (Pool),Care & Ed Partner Organisations
Cambridgeshire County Council,04-May-21,51301563077,"-42,165.13",FORM THE FUTURE,TRADE SUPPLIER,GCP - Operations,GCP - Skills,Professional Fees and Hired Services
Cambridgeshire County Council,04-May-21,51301564498,"-8,325.00",BROOK HEALTHCARE,CARE ESTABLISHMENT,OP - City & South Blocks,City and South - Long term blocks,Residential Care
Cambridgeshire County Council,04-May-21,51301564500,"-5,550.00",FITZWILLIAM HEALTHCARE LTD,CARE ESTABLISHMENT,OP - City & South Blocks,City and South - Long term blocks,Residential Care
Cambridgeshire County Council,04-May-21,51301564500,"-5,550.00",FITZWILLIAM HEALTHCARE LTD,CARE ESTABLISHMENT,OP - City & South Blocks,City and South - Long term blocks,Residential Care
Cambridgeshire County Council,04-May-21,51301564499,"-4,995.00",BUCHAN HEALTHCARE LTD,CARE ESTABLISHMENT,OP - City & South Blocks,City and South - Long term blocks,Residential Care
Cambridgeshire County Council,04-May-21,51301564498,"-4,757.14",BROOK HEALTHCARE,CARE ESTABLISHMENT,OP - City & South Blocks,City and South - Long term blocks,Residential Care
Cambridgeshire County Council,04-May-21,51301564500,"-3,171.43",FITZWILLIAM HEALTHCARE LTD,CARE ESTABLISHMENT,OP - City & South Blocks,City and South - Long term blocks,Residential Care
Cambridgeshire County Council,04-May-21,51301564499,"-2,854.29",BUCHAN HEALTHCARE LTD,CARE ESTABLISHMENT,OP - City & South Blocks,City and South - Long term blocks,Residential Care
Cambridgeshire County Council,04-May-21,51301564510,"-1,756.50",THE FIRS (Barrels Care),CARE ESTABLISHMENT,OP - East Cambs Blocks,East Cambs � Long term Blocks,Residential Care
Cambridgeshire County Council,04-May-21,51301564510,"-1,756.50",THE FIRS (Barrels Care),CARE ESTABLISHMENT,OP - East Cambs Blocks,East Cambs � Long term Blocks,Residential Care
Cambridgeshire County Council,04-May-21,51301564510,"-1,756.50",THE FIRS (Barrels Care),CARE ESTABLISHMENT,OP - East Cambs Blocks,East Cambs � Long term Blocks,Residential Care
Cambridgeshire County Council,04-May-21,51301564510,"-1,756.50",THE FIRS (Barrels Care),CARE ESTABLISHMENT,OP - East Cambs Blocks,East Cambs � Long term Blocks,Residential Care
Cambridgeshire County Council,04-May-21,51301564510,"-1,756.50",THE FIRS (Barrels Care),CARE ESTABLISHMENT,OP - East Cambs Blocks,East Cambs � Long term Blocks,Residential Care
Cambridgeshire County Council,04-May-21,51301564510,"-1,756.50",THE FIRS (Barrels Care),CARE ESTABLISHMENT,OP - East Cambs Blocks,East Cambs � Long term Blocks,Residential Care
Cambridgeshire County Council,04-May-21,51301564521,"-1,520.82",RENTON COURT (VOYAGE),CARE ESTABLISHMENT,LD - Hunts Locality - Cost of Care,LD - Huntingdonshire - Care,Supported Living
Cambridgeshire County Council,04-May-21,51301564521,"-1,520.82",RENTON COURT (VOYAGE),CARE ESTABLISHMENT,LD - Hunts Locality - Cost of Care,LD - Huntingdonshire - Care,Supported Living
Cambridgeshire County Council,04-May-21,51301564521,"-1,520.82",RENTON COURT (VOYAGE),CARE ESTABLISHMENT,LD - Hunts Locality - Cost of Care,LD - Huntingdonshire - Care,Supported Living
Cambridgeshire County Council,04-May-21,51301564521,"-1,520.82",RENTON COURT (VOYAGE),CARE ESTABLISHMENT,LD - Hunts Locality - Cost of Care,LD - Huntingdonshire - Care,Supported Living
Cambridgeshire County Council,04-May-21,51301564521,"-1,520.82",RENTON COURT (VOYAGE),CARE ESTABLISHMENT,LD - Hunts Locality - Cost of Care,LD - Huntingdonshire - Care,Supported Living
Cambridgeshire County Council,04-May-21,51301564521,"-1,520.82",RENTON COURT (VOYAGE),CARE ESTABLISHMENT,LD - Hunts Locality - Cost of Care,LD - Huntingdonshire - Care,Supported Living
Cambridgeshire County Council,04-May-21,51301564521,"-1,520.82",RENTON COURT (VOYAGE),CARE ESTABLISHMENT,LD - Hunts Locality - Cost of Care,LD - Huntingdonshire - Care,Supported Living
Cambridgeshire County Council,04-May-21,51301564521,"-1,520.82",RENTON COURT (VOYAGE),CARE ESTABLISHMENT,LD - Hunts Locality - Cost of Care,LD - Huntingdonshire - Care,Supported Living
Cambridgeshire County Council,04-May-21,51301564521,"-1,520.82",RENTON COURT (VOYAGE),CARE ESTABLISHMENT,LD - Hunts Locality - Cost of Care,LD - Huntingdonshire - Care,Supported Living
Cambridgeshire County Council,04-May-21,51301564521,"-1,520.82",RENTON COURT (VOYAGE),CARE ESTABLISHMENT,LD - Hunts Locality - Cost of Care,LD - Huntingdonshire - Care,Supported Living
Cambridgeshire County Council,04-May-21,51301564521,"-1,520.82",RENTON COURT (VOYAGE),CARE ESTABLISHMENT,LD - Hunts Locality - Cost of Care,LD - Huntingdonshire - Care,Supported Living
Cambridgeshire County Council,04-May-21,51301564521,"-1,520.82",RENTON COURT (VOYAGE),CARE ESTABLISHMENT,LD - Hunts Locality - Cost of Care,LD - Huntingdonshire - Care,Supported Living
Cambridgeshire County Council,04-May-21,51301564521,"-1,520.82",RENTON COURT (VOYAGE),CARE ESTABLISHMENT,LD - Hunts Locality - Cost of Care,LD - Huntingdonshire - Care,Supported Living
Cambridgeshire County Council,04-May-21,51301564521,"-1,520.82",RENTON COURT (VOYAGE),CARE ESTABLISHMENT,LD - Hunts Locality - Cost of Care,LD - Huntingdonshire - Care,Supported Living
Cambridgeshire County Council,04-May-21,51301564521,"-1,520.82",RENTON COURT (VOYAGE),CARE ESTABLISHMENT,LD - Hunts Locality - Cost of Care,LD - Huntingdonshire - Care,Supported Living
Cambridgeshire County Council,04-May-21,51301564521,"-1,520.82",RENTON COURT (VOYAGE),CARE ESTABLISHMENT,LD - Hunts Locality - Cost of Care,LD - Huntingdonshire - Care,Supported Living
Cambridgeshire County Council,04-May-21,51301564521,"-1,520.82",RENTON COURT (VOYAGE),CARE ESTABLISHMENT,LD - Hunts Locality - Cost of Care,LD - Huntingdonshire - Care,Supported Living
Cambridgeshire County Council,04-May-21,51301564521,"-1,520.82",RENTON COURT (VOYAGE),CARE ESTABLISHMENT,LD - Hunts Locality - Cost of Care,LD - Huntingdonshire - Care,Supported Living
Cambridgeshire County Council,04-May-21,51301564521,"-1,520.82",RENTON COURT (VOYAGE),CARE ESTABLISHMENT,LD - Hunts Locality - Cost of Care,LD - Huntingdonshire - Care,Supported Living
Cambridgeshire County Council,04-May-21,51301564521,"-1,520.82",RENTON COURT (VOYAGE),CARE ESTABLISHMENT,LD - Hunts Locality - Cost of Care,LD - Huntingdonshire - Care,Supported Living
Cambridgeshire County Council,04-May-21,51301564521,"-1,520.82",RENTON COURT (VOYAGE),CARE ESTABLISHMENT,LD - Hunts Locality - Cost of Care,LD - Huntingdonshire - Care,Supported Living
Cambridgeshire County Council,04-May-21,51301564521,"-1,520.82",RENTON COURT (VOYAGE),CARE ESTABLISHMENT,LD - Hunts Locality - Cost of Care,LD - Huntingdonshire - Care,Supported Living
Cambridgeshire County Council,04-May-21,51301564521,"-1,520.82",RENTON COURT (VOYAGE),CARE ESTABLISHMENT,LD - Hunts Locality - Cost of Care,LD - Huntingdonshire - Care,Supported Living
Cambridgeshire County Council,04-May-21,51301564521,"-1,520.82",RENTON COURT (VOYAGE),CARE ESTABLISHMENT,LD - Hunts Locality - Cost of Care,LD - Huntingdonshire - Care,Supported Living
Cambridgeshire County Council,04-May-21,51301564521,"-1,520.82",RENTON COURT (VOYAGE),CARE ESTABLISHMENT,LD - Hunts Locality - Cost of Care,LD - Huntingdonshire - Care,Supported Living
Cambridgeshire County Council,04-May-21,51301564521,"-1,520.82",RENTON COURT (VOYAGE),CARE ESTABLISHMENT,LD - Hunts Locality - Cost of Care,LD - Huntingdonshire - Care,Supported Living
Cambridgeshire County Council,04-May-21,51301564521,"-1,520.82",RENTON COURT (VOYAGE),CARE ESTABLISHMENT,LD - Hunts Locality - Cost of Care,LD - Huntingdonshire - Care,Supported Living
Cambridgeshire County Council,04-May-21,51301564521,"-1,520.82",RENTON COURT (VOYAGE),CARE ESTABLISHMENT,LD - Hunts Locality - Cost of Care,LD - Huntingdonshire - Care,Supported Living
Cambridgeshire County Council,04-May-21,51301564521,"-1,520.82",RENTON COURT (VOYAGE),CARE ESTABLISHMENT,LD - Hunts Locality - Cost of Care,LD - Huntingdonshire - Care,Supported Living
Cambridgeshire County Council,04-May-21,51301564521,"-1,520.82",RENTON COURT (VOYAGE),CARE ESTABLISHMENT,LD - Hunts Locality - Cost of Care,LD - Huntingdonshire - Care,Supported Living
Cambridgeshire County Council,04-May-21,51301564521,"-1,520.82",RENTON COURT (VOYAGE),CARE ESTABLISHMENT,LD - Hunts Locality - Cost of Care,LD - Huntingdonshire - Care,Supported Living
Cambridgeshire County Council,04-May-21,51301564521,"-1,520.82",RENTON COURT (VOYAGE),CARE ESTABLISHMENT,LD - Hunts Locality - Cost of Care,LD - Huntingdonshire - Care,Supported Living
Cambridgeshire County Council,04-May-21,51301564521,"-1,520.82",RENTON COURT (VOYAGE),CARE ESTABLISHMENT,LD - Hunts Locality - Cost of Care,LD - Huntingdonshire - Care,Supported Living
Cambridgeshire County Council,04-May-21,51301564521,"-1,520.82",RENTON COURT (VOYAGE),CARE ESTABLISHMENT,LD - Hunts Locality - Cost of Care,LD - Huntingdonshire - Care,Supported Living
Cambridgeshire County Council,04-May-21,51301564521,"-1,520.82",RENTON COURT (VOYAGE),CARE ESTABLISHMENT,LD - Hunts Locality - Cost of Care,LD - Huntingdonshire - Care,Supported Living
Cambridgeshire County Council,04-May-21,51301564521,"-1,520.82",RENTON COURT (VOYAGE),CARE ESTABLISHMENT,LD - Hunts Locality - Cost of Care,LD - Huntingdonshire - Care,Supported Living
Cambridgeshire County Council,04-May-21,51301564521,"-1,520.82",RENTON COURT (VOYAGE),CARE ESTABLISHMENT,LD - Hunts Locality - Cost of Care,LD - Huntingdonshire - Care,Supported Living
Cambridgeshire County Council,04-May-21,51301564521,"-1,520.82",RENTON COURT (VOYAGE),CARE ESTABLISHMENT,LD - Hunts Locality - Cost of Care,LD - Huntingdonshire - Care,Supported Living
Cambridgeshire County Council,04-May-21,51301564521,"-1,520.82",RENTON COURT (VOYAGE),CARE ESTABLISHMENT,LD - Hunts Locality - Cost of Care,LD - Huntingdonshire - Care,Supported Living
Cambridgeshire County Council,04-May-21,51301564521,"-1,520.82",RENTON COURT (VOYAGE),CARE ESTABLISHMENT,LD - Hunts Locality - Cost of Care,LD - Huntingdonshire - Care,Supported Living
Cambridgeshire County Council,04-May-21,51301564521,"-1,520.82",RENTON COURT (VOYAGE),CARE ESTABLISHMENT,LD - Hunts Locality - Cost of Care,LD - Huntingdonshire - Care,Supported Living
Cambridgeshire County Council,04-May-21,51301564521,"-1,520.82",RENTON COURT (VOYAGE),CARE ESTABLISHMENT,LD - Hunts Locality - Cost of Care,LD - Huntingdonshire - Care,Supported Living
Cambridgeshire County Council,04-May-21,51301564521,"-1,520.82",RENTON COURT (VOYAGE),CARE ESTABLISHMENT,LD - Hunts Locality - Cost of Care,LD - Huntingdonshire - Care,Supported Living
Cambridgeshire County Council,04-May-21,51301564521,"-1,520.82",RENTON COURT (VOYAGE),CARE ESTABLISHMENT,LD - Hunts Locality - Cost of Care,LD - Huntingdonshire - Care,Supported Living
Cambridgeshire County Council,04-May-21,51301564521,"-1,520.82",RENTON COURT (VOYAGE),CARE ESTABLISHMENT,LD - Hunts Locality - Cost of Care,LD - Huntingdonshire - Care,Supported Living
Cambridgeshire County Council,04-May-21,51301564521,"-1,520.82",RENTON COURT (VOYAGE),CARE ESTABLISHMENT,LD - Hunts Locality - Cost of Care,LD - Huntingdonshire - Care,Supported Living
Cambridgeshire County Council,04-May-21,51301564521,"-1,520.82",RENTON COURT (VOYAGE),CARE ESTABLISHMENT,LD - Hunts Locality - Cost of Care,LD - Huntingdonshire - Care,Supported Living
Cambridgeshire County Council,04-May-21,51301564521,"-1,520.82",RENTON COURT (VOYAGE),CARE ESTABLISHMENT,LD - Hunts Locality - Cost of Care,LD - Huntingdonshire - Care,Supported Living
Cambridgeshire County Council,04-May-21,51301564521,"-1,520.82",RENTON COURT (VOYAGE),CARE ESTABLISHMENT,LD - Hunts Locality - Cost of Care,LD - Huntingdonshire - Care,Supported Living
Cambridgeshire County Council,04-May-21,51301564521,"-1,520.82",RENTON COURT (VOYAGE),CARE ESTABLISHMENT,LD - Hunts Locality - Cost of Care,LD - Huntingdonshire - Care,Supported Living
Cambridgeshire County Council,04-May-21,51301564521,"-1,520.82",RENTON COURT (VOYAGE),CARE ESTABLISHMENT,LD - Hunts Locality - Cost of Care,LD - Huntingdonshire - Care,Supported Living
Cambridgeshire County Council,04-May-21,51301564521,"-1,520.82",RENTON COURT (VOYAGE),CARE ESTABLISHMENT,LD - Hunts Locality - Cost of Care,LD - Huntingdonshire - Care,Supported Living
Cambridgeshire County Council,04-May-21,51301564521,"-1,520.82",RENTON COURT (VOYAGE),CARE ESTABLISHMENT,LD - Hunts Locality - Cost of Care,LD - Huntingdonshire - Care,Supported Living
Cambridgeshire County Council,04-May-21,51301564521,"-1,520.82",RENTON COURT (VOYAGE),CARE ESTABLISHMENT,LD - Hunts Locality - Cost of Care,LD - Huntingdonshire - Care,Supported Living
Cambridgeshire County Council,04-May-21,51301564521,"-1,520.82",RENTON COURT (VOYAGE),CARE ESTABLISHMENT,LD - Hunts Locality - Cost of Care,LD - Huntingdonshire - Care,Supported Living
Cambridgeshire County Council,04-May-21,51301564506,"-1,430.00",THE GABLES SPECIALIST NURSING HOME,CARE ESTABLISHMENT,OP - Fenland Blocks,Fenland - Long term blocks,Nursing Care
Cambridgeshire County Council,04-May-21,51301564506,"-1,430.00",THE GABLES SPECIALIST NURSING HOME,CARE ESTABLISHMENT,OP - Fenland Blocks,Fenland - Long term blocks,Nursing Care
Cambridgeshire County Council,04-May-21,51301564506,"-1,430.00",THE GABLES SPECIALIST NURSING HOME,CARE ESTABLISHMENT,OP - Fenland Blocks,Fenland - Long term blocks,Nursing Care
Cambridgeshire County Council,04-May-21,51301564502,"-1,364.82",BROOK HEALTHCARE,CARE ESTABLISHMENT,OP - City & South Blocks,City and South - Long term blocks,Residential Care
Cambridgeshire County Council,04-May-21,51301564516,"-1,331.97",RENTON COURT (VOYAGE),CARE ESTABLISHMENT,LD - Hunts Locality - Cost of Care,LD - Huntingdonshire - Care,Supported Living
Cambridgeshire County Council,04-May-21,51301564516,"-1,331.97",RENTON COURT (VOYAGE),CARE ESTABLISHMENT,LD - Hunts Locality - Cost of Care,LD - Huntingdonshire - Care,Supported Living
Cambridgeshire County Council,04-May-21,51301564516,"-1,331.97",RENTON COURT (VOYAGE),CARE ESTABLISHMENT,LD - Hunts Locality - Cost of Care,LD - Huntingdonshire - Care,Supported Living
Cambridgeshire County Council,04-May-21,51301564516,"-1,331.97",RENTON COURT (VOYAGE),CARE ESTABLISHMENT,LD - Hunts Locality - Cost of Care,LD - Huntingdonshire - Care,Supported Living
Cambridgeshire County Council,04-May-21,51301564516,"-1,331.97",RENTON COURT (VOYAGE),CARE ESTABLISHMENT,LD - Hunts Locality - Cost of Care,LD - Huntingdonshire - Care,Supported Living
Cambridgeshire County Council,04-May-21,51301564516,"-1,331.97",RENTON COURT (VOYAGE),CARE ESTABLISHMENT,LD - Hunts Locality - Cost of Care,LD - Huntingdonshire - Care,Supported Living
Cambridgeshire County Council,04-May-21,51301564516,"-1,331.97",RENTON COURT (VOYAGE),CARE ESTABLISHMENT,LD - Hunts Locality - Cost of Care,LD - Huntingdonshire - Care,Supported Living
Cambridgeshire County Council,04-May-21,51301564516,"-1,331.97",RENTON COURT (VOYAGE),CARE ESTABLISHMENT,LD - Hunts Locality - Cost of Care,LD - Huntingdonshire - Care,Supported Living
Cambridgeshire County Council,04-May-21,51301564516,"-1,331.97",RENTON COURT (VOYAGE),CARE ESTABLISHMENT,LD - Hunts Locality - Cost of Care,LD - Huntingdonshire - Care,Supported Living
Cambridgeshire County Council,04-May-21,51301564516,"-1,331.97",RENTON COURT (VOYAGE),CARE ESTABLISHMENT,LD - Hunts Locality - Cost of Care,LD - Huntingdonshire - Care,Supported Living
Cambridgeshire County Council,04-May-21,51301564516,"-1,331.97",RENTON COURT (VOYAGE),CARE ESTABLISHMENT,LD - Hunts Locality - Cost of Care,LD - Huntingdonshire - Care,Supported Living
Cambridgeshire County Council,04-May-21,51301564516,"-1,331.97",RENTON COURT (VOYAGE),CARE ESTABLISHMENT,LD - Hunts Locality - Cost of Care,LD - Huntingdonshire - Care,Supported Living
Cambridgeshire County Council,04-May-21,51301564516,"-1,331.97",RENTON COURT (VOYAGE),CARE ESTABLISHMENT,LD - Hunts Locality - Cost of Care,LD - Huntingdonshire - Care,Supported Living
Cambridgeshire County Council,04-May-21,51301564516,"-1,331.97",RENTON COURT (VOYAGE),CARE ESTABLISHMENT,LD - Hunts Locality - Cost of Care,LD - Huntingdonshire - Care,Supported Living
Cambridgeshire County Council,04-May-21,51301564516,"-1,331.97",RENTON COURT (VOYAGE),CARE ESTABLISHMENT,LD - Hunts Locality - Cost of Care,LD - Huntingdonshire - Care,Supported Living
Cambridgeshire County Council,04-May-21,51301564516,"-1,331.97",RENTON COURT (VOYAGE),CARE ESTABLISHMENT,LD - Hunts Locality - Cost of Care,LD - Huntingdonshire - Care,Supported Living
Cambridgeshire County Council,04-May-21,51301564516,"-1,331.97",RENTON COURT (VOYAGE),CARE ESTABLISHMENT,LD - Hunts Locality - Cost of Care,LD - Huntingdonshire - Care,Supported Living
Cambridgeshire County Council,04-May-21,51301564516,"-1,331.97",RENTON COURT (VOYAGE),CARE ESTABLISHMENT,LD - Hunts Locality - Cost of Care,LD - Huntingdonshire - Care,Supported Living
Cambridgeshire County Council,04-May-21,51301564516,"-1,331.97",RENTON COURT (VOYAGE),CARE ESTABLISHMENT,LD - Hunts Locality - Cost of Care,LD - Huntingdonshire - Care,Supported Living
Cambridgeshire County Council,04-May-21,51301564523,"-1,328.65",23 LIONS CROSS (VOYAGE),CARE ESTABLISHMENT,LD - Hunts Locality - Cost of Care,LD - Huntingdonshire - Special Needs,Supported Living
Cambridgeshire County Council,04-May-21,51301564523,"-1,328.65",23 LIONS CROSS (VOYAGE),CARE ESTABLISHMENT,LD - Hunts Locality - Cost of Care,LD - Huntingdonshire - Special Needs,Supported Living
Cambridgeshire County Council,04-May-21,51301564523,"-1,328.65",23 LIONS CROSS (VOYAGE),CARE ESTABLISHMENT,LD - Hunts Locality - Cost of Care,LD - Huntingdonshire - Special Needs,Supported Living
Cambridgeshire County Council,04-May-21,51301564523,"-1,328.65",23 LIONS CROSS (VOYAGE),CARE ESTABLISHMENT,LD - Hunts Locality - Cost of Care,LD - Huntingdonshire - Special Needs,Supported Living
Cambridgeshire County Council,04-May-21,51301564523,"-1,328.65",23 LIONS CROSS (VOYAGE),CARE ESTABLISHMENT,LD - Hunts Locality - Cost of Care,LD - Huntingdonshire - Special Needs,Supported Living
Cambridgeshire County Council,04-May-21,51301564523,"-1,328.65",23 LIONS CROSS (VOYAGE),CARE ESTABLISHMENT,LD - Hunts Locality - Cost of Care,LD - Huntingdonshire - Special Needs,Supported Living
Cambridgeshire County Council,04-May-21,51301564523,"-1,328.65",23 LIONS CROSS (VOYAGE),CARE ESTABLISHMENT,LD - Hunts Locality - Cost of Care,LD - Huntingdonshire - Special Needs,Supported Living
Cambridgeshire County Council,04-May-21,51301564523,"-1,328.65",23 LIONS CROSS (VOYAGE),CARE ESTABLISHMENT,LD - Hunts Locality - Cost of Care,LD - Huntingdonshire - Special Needs,Supported Living
Cambridgeshire County Council,04-May-21,51301564523,"-1,328.65",23 LIONS CROSS (VOYAGE),CARE ESTABLISHMENT,LD - Hunts Locality - Cost of Care,LD - Huntingdonshire - Special Needs,Supported Living
Cambridgeshire County Council,04-May-21,51301564523,"-1,328.65",23 LIONS CROSS (VOYAGE),CARE ESTABLISHMENT,LD - Hunts Locality - Cost of Care,LD - Huntingdonshire - Special Needs,Supported Living
Cambridgeshire County Council,04-May-21,51301564523,"-1,328.65",23 LIONS CROSS (VOYAGE),CARE ESTABLISHMENT,LD - Hunts Locality - Cost of Care,LD - Huntingdonshire - Special Needs,Supported Living
Cambridgeshire County Council,04-May-21,51301564523,"-1,328.65",23 LIONS CROSS (VOYAGE),CARE ESTABLISHMENT,LD - Hunts Locality - Cost of Care,LD - Huntingdonshire - Special Needs,Supported Living
Cambridgeshire County Council,04-May-21,51301564523,"-1,328.65",23 LIONS CROSS (VOYAGE),CARE ESTABLISHMENT,LD - Hunts Locality - Cost of Care,LD - Huntingdonshire - Special Needs,Supported Living
Cambridgeshire County Council,04-May-21,51301564523,"-1,328.65",23 LIONS CROSS (VOYAGE),CARE ESTABLISHMENT,LD - Hunts Locality - Cost of Care,LD - Huntingdonshire - Special Needs,Supported Living
Cambridgeshire County Council,04-May-21,51301564523,"-1,328.65",23 LIONS CROSS (VOYAGE),CARE ESTABLISHMENT,LD - Hunts Locality - Cost of Care,LD - Huntingdonshire - Special Needs,Supported Living
Cambridgeshire County Council,04-May-21,51301564523,"-1,328.65",23 LIONS CROSS (VOYAGE),CARE ESTABLISHMENT,LD - Hunts Locality - Cost of Care,LD - Huntingdonshire - Special Needs,Supported Living
Cambridgeshire County Council,04-May-21,51301564523,"-1,328.65",23 LIONS CROSS (VOYAGE),CARE ESTABLISHMENT,LD - Hunts Locality - Cost of Care,LD - Huntingdonshire - Special Needs,Supported Living
Cambridgeshire County Council,04-May-21,51301564523,"-1,328.65",23 LIONS CROSS (VOYAGE),CARE ESTABLISHMENT,LD - Hunts Locality - Cost of Care,LD - Huntingdonshire - Special Needs,Supported Living
Cambridgeshire County Council,04-May-21,51301564523,"-1,328.65",23 LIONS CROSS (VOYAGE),CARE ESTABLISHMENT,LD - Hunts Locality - Cost of Care,LD - Huntingdonshire - Special Needs,Supported Living
Cambridgeshire County Council,04-May-21,51301564523,"-1,328.65",23 LIONS CROSS (VOYAGE),CARE ESTABLISHMENT,LD - Hunts Locality - Cost of Care,LD - Huntingdonshire - Special Needs,Supported Living
Cambridgeshire County Council,04-May-21,51301564523,"-1,328.65",23 LIONS CROSS (VOYAGE),CARE ESTABLISHMENT,LD - Hunts Locality - Cost of Care,LD - Huntingdonshire - Special Needs,Supported Living
Cambridgeshire County Council,04-May-21,51301564523,"-1,328.65",23 LIONS CROSS (VOYAGE),CARE ESTABLISHMENT,LD - Hunts Locality - Cost of Care,LD - Huntingdonshire - Special Needs,Supported Living
Cambridgeshire County Council,04-May-21,51301564523,"-1,328.65",23 LIONS CROSS (VOYAGE),CARE ESTABLISHMENT,LD - Hunts Locality - Cost of Care,LD - Huntingdonshire - Special Needs,Supported Living
Cambridgeshire County Council,04-May-21,51301564523,"-1,328.65",23 LIONS CROSS (VOYAGE),CARE ESTABLISHMENT,LD - Hunts Locality - Cost of Care,LD - Huntingdonshire - Special Needs,Supported Living
Cambridgeshire County Council,04-May-21,51301564523,"-1,328.65",23 LIONS CROSS (VOYAGE),CARE ESTABLISHMENT,LD - Hunts Locality - Cost of Care,LD - Huntingdonshire - Special Needs,Supported Living
Cambridgeshire County Council,04-May-21,51301564523,"-1,328.65",23 LIONS CROSS (VOYAGE),CARE ESTABLISHMENT,LD - Hunts Locality - Cost of Care,LD - Huntingdonshire - Special Needs,Supported Living
Cambridgeshire County Council,04-May-21,51301564523,"-1,328.65",23 LIONS CROSS (VOYAGE),CARE ESTABLISHMENT,LD - Hunts Locality - Cost of Care,LD - Huntingdonshire - Special Needs,Supported Living
Cambridgeshire County Council,04-May-21,51301564523,"-1,328.65",23 LIONS CROSS (VOYAGE),CARE ESTABLISHMENT,LD - Hunts Locality - Cost of Care,LD - Huntingdonshire - Special Needs,Supported Living
Cambridgeshire County Council,04-May-21,51301564523,"-1,328.65",23 LIONS CROSS (VOYAGE),CARE ESTABLISHMENT,LD - Hunts Locality - Cost of Care,LD - Huntingdonshire - Special Needs,Supported Living
Cambridgeshire County Council,04-May-21,51301564523,"-1,328.65",23 LIONS CROSS (VOYAGE),CARE ESTABLISHMENT,LD - Hunts Locality - Cost of Care,LD - Huntingdonshire - Special Needs,Supported Living
Cambridgeshire County Council,04-May-21,51301564523,"-1,328.65",23 LIONS CROSS (VOYAGE),CARE ESTABLISHMENT,LD - Hunts Locality - Cost of Care,LD - Huntingdonshire - Special Needs,Supported Living
Cambridgeshire County Council,04-May-21,51301564523,"-1,328.65",23 LIONS CROSS (VOYAGE),CARE ESTABLISHMENT,LD - Hunts Locality - Cost of Care,LD - Huntingdonshire - Special Needs,Supported Living
Cambridgeshire County Council,04-May-21,51301564523,"-1,328.65",23 LIONS CROSS (VOYAGE),CARE ESTABLISHMENT,LD - Hunts Locality - Cost of Care,LD - Huntingdonshire - Special Needs,Supported Living
Cambridgeshire County Council,04-May-21,51301564523,"-1,328.65",23 LIONS CROSS (VOYAGE),CARE ESTABLISHMENT,LD - Hunts Locality - Cost of Care,LD - Huntingdonshire - Special Needs,Supported Living
Cambridgeshire County Council,04-May-21,51301564523,"-1,328.65",23 LIONS CROSS (VOYAGE),CARE ESTABLISHMENT,LD - Hunts Locality - Cost of Care,LD - Huntingdonshire - Special Needs,Supported Living
Cambridgeshire County Council,04-May-21,51301564523,"-1,328.65",23 LIONS CROSS (VOYAGE),CARE ESTABLISHMENT,LD - Hunts Locality - Cost of Care,LD - Huntingdonshire - Special Needs,Supported Living
Cambridgeshire County Council,04-May-21,51301564523,"-1,328.65",23 LIONS CROSS (VOYAGE),CARE ESTABLISHMENT,LD - Hunts Locality - Cost of Care,LD - Huntingdonshire - Special Needs,Supported Living
Cambridgeshire County Council,04-May-21,51301564523,"-1,328.65",23 LIONS CROSS (VOYAGE),CARE ESTABLISHMENT,LD - Hunts Locality - Cost of Care,LD - Huntingdonshire - Special Needs,Supported Living
Cambridgeshire County Council,04-May-21,51301564523,"-1,328.65",23 LIONS CROSS (VOYAGE),CARE ESTABLISHMENT,LD - Hunts Locality - Cost of Care,LD - Huntingdonshire - Special Needs,Supported Living
Cambridgeshire County Council,04-May-21,51301564523,"-1,328.65",23 LIONS CROSS (VOYAGE),CARE ESTABLISHMENT,LD - Hunts Locality - Cost of Care,LD - Huntingdonshire - Special Needs,Supported Living
Cambridgeshire County Council,04-May-21,51301564523,"-1,328.65",23 LIONS CROSS (VOYAGE),CARE ESTABLISHMENT,LD - Hunts Locality - Cost of Care,LD - Huntingdonshire - Special Needs,Supported Living
Cambridgeshire County Council,04-May-21,51301564523,"-1,328.65",23 LIONS CROSS (VOYAGE),CARE ESTABLISHMENT,LD - Hunts Locality - Cost of Care,LD - Huntingdonshire - Special Needs,Supported Living
Cambridgeshire County Council,04-May-21,51301564523,"-1,328.65",23 LIONS CROSS (VOYAGE),CARE ESTABLISHMENT,LD - Hunts Locality - Cost of Care,LD - Huntingdonshire - Special Needs,Supported Living
Cambridgeshire County Council,04-May-21,51301564523,"-1,328.65",23 LIONS CROSS (VOYAGE),CARE ESTABLISHMENT,LD - Hunts Locality - Cost of Care,LD - Huntingdonshire - Special Needs,Supported Living
Cambridgeshire County Council,04-May-21,51301564523,"-1,328.65",23 LIONS CROSS (VOYAGE),CARE ESTABLISHMENT,LD - Hunts Locality - Cost of Care,LD - Huntingdonshire - Special Needs,Supported Living
Cambridgeshire County Council,04-May-21,51301564523,"-1,328.65",23 LIONS CROSS (VOYAGE),CARE ESTABLISHMENT,LD - Hunts Locality - Cost of Care,LD - Huntingdonshire - Special Needs,Supported Living
Cambridgeshire County Council,04-May-21,51301564523,"-1,328.65",23 LIONS CROSS (VOYAGE),CARE ESTABLISHMENT,LD - Hunts Locality - Cost of Care,LD - Huntingdonshire - Special Needs,Supported Living
Cambridgeshire County Council,04-May-21,51301564523,"-1,328.65",23 LIONS CROSS (VOYAGE),CARE ESTABLISHMENT,LD - Hunts Locality - Cost of Care,LD - Huntingdonshire - Special Needs,Supported Living
Cambridgeshire County Council,04-May-21,51301564523,"-1,328.65",23 LIONS CROSS (VOYAGE),CARE ESTABLISHMENT,LD - Hunts Locality - Cost of Care,LD - Huntingdonshire - Special Needs,Supported Living
Cambridgeshire County Council,04-May-21,51301564523,"-1,328.65",23 LIONS CROSS (VOYAGE),CARE ESTABLISHMENT,LD - Hunts Locality - Cost of Care,LD - Huntingdonshire - Special Needs,Supported Living
Cambridgeshire County Council,04-May-21,51301564523,"-1,328.65",23 LIONS CROSS (VOYAGE),CARE ESTABLISHMENT,LD - Hunts Locality - Cost of Care,LD - Huntingdonshire - Special Needs,Supported Living
Cambridgeshire County Council,04-May-21,51301564523,"-1,328.65",23 LIONS CROSS (VOYAGE),CARE ESTABLISHMENT,LD - Hunts Locality - Cost of Care,LD - Huntingdonshire - Special Needs,Supported Living
Cambridgeshire County Council,04-May-21,51301564523,"-1,328.65",23 LIONS CROSS (VOYAGE),CARE ESTABLISHMENT,LD - Hunts Locality - Cost of Care,LD - Huntingdonshire - Special Needs,Supported Living
Cambridgeshire County Council,04-May-21,51301564523,"-1,328.65",23 LIONS CROSS (VOYAGE),CARE ESTABLISHMENT,LD - Hunts Locality - Cost of Care,LD - Huntingdonshire - Special Needs,Supported Living
Cambridgeshire County Council,04-May-21,51301564523,"-1,328.65",23 LIONS CROSS (VOYAGE),CARE ESTABLISHMENT,LD - Hunts Locality - Cost of Care,LD - Huntingdonshire - Special Needs,Supported Living
Cambridgeshire County Council,04-May-21,51301564528,"-1,328.04",2 CHEVERIL LANE (VOYAGE),CARE ESTABLISHMENT,LD - Hunts Locality - Cost of Care,LD - Huntingdonshire - Care,Supported Living
Cambridgeshire County Council,04-May-21,51301564528,"-1,328.04",2 CHEVERIL LANE (VOYAGE),CARE ESTABLISHMENT,LD - Hunts Locality - Cost of Care,LD - Huntingdonshire - Care,Supported Living
Cambridgeshire County Council,04-May-21,51301564528,"-1,328.04",2 CHEVERIL LANE (VOYAGE),CARE ESTABLISHMENT,LD - Hunts Locality - Cost of Care,LD - Huntingdonshire - Care,Supported Living
Cambridgeshire County Council,04-May-21,51301564528,"-1,328.04",2 CHEVERIL LANE (VOYAGE),CARE ESTABLISHMENT,LD - Hunts Locality - Cost of Care,LD - Huntingdonshire - Care,Supported Living
Cambridgeshire County Council,04-May-21,51301564528,"-1,328.04",2 CHEVERIL LANE (VOYAGE),CARE ESTABLISHMENT,LD - Hunts Locality - Cost of Care,LD - Huntingdonshire - Care,Supported Living
Cambridgeshire County Council,04-May-21,51301564528,"-1,328.04",2 CHEVERIL LANE (VOYAGE),CARE ESTABLISHMENT,LD - Hunts Locality - Cost of Care,LD - Huntingdonshire - Care,Supported Living
Cambridgeshire County Council,04-May-21,51301564528,"-1,328.04",2 CHEVERIL LANE (VOYAGE),CARE ESTABLISHMENT,LD - Hunts Locality - Cost of Care,LD - Huntingdonshire - Care,Supported Living
Cambridgeshire County Council,04-May-21,51301564528,"-1,328.04",2 CHEVERIL LANE (VOYAGE),CARE ESTABLISHMENT,LD - Hunts Locality - Cost of Care,LD - Huntingdonshire - Care,Supported Living
Cambridgeshire County Council,04-May-21,51301564528,"-1,328.04",2 CHEVERIL LANE (VOYAGE),CARE ESTABLISHMENT,LD - Hunts Locality - Cost of Care,LD - Huntingdonshire - Care,Supported Living
Cambridgeshire County Council,04-May-21,51301564528,"-1,328.04",2 CHEVERIL LANE (VOYAGE),CARE ESTABLISHMENT,LD - Hunts Locality - Cost of Care,LD - Huntingdonshire - Care,Supported Living
Cambridgeshire County Council,04-May-21,51301564528,"-1,328.04",2 CHEVERIL LANE (VOYAGE),CARE ESTABLISHMENT,LD - Hunts Locality - Cost of Care,LD - Huntingdonshire - Care,Supported Living
Cambridgeshire County Council,04-May-21,51301564528,"-1,328.04",2 CHEVERIL LANE (VOYAGE),CARE ESTABLISHMENT,LD - Hunts Locality - Cost of Care,LD - Huntingdonshire - Care,Supported Living
Cambridgeshire County Council,04-May-21,51301564528,"-1,328.04",2 CHEVERIL LANE (VOYAGE),CARE ESTABLISHMENT,LD - Hunts Locality - Cost of Care,LD - Huntingdonshire - Care,Supported Living
Cambridgeshire County Council,04-May-21,51301564528,"-1,328.04",2 CHEVERIL LANE (VOYAGE),CARE ESTABLISHMENT,LD - Hunts Locality - Cost of Care,LD - Huntingdonshire - Care,Supported Living
Cambridgeshire County Council,04-May-21,51301564528,"-1,328.04",2 CHEVERIL LANE (VOYAGE),CARE ESTABLISHMENT,LD - Hunts Locality - Cost of Care,LD - Huntingdonshire - Care,Supported Living
Cambridgeshire County Council,04-May-21,51301564528,"-1,328.04",2 CHEVERIL LANE (VOYAGE),CARE ESTABLISHMENT,LD - Hunts Locality - Cost of Care,LD - Huntingdonshire - Care,Supported Living
Cambridgeshire County Council,04-May-21,51301564528,"-1,328.04",2 CHEVERIL LANE (VOYAGE),CARE ESTABLISHMENT,LD - Hunts Locality - Cost of Care,LD - Huntingdonshire - Care,Supported Living
Cambridgeshire County Council,04-May-21,51301564528,"-1,328.04",2 CHEVERIL LANE (VOYAGE),CARE ESTABLISHMENT,LD - Hunts Locality - Cost of Care,LD - Huntingdonshire - Care,Supported Living
Cambridgeshire County Council,04-May-21,51301564528,"-1,328.04",2 CHEVERIL LANE (VOYAGE),CARE ESTABLISHMENT,LD - Hunts Locality - Cost of Care,LD - Huntingdonshire - Care,Supported Living
Cambridgeshire County Council,04-May-21,51301564528,"-1,328.04",2 CHEVERIL LANE (VOYAGE),CARE ESTABLISHMENT,LD - Hunts Locality - Cost of Care,LD - Huntingdonshire - Care,Supported Living
Cambridgeshire County Council,04-May-21,51301564528,"-1,328.04",2 CHEVERIL LANE (VOYAGE),CARE ESTABLISHMENT,LD - Hunts Locality - Cost of Care,LD - Huntingdonshire - Care,Supported Living
Cambridgeshire County Council,04-May-21,51301564528,"-1,328.04",2 CHEVERIL LANE (VOYAGE),CARE ESTABLISHMENT,LD - Hunts Locality - Cost of Care,LD - Huntingdonshire - Care,Supported Living
Cambridgeshire County Council,04-May-21,51301564528,"-1,328.04",2 CHEVERIL LANE (VOYAGE),CARE ESTABLISHMENT,LD - Hunts Locality - Cost of Care,LD - Huntingdonshire - Care,Supported Living
Cambridgeshire County Council,04-May-21,51301564528,"-1,328.04",2 CHEVERIL LANE (VOYAGE),CARE ESTABLISHMENT,LD - Hunts Locality - Cost of Care,LD - Huntingdonshire - Care,Supported Living
Cambridgeshire County Council,04-May-21,51301564528,"-1,328.04",2 CHEVERIL LANE (VOYAGE),CARE ESTABLISHMENT,LD - Hunts Locality - Cost of Care,LD - Huntingdonshire - Care,Supported Living
Cambridgeshire County Council,04-May-21,51301564528,"-1,328.04",2 CHEVERIL LANE (VOYAGE),CARE ESTABLISHMENT,LD - Hunts Locality - Cost of Care,LD - Huntingdonshire - Care,Supported Living
Cambridgeshire County Council,04-May-21,51301564528,"-1,328.04",2 CHEVERIL LANE (VOYAGE),CARE ESTABLISHMENT,LD - Hunts Locality - Cost of Care,LD - Huntingdonshire - Care,Supported Living
Cambridgeshire County Council,04-May-21,51301564528,"-1,328.04",2 CHEVERIL LANE (VOYAGE),CARE ESTABLISHMENT,LD - Hunts Locality - Cost of Care,LD - Huntingdonshire - Care,Supported Living
Cambridgeshire County Council,04-May-21,51301564528,"-1,328.04",2 CHEVERIL LANE (VOYAGE),CARE ESTABLISHMENT,LD - Hunts Locality - Cost of Care,LD - Huntingdonshire - Care,Supported Living
Cambridgeshire County Council,04-May-21,51301564528,"-1,328.04",2 CHEVERIL LANE (VOYAGE),CARE ESTABLISHMENT,LD - Hunts Locality - Cost of Care,LD - Huntingdonshire - Care,Supported Living
Cambridgeshire County Council,04-May-21,51301564528,"-1,328.04",2 CHEVERIL LANE (VOYAGE),CARE ESTABLISHMENT,LD - Hunts Locality - Cost of Care,LD - Huntingdonshire - Care,Supported Living
Cambridgeshire County Council,04-May-21,51301564528,"-1,328.04",2 CHEVERIL LANE (VOYAGE),CARE ESTABLISHMENT,LD - Hunts Locality - Cost of Care,LD - Huntingdonshire - Care,Supported Living
Cambridgeshire County Council,04-May-21,51301564528,"-1,328.04",2 CHEVERIL LANE (VOYAGE),CARE ESTABLISHMENT,LD - Hunts Locality - Cost of Care,LD - Huntingdonshire - Care,Supported Living
Cambridgeshire County Council,04-May-21,51301564528,"-1,328.04",2 CHEVERIL LANE (VOYAGE),CARE ESTABLISHMENT,LD - Hunts Locality - Cost of Care,LD - Huntingdonshire - Care,Supported Living
Cambridgeshire County Council,04-May-21,51301564528,"-1,328.04",2 CHEVERIL LANE (VOYAGE),CARE ESTABLISHMENT,LD - Hunts Locality - Cost of Care,LD - Huntingdonshire - Care,Supported Living
Cambridgeshire County Council,04-May-21,51301564528,"-1,328.04",2 CHEVERIL LANE (VOYAGE),CARE ESTABLISHMENT,LD - Hunts Locality - Cost of Care,LD - Huntingdonshire - Care,Supported Living
Cambridgeshire County Council,04-May-21,51301564528,"-1,328.04",2 CHEVERIL LANE (VOYAGE),CARE ESTABLISHMENT,LD - Hunts Locality - Cost of Care,LD - Huntingdonshire - Care,Supported Living
Cambridgeshire County Council,04-May-21,51301564528,"-1,328.04",2 CHEVERIL LANE (VOYAGE),CARE ESTABLISHMENT,LD - Hunts Locality - Cost of Care,LD - Huntingdonshire - Care,Supported Living
Cambridgeshire County Council,04-May-21,51301564528,"-1,328.04",2 CHEVERIL LANE (VOYAGE),CARE ESTABLISHMENT,LD - Hunts Locality - Cost of Care,LD - Huntingdonshire - Care,Supported Living
Cambridgeshire County Council,04-May-21,51301564528,"-1,328.04",2 CHEVERIL LANE (VOYAGE),CARE ESTABLISHMENT,LD - Hunts Locality - Cost of Care,LD - Huntingdonshire - Care,Supported Living
Cambridgeshire County Council,04-May-21,51301564528,"-1,328.04",2 CHEVERIL LANE (VOYAGE),CARE ESTABLISHMENT,LD - Hunts Locality - Cost of Care,LD - Huntingdonshire - Care,Supported Living
Cambridgeshire County Council,04-May-21,51301564528,"-1,328.04",2 CHEVERIL LANE (VOYAGE),CARE ESTABLISHMENT,LD - Hunts Locality - Cost of Care,LD - Huntingdonshire - Care,Supported Living
Cambridgeshire County Council,04-May-21,51301564528,"-1,328.04",2 CHEVERIL LANE (VOYAGE),CARE ESTABLISHMENT,LD - Hunts Locality - Cost of Care,LD - Huntingdonshire - Care,Supported Living
Cambridgeshire County Council,04-May-21,51301564528,"-1,328.04",2 CHEVERIL LANE (VOYAGE),CARE ESTABLISHMENT,LD - Hunts Locality - Cost of Care,LD - Huntingdonshire - Care,Supported Living
Cambridgeshire County Council,04-May-21,51301564528,"-1,328.04",2 CHEVERIL LANE (VOYAGE),CARE ESTABLISHMENT,LD - Hunts Locality - Cost of Care,LD - Huntingdonshire - Care,Supported Living
Cambridgeshire County Council,04-May-21,51301564528,"-1,328.04",2 CHEVERIL LANE (VOYAGE),CARE ESTABLISHMENT,LD - Hunts Locality - Cost of Care,LD - Huntingdonshire - Care,Supported Living
Cambridgeshire County Council,04-May-21,51301564528,"-1,328.04",2 CHEVERIL LANE (VOYAGE),CARE ESTABLISHMENT,LD - Hunts Locality - Cost of Care,LD - Huntingdonshire - Care,Supported Living
Cambridgeshire County Council,04-May-21,51301564528,"-1,328.04",2 CHEVERIL LANE (VOYAGE),CARE ESTABLISHMENT,LD - Hunts Locality - Cost of Care,LD - Huntingdonshire - Care,Supported Living
Cambridgeshire County Council,04-May-21,51301564528,"-1,328.04",2 CHEVERIL LANE (VOYAGE),CARE ESTABLISHMENT,LD - Hunts Locality - Cost of Care,LD - Huntingdonshire - Care,Supported Living
Cambridgeshire County Council,04-May-21,51301564528,"-1,328.04",2 CHEVERIL LANE (VOYAGE),CARE ESTABLISHMENT,LD - Hunts Locality - Cost of Care,LD - Huntingdonshire - Care,Supported Living
Cambridgeshire County Council,04-May-21,51301564528,"-1,328.04",2 CHEVERIL LANE (VOYAGE),CARE ESTABLISHMENT,LD - Hunts Locality - Cost of Care,LD - Huntingdonshire - Care,Supported Living
Cambridgeshire County Council,04-May-21,51301564528,"-1,328.04",2 CHEVERIL LANE (VOYAGE),CARE ESTABLISHMENT,LD - Hunts Locality - Cost of Care,LD - Huntingdonshire - Care,Supported Living
Cambridgeshire County Council,04-May-21,51301564528,"-1,328.04",2 CHEVERIL LANE (VOYAGE),CARE ESTABLISHMENT,LD - Hunts Locality - Cost of Care,LD - Huntingdonshire - Care,Supported Living
Cambridgeshire County Council,04-May-21,51301564528,"-1,328.04",2 CHEVERIL LANE (VOYAGE),CARE ESTABLISHMENT,LD - Hunts Locality - Cost of Care,LD - Huntingdonshire - Care,Supported Living
Cambridgeshire County Council,04-May-21,51301564528,"-1,328.04",2 CHEVERIL LANE (VOYAGE),CARE ESTABLISHMENT,LD - Hunts Locality - Cost of Care,LD - Huntingdonshire - Care,Supported Living
Cambridgeshire County Council,04-May-21,51301564520,"-1,325.36",RENTON COURT (VOYAGE),CARE ESTABLISHMENT,LD - Hunts Locality - Cost of Care,LD - Huntingdonshire - Care,Supported Living
Cambridgeshire County Council,04-May-21,51301564520,"-1,325.36",RENTON COURT (VOYAGE),CARE ESTABLISHMENT,LD - Hunts Locality - Cost of Care,LD - Huntingdonshire - Care,Supported Living
Cambridgeshire County Council,04-May-21,51301564520,"-1,325.36",RENTON COURT (VOYAGE),CARE ESTABLISHMENT,LD - Hunts Locality - Cost of Care,LD - Huntingdonshire - Care,Supported Living
Cambridgeshire County Council,04-May-21,51301564520,"-1,325.36",RENTON COURT (VOYAGE),CARE ESTABLISHMENT,LD - Hunts Locality - Cost of Care,LD - Huntingdonshire - Care,Supported Living
Cambridgeshire County Council,04-May-21,51301564520,"-1,325.36",RENTON COURT (VOYAGE),CARE ESTABLISHMENT,LD - Hunts Locality - Cost of Care,LD - Huntingdonshire - Care,Supported Living
Cambridgeshire County Council,04-May-21,51301564520,"-1,325.36",RENTON COURT (VOYAGE),CARE ESTABLISHMENT,LD - Hunts Locality - Cost of Care,LD - Huntingdonshire - Care,Supported Living
Cambridgeshire County Council,04-May-21,51301564520,"-1,325.36",RENTON COURT (VOYAGE),CARE ESTABLISHMENT,LD - Hunts Locality - Cost of Care,LD - Huntingdonshire - Care,Supported Living
Cambridgeshire County Council,04-May-21,51301564520,"-1,325.36",RENTON COURT (VOYAGE),CARE ESTABLISHMENT,LD - Hunts Locality - Cost of Care,LD - Huntingdonshire - Care,Supported Living
Cambridgeshire County Council,04-May-21,51301564520,"-1,325.36",RENTON COURT (VOYAGE),CARE ESTABLISHMENT,LD - Hunts Locality - Cost of Care,LD - Huntingdonshire - Care,Supported Living
Cambridgeshire County Council,04-May-21,51301564520,"-1,325.36",RENTON COURT (VOYAGE),CARE ESTABLISHMENT,LD - Hunts Locality - Cost of Care,LD - Huntingdonshire - Care,Supported Living
Cambridgeshire County Council,04-May-21,51301564520,"-1,325.36",RENTON COURT (VOYAGE),CARE ESTABLISHMENT,LD - Hunts Locality - Cost of Care,LD - Huntingdonshire - Care,Supported Living
Cambridgeshire County Council,04-May-21,51301564520,"-1,325.36",RENTON COURT (VOYAGE),CARE ESTABLISHMENT,LD - Hunts Locality - Cost of Care,LD - Huntingdonshire - Care,Supported Living
Cambridgeshire County Council,04-May-21,51301564520,"-1,325.36",RENTON COURT (VOYAGE),CARE ESTABLISHMENT,LD - Hunts Locality - Cost of Care,LD - Huntingdonshire - Care,Supported Living
Cambridgeshire County Council,04-May-21,51301564520,"-1,325.36",RENTON COURT (VOYAGE),CARE ESTABLISHMENT,LD - Hunts Locality - Cost of Care,LD - Huntingdonshire - Care,Supported Living
Cambridgeshire County Council,04-May-21,51301564520,"-1,325.36",RENTON COURT (VOYAGE),CARE ESTABLISHMENT,LD - Hunts Locality - Cost of Care,LD - Huntingdonshire - Care,Supported Living
Cambridgeshire County Council,04-May-21,51301564520,"-1,325.36",RENTON COURT (VOYAGE),CARE ESTABLISHMENT,LD - Hunts Locality - Cost of Care,LD - Huntingdonshire - Care,Supported Living
Cambridgeshire County Council,04-May-21,51301564520,"-1,325.36",RENTON COURT (VOYAGE),CARE ESTABLISHMENT,LD - Hunts Locality - Cost of Care,LD - Huntingdonshire - Care,Supported Living
Cambridgeshire County Council,04-May-21,51301564520,"-1,325.36",RENTON COURT (VOYAGE),CARE ESTABLISHMENT,LD - Hunts Locality - Cost of Care,LD - Huntingdonshire - Care,Supported Living
Cambridgeshire County Council,04-May-21,51301564520,"-1,325.36",RENTON COURT (VOYAGE),CARE ESTABLISHMENT,LD - Hunts Locality - Cost of Care,LD - Huntingdonshire - Care,Supported Living
Cambridgeshire County Council,04-May-21,51301564520,"-1,325.36",RENTON COURT (VOYAGE),CARE ESTABLISHMENT,LD - Hunts Locality - Cost of Care,LD - Huntingdonshire - Care,Supported Living
Cambridgeshire County Council,04-May-21,51301564520,"-1,325.36",RENTON COURT (VOYAGE),CARE ESTABLISHMENT,LD - Hunts Locality - Cost of Care,LD - Huntingdonshire - Care,Supported Living
Cambridgeshire County Council,04-May-21,51301564520,"-1,325.36",RENTON COURT (VOYAGE),CARE ESTABLISHMENT,LD - Hunts Locality - Cost of Care,LD - Huntingdonshire - Care,Supported Living
Cambridgeshire County Council,04-May-21,51301564520,"-1,325.36",RENTON COURT (VOYAGE),CARE ESTABLISHMENT,LD - Hunts Locality - Cost of Care,LD - Huntingdonshire - Care,Supported Living
Cambridgeshire County Council,04-May-21,51301564520,"-1,325.36",RENTON COURT (VOYAGE),CARE ESTABLISHMENT,LD - Hunts Locality - Cost of Care,LD - Huntingdonshire - Care,Supported Living
Cambridgeshire County Council,04-May-21,51301564520,"-1,325.36",RENTON COURT (VOYAGE),CARE ESTABLISHMENT,LD - Hunts Locality - Cost of Care,LD - Huntingdonshire - Care,Supported Living
Cambridgeshire County Council,04-May-21,51301564520,"-1,325.36",RENTON COURT (VOYAGE),CARE ESTABLISHMENT,LD - Hunts Locality - Cost of Care,LD - Huntingdonshire - Care,Supported Living
Cambridgeshire County Council,04-May-21,51301564520,"-1,325.36",RENTON COURT (VOYAGE),CARE ESTABLISHMENT,LD - Hunts Locality - Cost of Care,LD - Huntingdonshire - Care,Supported Living
Cambridgeshire County Council,04-May-21,51301564520,"-1,325.36",RENTON COURT (VOYAGE),CARE ESTABLISHMENT,LD - Hunts Locality - Cost of Care,LD - Huntingdonshire - Care,Supported Living
Cambridgeshire County Council,04-May-21,51301564520,"-1,325.36",RENTON COURT (VOYAGE),CARE ESTABLISHMENT,LD - Hunts Locality - Cost of Care,LD - Huntingdonshire - Care,Supported Living
Cambridgeshire County Council,04-May-21,51301564520,"-1,325.36",RENTON COURT (VOYAGE),CARE ESTABLISHMENT,LD - Hunts Locality - Cost of Care,LD - Huntingdonshire - Care,Supported Living
Cambridgeshire County Council,04-May-21,51301564520,"-1,325.36",RENTON COURT (VOYAGE),CARE ESTABLISHMENT,LD - Hunts Locality - Cost of Care,LD - Huntingdonshire - Care,Supported Living
Cambridgeshire County Council,04-May-21,51301564520,"-1,325.36",RENTON COURT (VOYAGE),CARE ESTABLISHMENT,LD - Hunts Locality - Cost of Care,LD - Huntingdonshire - Care,Supported Living
Cambridgeshire County Council,04-May-21,51301564520,"-1,325.36",RENTON COURT (VOYAGE),CARE ESTABLISHMENT,LD - Hunts Locality - Cost of Care,LD - Huntingdonshire - Care,Supported Living
Cambridgeshire County Council,04-May-21,51301564520,"-1,325.36",RENTON COURT (VOYAGE),CARE ESTABLISHMENT,LD - Hunts Locality - Cost of Care,LD - Huntingdonshire - Care,Supported Living
Cambridgeshire County Council,04-May-21,51301564520,"-1,325.36",RENTON COURT (VOYAGE),CARE ESTABLISHMENT,LD - Hunts Locality - Cost of Care,LD - Huntingdonshire - Care,Supported Living
Cambridgeshire County Council,04-May-21,51301564520,"-1,325.36",RENTON COURT (VOYAGE),CARE ESTABLISHMENT,LD - Hunts Locality - Cost of Care,LD - Huntingdonshire - Care,Supported Living
Cambridgeshire County Council,04-May-21,51301564520,"-1,325.36",RENTON COURT (VOYAGE),CARE ESTABLISHMENT,LD - Hunts Locality - Cost of Care,LD - Huntingdonshire - Care,Supported Living
Cambridgeshire County Council,04-May-21,51301564520,"-1,325.36",RENTON COURT (VOYAGE),CARE ESTABLISHMENT,LD - Hunts Locality - Cost of Care,LD - Huntingdonshire - Care,Supported Living
Cambridgeshire County Council,04-May-21,51301564520,"-1,325.36",RENTON COURT (VOYAGE),CARE ESTABLISHMENT,LD - Hunts Locality - Cost of Care,LD - Huntingdonshire - Care,Supported Living
Cambridgeshire County Council,04-May-21,51301564520,"-1,325.36",RENTON COURT (VOYAGE),CARE ESTABLISHMENT,LD - Hunts Locality - Cost of Care,LD - Huntingdonshire - Care,Supported Living
Cambridgeshire County Council,04-May-21,51301564520,"-1,325.36",RENTON COURT (VOYAGE),CARE ESTABLISHMENT,LD - Hunts Locality - Cost of Care,LD - Huntingdonshire - Care,Supported Living
Cambridgeshire County Council,04-May-21,51301564520,"-1,325.36",RENTON COURT (VOYAGE),CARE ESTABLISHMENT,LD - Hunts Locality - Cost of Care,LD - Huntingdonshire - Care,Supported Living
Cambridgeshire County Council,04-May-21,51301564520,"-1,325.36",RENTON COURT (VOYAGE),CARE ESTABLISHMENT,LD - Hunts Locality - Cost of Care,LD - Huntingdonshire - Care,Supported Living
Cambridgeshire County Council,04-May-21,51301564520,"-1,325.36",RENTON COURT (VOYAGE),CARE ESTABLISHMENT,LD - Hunts Locality - Cost of Care,LD - Huntingdonshire - Care,Supported Living
Cambridgeshire County Council,04-May-21,51301564520,"-1,325.36",RENTON COURT (VOYAGE),CARE ESTABLISHMENT,LD - Hunts Locality - Cost of Care,LD - Huntingdonshire - Care,Supported Living
Cambridgeshire County Council,04-May-21,51301564520,"-1,325.36",RENTON COURT (VOYAGE),CARE ESTABLISHMENT,LD - Hunts Locality - Cost of Care,LD - Huntingdonshire - Care,Supported Living
Cambridgeshire County Council,04-May-21,51301564520,"-1,325.36",RENTON COURT (VOYAGE),CARE ESTABLISHMENT,LD - Hunts Locality - Cost of Care,LD - Huntingdonshire - Care,Supported Living
Cambridgeshire County Council,04-May-21,51301564520,"-1,325.36",RENTON COURT (VOYAGE),CARE ESTABLISHMENT,LD - Hunts Locality - Cost of Care,LD - Huntingdonshire - Care,Supported Living
Cambridgeshire County Council,04-May-21,51301564520,"-1,325.36",RENTON COURT (VOYAGE),CARE ESTABLISHMENT,LD - Hunts Locality - Cost of Care,LD - Huntingdonshire - Care,Supported Living
Cambridgeshire County Council,04-May-21,51301564520,"-1,325.36",RENTON COURT (VOYAGE),CARE ESTABLISHMENT,LD - Hunts Locality - Cost of Care,LD - Huntingdonshire - Care,Supported Living
Cambridgeshire County Council,04-May-21,51301564520,"-1,325.36",RENTON COURT (VOYAGE),CARE ESTABLISHMENT,LD - Hunts Locality - Cost of Care,LD - Huntingdonshire - Care,Supported Living
Cambridgeshire County Council,04-May-21,51301564520,"-1,325.36",RENTON COURT (VOYAGE),CARE ESTABLISHMENT,LD - Hunts Locality - Cost of Care,LD - Huntingdonshire - Care,Supported Living
Cambridgeshire County Council,04-May-21,51301564520,"-1,325.36",RENTON COURT (VOYAGE),CARE ESTABLISHMENT,LD - Hunts Locality - Cost of Care,LD - Huntingdonshire - Care,Supported Living
Cambridgeshire County Council,04-May-21,51301564520,"-1,325.36",RENTON COURT (VOYAGE),CARE ESTABLISHMENT,LD - Hunts Locality - Cost of Care,LD - Huntingdonshire - Care,Supported Living
Cambridgeshire County Council,04-May-21,51301564520,"-1,325.36",RENTON COURT (VOYAGE),CARE ESTABLISHMENT,LD - Hunts Locality - Cost of Care,LD - Huntingdonshire - Care,Supported Living
Cambridgeshire County Council,04-May-21,51301564533,"-1,296.20",23 LIONS CROSS (VOYAGE),CARE ESTABLISHMENT,LD - Hunts Locality - Cost of Care,LD - Huntingdonshire - Care,Supported Living
Cambridgeshire County Council,04-May-21,51301564533,"-1,296.20",23 LIONS CROSS (VOYAGE),CARE ESTABLISHMENT,LD - Hunts Locality - Cost of Care,LD - Huntingdonshire - Care,Supported Living
Cambridgeshire County Council,04-May-21,51301564533,"-1,296.20",23 LIONS CROSS (VOYAGE),CARE ESTABLISHMENT,LD - Hunts Locality - Cost of Care,LD - Huntingdonshire - Care,Supported Living
Cambridgeshire County Council,04-May-21,51301564533,"-1,296.20",23 LIONS CROSS (VOYAGE),CARE ESTABLISHMENT,LD - Hunts Locality - Cost of Care,LD - Huntingdonshire - Care,Supported Living
Cambridgeshire County Council,04-May-21,51301564533,"-1,296.20",23 LIONS CROSS (VOYAGE),CARE ESTABLISHMENT,LD - Hunts Locality - Cost of Care,LD - Huntingdonshire - Care,Supported Living
Cambridgeshire County Council,04-May-21,51301564533,"-1,296.20",23 LIONS CROSS (VOYAGE),CARE ESTABLISHMENT,LD - Hunts Locality - Cost of Care,LD - Huntingdonshire - Care,Supported Living
Cambridgeshire County Council,04-May-21,51301564533,"-1,296.20",23 LIONS CROSS (VOYAGE),CARE ESTABLISHMENT,LD - Hunts Locality - Cost of Care,LD - Huntingdonshire - Care,Supported Living
Cambridgeshire County Council,04-May-21,51301564533,"-1,296.20",23 LIONS CROSS (VOYAGE),CARE ESTABLISHMENT,LD - Hunts Locality - Cost of Care,LD - Huntingdonshire - Care,Supported Living
Cambridgeshire County Council,04-May-21,51301564533,"-1,296.20",23 LIONS CROSS (VOYAGE),CARE ESTABLISHMENT,LD - Hunts Locality - Cost of Care,LD - Huntingdonshire - Care,Supported Living
Cambridgeshire County Council,04-May-21,51301564533,"-1,296.20",23 LIONS CROSS (VOYAGE),CARE ESTABLISHMENT,LD - Hunts Locality - Cost of Care,LD - Huntingdonshire - Care,Supported Living
Cambridgeshire County Council,04-May-21,51301564533,"-1,296.20",23 LIONS CROSS (VOYAGE),CARE ESTABLISHMENT,LD - Hunts Locality - Cost of Care,LD - Huntingdonshire - Care,Supported Living
Cambridgeshire County Council,04-May-21,51301564533,"-1,296.20",23 LIONS CROSS (VOYAGE),CARE ESTABLISHMENT,LD - Hunts Locality - Cost of Care,LD - Huntingdonshire - Care,Supported Living
Cambridgeshire County Council,04-May-21,51301564533,"-1,296.20",23 LIONS CROSS (VOYAGE),CARE ESTABLISHMENT,LD - Hunts Locality - Cost of Care,LD - Huntingdonshire - Care,Supported Living
Cambridgeshire County Council,04-May-21,51301564533,"-1,296.20",23 LIONS CROSS (VOYAGE),CARE ESTABLISHMENT,LD - Hunts Locality - Cost of Care,LD - Huntingdonshire - Care,Supported Living
Cambridgeshire County Council,04-May-21,51301564533,"-1,296.20",23 LIONS CROSS (VOYAGE),CARE ESTABLISHMENT,LD - Hunts Locality - Cost of Care,LD - Huntingdonshire - Care,Supported Living
Cambridgeshire County Council,04-May-21,51301564533,"-1,296.20",23 LIONS CROSS (VOYAGE),CARE ESTABLISHMENT,LD - Hunts Locality - Cost of Care,LD - Huntingdonshire - Care,Supported Living
Cambridgeshire County Council,04-May-21,51301564533,"-1,296.20",23 LIONS CROSS (VOYAGE),CARE ESTABLISHMENT,LD - Hunts Locality - Cost of Care,LD - Huntingdonshire - Care,Supported Living
Cambridgeshire County Council,04-May-21,51301564533,"-1,296.20",23 LIONS CROSS (VOYAGE),CARE ESTABLISHMENT,LD - Hunts Locality - Cost of Care,LD - Huntingdonshire - Care,Supported Living
Cambridgeshire County Council,04-May-21,51301564533,"-1,296.20",23 LIONS CROSS (VOYAGE),CARE ESTABLISHMENT,LD - Hunts Locality - Cost of Care,LD - Huntingdonshire - Care,Supported Living
Cambridgeshire County Council,04-May-21,51301564533,"-1,296.20",23 LIONS CROSS (VOYAGE),CARE ESTABLISHMENT,LD - Hunts Locality - Cost of Care,LD - Huntingdonshire - Care,Supported Living
Cambridgeshire County Council,04-May-21,51301564533,"-1,296.20",23 LIONS CROSS (VOYAGE),CARE ESTABLISHMENT,LD - Hunts Locality - Cost of Care,LD - Huntingdonshire - Care,Supported Living
Cambridgeshire County Council,04-May-21,51301564533,"-1,296.20",23 LIONS CROSS (VOYAGE),CARE ESTABLISHMENT,LD - Hunts Locality - Cost of Care,LD - Huntingdonshire - Care,Supported Living
Cambridgeshire County Council,04-May-21,51301564533,"-1,296.20",23 LIONS CROSS (VOYAGE),CARE ESTABLISHMENT,LD - Hunts Locality - Cost of Care,LD - Huntingdonshire - Care,Supported Living
Cambridgeshire County Council,04-May-21,51301564533,"-1,296.20",23 LIONS CROSS (VOYAGE),CARE ESTABLISHMENT,LD - Hunts Locality - Cost of Care,LD - Huntingdonshire - Care,Supported Living
Cambridgeshire County Council,04-May-21,51301564533,"-1,296.20",23 LIONS CROSS (VOYAGE),CARE ESTABLISHMENT,LD - Hunts Locality - Cost of Care,LD - Huntingdonshire - Care,Supported Living
Cambridgeshire County Council,04-May-21,51301564533,"-1,296.20",23 LIONS CROSS (VOYAGE),CARE ESTABLISHMENT,LD - Hunts Locality - Cost of Care,LD - Huntingdonshire - Care,Supported Living
Cambridgeshire County Council,04-May-21,51301564533,"-1,296.20",23 LIONS CROSS (VOYAGE),CARE ESTABLISHMENT,LD - Hunts Locality - Cost of Care,LD - Huntingdonshire - Care,Supported Living
Cambridgeshire County Council,04-May-21,51301564533,"-1,296.20",23 LIONS CROSS (VOYAGE),CARE ESTABLISHMENT,LD - Hunts Locality - Cost of Care,LD - Huntingdonshire - Care,Supported Living
Cambridgeshire County Council,04-May-21,51301564533,"-1,296.20",23 LIONS CROSS (VOYAGE),CARE ESTABLISHMENT,LD - Hunts Locality - Cost of Care,LD - Huntingdonshire - Care,Supported Living
Cambridgeshire County Council,04-May-21,51301564533,"-1,296.20",23 LIONS CROSS (VOYAGE),CARE ESTABLISHMENT,LD - Hunts Locality - Cost of Care,LD - Huntingdonshire - Care,Supported Living
Cambridgeshire County Council,04-May-21,51301564533,"-1,296.20",23 LIONS CROSS (VOYAGE),CARE ESTABLISHMENT,LD - Hunts Locality - Cost of Care,LD - Huntingdonshire - Care,Supported Living
Cambridgeshire County Council,04-May-21,51301564533,"-1,296.20",23 LIONS CROSS (VOYAGE),CARE ESTABLISHMENT,LD - Hunts Locality - Cost of Care,LD - Huntingdonshire - Care,Supported Living
Cambridgeshire County Council,04-May-21,51301564533,"-1,296.20",23 LIONS CROSS (VOYAGE),CARE ESTABLISHMENT,LD - Hunts Locality - Cost of Care,LD - Huntingdonshire - Care,Supported Living
Cambridgeshire County Council,04-May-21,51301564533,"-1,296.20",23 LIONS CROSS (VOYAGE),CARE ESTABLISHMENT,LD - Hunts Locality - Cost of Care,LD - Huntingdonshire - Care,Supported Living
Cambridgeshire County Council,04-May-21,51301564533,"-1,296.20",23 LIONS CROSS (VOYAGE),CARE ESTABLISHMENT,LD - Hunts Locality - Cost of Care,LD - Huntingdonshire - Care,Supported Living
Cambridgeshire County Council,04-May-21,51301564533,"-1,296.20",23 LIONS CROSS (VOYAGE),CARE ESTABLISHMENT,LD - Hunts Locality - Cost of Care,LD - Huntingdonshire - Care,Supported Living
Cambridgeshire County Council,04-May-21,51301564533,"-1,296.20",23 LIONS CROSS (VOYAGE),CARE ESTABLISHMENT,LD - Hunts Locality - Cost of Care,LD - Huntingdonshire - Care,Supported Living
Cambridgeshire County Council,04-May-21,51301564533,"-1,296.20",23 LIONS CROSS (VOYAGE),CARE ESTABLISHMENT,LD - Hunts Locality - Cost of Care,LD - Huntingdonshire - Care,Supported Living
Cambridgeshire County Council,04-May-21,51301564533,"-1,296.20",23 LIONS CROSS (VOYAGE),CARE ESTABLISHMENT,LD - Hunts Locality - Cost of Care,LD - Huntingdonshire - Care,Supported Living
Cambridgeshire County Council,04-May-21,51301564533,"-1,296.20",23 LIONS CROSS (VOYAGE),CARE ESTABLISHMENT,LD - Hunts Locality - Cost of Care,LD - Huntingdonshire - Care,Supported Living
Cambridgeshire County Council,04-May-21,51301564533,"-1,296.20",23 LIONS CROSS (VOYAGE),CARE ESTABLISHMENT,LD - Hunts Locality - Cost of Care,LD - Huntingdonshire - Care,Supported Living
Cambridgeshire County Council,04-May-21,51301564533,"-1,296.20",23 LIONS CROSS (VOYAGE),CARE ESTABLISHMENT,LD - Hunts Locality - Cost of Care,LD - Huntingdonshire - Care,Supported Living
Cambridgeshire County Council,04-May-21,51301564533,"-1,296.20",23 LIONS CROSS (VOYAGE),CARE ESTABLISHMENT,LD - Hunts Locality - Cost of Care,LD - Huntingdonshire - Care,Supported Living
Cambridgeshire County Council,04-May-21,51301564533,"-1,296.20",23 LIONS CROSS (VOYAGE),CARE ESTABLISHMENT,LD - Hunts Locality - Cost of Care,LD - Huntingdonshire - Care,Supported Living
Cambridgeshire County Council,04-May-21,51301564533,"-1,296.20",23 LIONS CROSS (VOYAGE),CARE ESTABLISHMENT,LD - Hunts Locality - Cost of Care,LD - Huntingdonshire - Care,Supported Living
Cambridgeshire County Council,04-May-21,51301564533,"-1,296.20",23 LIONS CROSS (VOYAGE),CARE ESTABLISHMENT,LD - Hunts Locality - Cost of Care,LD - Huntingdonshire - Care,Supported Living
Cambridgeshire County Council,04-May-21,51301564533,"-1,296.20",23 LIONS CROSS (VOYAGE),CARE ESTABLISHMENT,LD - Hunts Locality - Cost of Care,LD - Huntingdonshire - Care,Supported Living
Cambridgeshire County Council,04-May-21,51301564533,"-1,296.20",23 LIONS CROSS (VOYAGE),CARE ESTABLISHMENT,LD - Hunts Locality - Cost of Care,LD - Huntingdonshire - Care,Supported Living
Cambridgeshire County Council,04-May-21,51301564533,"-1,296.20",23 LIONS CROSS (VOYAGE),CARE ESTABLISHMENT,LD - Hunts Locality - Cost of Care,LD - Huntingdonshire - Care,Supported Living
Cambridgeshire County Council,04-May-21,51301564533,"-1,296.20",23 LIONS CROSS (VOYAGE),CARE ESTABLISHMENT,LD - Hunts Locality - Cost of Care,LD - Huntingdonshire - Care,Supported Living
Cambridgeshire County Council,04-May-21,51301564533,"-1,296.20",23 LIONS CROSS (VOYAGE),CARE ESTABLISHMENT,LD - Hunts Locality - Cost of Care,LD - Huntingdonshire - Care,Supported Living
Cambridgeshire County Council,04-May-21,51301564533,"-1,296.20",23 LIONS CROSS (VOYAGE),CARE ESTABLISHMENT,LD - Hunts Locality - Cost of Care,LD - Huntingdonshire - Care,Supported Living
Cambridgeshire County Council,04-May-21,51301564533,"-1,296.20",23 LIONS CROSS (VOYAGE),CARE ESTABLISHMENT,LD - Hunts Locality - Cost of Care,LD - Huntingdonshire - Care,Supported Living
Cambridgeshire County Council,04-May-21,51301564533,"-1,296.20",23 LIONS CROSS (VOYAGE),CARE ESTABLISHMENT,LD - Hunts Locality - Cost of Care,LD - Huntingdonshire - Care,Supported Living
Cambridgeshire County Council,04-May-21,51301564533,"-1,296.20",23 LIONS CROSS (VOYAGE),CARE ESTABLISHMENT,LD - Hunts Locality - Cost of Care,LD - Huntingdonshire - Care,Supported Living
Cambridgeshire County Council,04-May-21,51301564539,"-1,293.67",23 LIONS CROSS (VOYAGE),CARE ESTABLISHMENT,LD - Hunts Locality - Cost of Care,LD - Huntingdonshire - Care,Supported Living
Cambridgeshire County Council,04-May-21,51301564539,"-1,293.67",23 LIONS CROSS (VOYAGE),CARE ESTABLISHMENT,LD - Hunts Locality - Cost of Care,LD - Huntingdonshire - Care,Supported Living
Cambridgeshire County Council,04-May-21,51301564539,"-1,293.67",23 LIONS CROSS (VOYAGE),CARE ESTABLISHMENT,LD - Hunts Locality - Cost of Care,LD - Huntingdonshire - Care,Supported Living
Cambridgeshire County Council,04-May-21,51301564539,"-1,293.67",23 LIONS CROSS (VOYAGE),CARE ESTABLISHMENT,LD - Hunts Locality - Cost of Care,LD - Huntingdonshire - Care,Supported Living
Cambridgeshire County Council,04-May-21,51301564539,"-1,293.67",23 LIONS CROSS (VOYAGE),CARE ESTABLISHMENT,LD - Hunts Locality - Cost of Care,LD - Huntingdonshire - Care,Supported Living
Cambridgeshire County Council,04-May-21,51301564539,"-1,293.67",23 LIONS CROSS (VOYAGE),CARE ESTABLISHMENT,LD - Hunts Locality - Cost of Care,LD - Huntingdonshire - Care,Supported Living
Cambridgeshire County Council,04-May-21,51301564539,"-1,293.67",23 LIONS CROSS (VOYAGE),CARE ESTABLISHMENT,LD - Hunts Locality - Cost of Care,LD - Huntingdonshire - Care,Supported Living
Cambridgeshire County Council,04-May-21,51301564539,"-1,293.67",23 LIONS CROSS (VOYAGE),CARE ESTABLISHMENT,LD - Hunts Locality - Cost of Care,LD - Huntingdonshire - Care,Supported Living
Cambridgeshire County Council,04-May-21,51301564539,"-1,293.67",23 LIONS CROSS (VOYAGE),CARE ESTABLISHMENT,LD - Hunts Locality - Cost of Care,LD - Huntingdonshire - Care,Supported Living
Cambridgeshire County Council,04-May-21,51301564539,"-1,293.67",23 LIONS CROSS (VOYAGE),CARE ESTABLISHMENT,LD - Hunts Locality - Cost of Care,LD - Huntingdonshire - Care,Supported Living
Cambridgeshire County Council,04-May-21,51301564539,"-1,293.67",23 LIONS CROSS (VOYAGE),CARE ESTABLISHMENT,LD - Hunts Locality - Cost of Care,LD - Huntingdonshire - Care,Supported Living
Cambridgeshire County Council,04-May-21,51301564539,"-1,293.67",23 LIONS CROSS (VOYAGE),CARE ESTABLISHMENT,LD - Hunts Locality - Cost of Care,LD - Huntingdonshire - Care,Supported Living
Cambridgeshire County Council,04-May-21,51301564539,"-1,293.67",23 LIONS CROSS (VOYAGE),CARE ESTABLISHMENT,LD - Hunts Locality - Cost of Care,LD - Huntingdonshire - Care,Supported Living
Cambridgeshire County Council,04-May-21,51301564539,"-1,293.67",23 LIONS CROSS (VOYAGE),CARE ESTABLISHMENT,LD - Hunts Locality - Cost of Care,LD - Huntingdonshire - Care,Supported Living
Cambridgeshire County Council,04-May-21,51301564539,"-1,293.67",23 LIONS CROSS (VOYAGE),CARE ESTABLISHMENT,LD - Hunts Locality - Cost of Care,LD - Huntingdonshire - Care,Supported Living
Cambridgeshire County Council,04-May-21,51301564539,"-1,293.67",23 LIONS CROSS (VOYAGE),CARE ESTABLISHMENT,LD - Hunts Locality - Cost of Care,LD - Huntingdonshire - Care,Supported Living
Cambridgeshire County Council,04-May-21,51301564539,"-1,293.67",23 LIONS CROSS (VOYAGE),CARE ESTABLISHMENT,LD - Hunts Locality - Cost of Care,LD - Huntingdonshire - Care,Supported Living
Cambridgeshire County Council,04-May-21,51301564539,"-1,293.67",23 LIONS CROSS (VOYAGE),CARE ESTABLISHMENT,LD - Hunts Locality - Cost of Care,LD - Huntingdonshire - Care,Supported Living
Cambridgeshire County Council,04-May-21,51301564539,"-1,293.67",23 LIONS CROSS (VOYAGE),CARE ESTABLISHMENT,LD - Hunts Locality - Cost of Care,LD - Huntingdonshire - Care,Supported Living
Cambridgeshire County Council,04-May-21,51301564539,"-1,293.67",23 LIONS CROSS (VOYAGE),CARE ESTABLISHMENT,LD - Hunts Locality - Cost of Care,LD - Huntingdonshire - Care,Supported Living
Cambridgeshire County Council,04-May-21,51301564539,"-1,293.67",23 LIONS CROSS (VOYAGE),CARE ESTABLISHMENT,LD - Hunts Locality - Cost of Care,LD - Huntingdonshire - Care,Supported Living
Cambridgeshire County Council,04-May-21,51301564539,"-1,293.67",23 LIONS CROSS (VOYAGE),CARE ESTABLISHMENT,LD - Hunts Locality - Cost of Care,LD - Huntingdonshire - Care,Supported Living
Cambridgeshire County Council,04-May-21,51301564539,"-1,293.67",23 LIONS CROSS (VOYAGE),CARE ESTABLISHMENT,LD - Hunts Locality - Cost of Care,LD - Huntingdonshire - Care,Supported Living
Cambridgeshire County Council,04-May-21,51301564539,"-1,293.67",23 LIONS CROSS (VOYAGE),CARE ESTABLISHMENT,LD - Hunts Locality - Cost of Care,LD - Huntingdonshire - Care,Supported Living
Cambridgeshire County Council,04-May-21,51301564539,"-1,293.67",23 LIONS CROSS (VOYAGE),CARE ESTABLISHMENT,LD - Hunts Locality - Cost of Care,LD - Huntingdonshire - Care,Supported Living
Cambridgeshire County Council,04-May-21,51301564539,"-1,293.67",23 LIONS CROSS (VOYAGE),CARE ESTABLISHMENT,LD - Hunts Locality - Cost of Care,LD - Huntingdonshire - Care,Supported Living
Cambridgeshire County Council,04-May-21,51301564539,"-1,293.67",23 LIONS CROSS (VOYAGE),CARE ESTABLISHMENT,LD - Hunts Locality - Cost of Care,LD - Huntingdonshire - Care,Supported Living
Cambridgeshire County Council,04-May-21,51301564539,"-1,293.67",23 LIONS CROSS (VOYAGE),CARE ESTABLISHMENT,LD - Hunts Locality - Cost of Care,LD - Huntingdonshire - Care,Supported Living
Cambridgeshire County Council,04-May-21,51301564539,"-1,293.67",23 LIONS CROSS (VOYAGE),CARE ESTABLISHMENT,LD - Hunts Locality - Cost of Care,LD - Huntingdonshire - Care,Supported Living
Cambridgeshire County Council,04-May-21,51301564539,"-1,293.67",23 LIONS CROSS (VOYAGE),CARE ESTABLISHMENT,LD - Hunts Locality - Cost of Care,LD - Huntingdonshire - Care,Supported Living
Cambridgeshire County Council,04-May-21,51301564539,"-1,293.67",23 LIONS CROSS (VOYAGE),CARE ESTABLISHMENT,LD - Hunts Locality - Cost of Care,LD - Huntingdonshire - Care,Supported Living
Cambridgeshire County Council,04-May-21,51301564539,"-1,293.67",23 LIONS CROSS (VOYAGE),CARE ESTABLISHMENT,LD - Hunts Locality - Cost of Care,LD - Huntingdonshire - Care,Supported Living
Cambridgeshire County Council,04-May-21,51301564539,"-1,293.67",23 LIONS CROSS (VOYAGE),CARE ESTABLISHMENT,LD - Hunts Locality - Cost of Care,LD - Huntingdonshire - Care,Supported Living
Cambridgeshire County Council,04-May-21,51301564539,"-1,293.67",23 LIONS CROSS (VOYAGE),CARE ESTABLISHMENT,LD - Hunts Locality - Cost of Care,LD - Huntingdonshire - Care,Supported Living
Cambridgeshire County Council,04-May-21,51301564539,"-1,293.67",23 LIONS CROSS (VOYAGE),CARE ESTABLISHMENT,LD - Hunts Locality - Cost of Care,LD - Huntingdonshire - Care,Supported Living
Cambridgeshire County Council,04-May-21,51301564539,"-1,293.67",23 LIONS CROSS (VOYAGE),CARE ESTABLISHMENT,LD - Hunts Locality - Cost of Care,LD - Huntingdonshire - Care,Supported Living
Cambridgeshire County Council,04-May-21,51301564539,"-1,293.67",23 LIONS CROSS (VOYAGE),CARE ESTABLISHMENT,LD - Hunts Locality - Cost of Care,LD - Huntingdonshire - Care,Supported Living
Cambridgeshire County Council,04-May-21,51301564539,"-1,293.67",23 LIONS CROSS (VOYAGE),CARE ESTABLISHMENT,LD - Hunts Locality - Cost of Care,LD - Huntingdonshire - Care,Supported Living
Cambridgeshire County Council,04-May-21,51301564539,"-1,293.67",23 LIONS CROSS (VOYAGE),CARE ESTABLISHMENT,LD - Hunts Locality - Cost of Care,LD - Huntingdonshire - Care,Supported Living
Cambridgeshire County Council,04-May-21,51301564539,"-1,293.67",23 LIONS CROSS (VOYAGE),CARE ESTABLISHMENT,LD - Hunts Locality - Cost of Care,LD - Huntingdonshire - Care,Supported Living
Cambridgeshire County Council,04-May-21,51301564539,"-1,293.67",23 LIONS CROSS (VOYAGE),CARE ESTABLISHMENT,LD - Hunts Locality - Cost of Care,LD - Huntingdonshire - Care,Supported Living
Cambridgeshire County Council,04-May-21,51301564539,"-1,293.67",23 LIONS CROSS (VOYAGE),CARE ESTABLISHMENT,LD - Hunts Locality - Cost of Care,LD - Huntingdonshire - Care,Supported Living
Cambridgeshire County Council,04-May-21,51301564539,"-1,293.67",23 LIONS CROSS (VOYAGE),CARE ESTABLISHMENT,LD - Hunts Locality - Cost of Care,LD - Huntingdonshire - Care,Supported Living
Cambridgeshire County Council,04-May-21,51301564539,"-1,293.67",23 LIONS CROSS (VOYAGE),CARE ESTABLISHMENT,LD - Hunts Locality - Cost of Care,LD - Huntingdonshire - Care,Supported Living
Cambridgeshire County Council,04-May-21,51301564548,"-1,269.17",VOYAGE,CARE ESTABLISHMENT,LD - South Locality - Cost of Care,LD - South Cambs - Care,Domiciliary Care
Cambridgeshire County Council,04-May-21,51301564548,"-1,269.17",VOYAGE,CARE ESTABLISHMENT,LD - South Locality - Cost of Care,LD - South Cambs - Care,Domiciliary Care
Cambridgeshire County Council,04-May-21,51301564548,"-1,269.17",VOYAGE,CARE ESTABLISHMENT,LD - South Locality - Cost of Care,LD - South Cambs - Care,Domiciliary Care
Cambridgeshire County Council,04-May-21,51301564548,"-1,269.17",VOYAGE,CARE ESTABLISHMENT,LD - South Locality - Cost of Care,LD - South Cambs - Care,Domiciliary Care
Cambridgeshire County Council,04-May-21,51301564548,"-1,269.17",VOYAGE,CARE ESTABLISHMENT,LD - South Locality - Cost of Care,LD - South Cambs - Care,Domiciliary Care
Cambridgeshire County Council,04-May-21,51301564548,"-1,269.17",VOYAGE,CARE ESTABLISHMENT,LD - South Locality - Cost of Care,LD - South Cambs - Care,Domiciliary Care
Cambridgeshire County Council,04-May-21,51301564548,"-1,269.17",VOYAGE,CARE ESTABLISHMENT,LD - South Locality - Cost of Care,LD - South Cambs - Care,Domiciliary Care
Cambridgeshire County Council,04-May-21,51301564548,"-1,269.17",VOYAGE,CARE ESTABLISHMENT,LD - South Locality - Cost of Care,LD - South Cambs - Care,Domiciliary Care
Cambridgeshire County Council,04-May-21,51301564548,"-1,269.17",VOYAGE,CARE ESTABLISHMENT,LD - South Locality - Cost of Care,LD - South Cambs - Care,Domiciliary Care
Cambridgeshire County Council,04-May-21,51301564548,"-1,269.17",VOYAGE,CARE ESTABLISHMENT,LD - South Locality - Cost of Care,LD - South Cambs - Care,Domiciliary Care
Cambridgeshire County Council,04-May-21,51301564548,"-1,269.17",VOYAGE,CARE ESTABLISHMENT,LD - South Locality - Cost of Care,LD - South Cambs - Care,Domiciliary Care
Cambridgeshire County Council,04-May-21,51301564548,"-1,269.17",VOYAGE,CARE ESTABLISHMENT,LD - South Locality - Cost of Care,LD - South Cambs - Care,Domiciliary Care
Cambridgeshire County Council,04-May-21,51301564548,"-1,269.17",VOYAGE,CARE ESTABLISHMENT,LD - South Locality - Cost of Care,LD - South Cambs - Care,Domiciliary Care
Cambridgeshire County Council,04-May-21,51301564548,"-1,269.17",VOYAGE,CARE ESTABLISHMENT,LD - South Locality - Cost of Care,LD - South Cambs - Care,Domiciliary Care
Cambridgeshire County Council,04-May-21,51301564548,"-1,269.17",VOYAGE,CARE ESTABLISHMENT,LD - South Locality - Cost of Care,LD - South Cambs - Care,Domiciliary Care
Cambridgeshire County Council,04-May-21,51301564548,"-1,269.17",VOYAGE,CARE ESTABLISHMENT,LD - South Locality - Cost of Care,LD - South Cambs - Care,Domiciliary Care
Cambridgeshire County Council,04-May-21,51301564548,"-1,269.17",VOYAGE,CARE ESTABLISHMENT,LD - South Locality - Cost of Care,LD - South Cambs - Care,Domiciliary Care
Cambridgeshire County Council,04-May-21,51301564548,"-1,269.17",VOYAGE,CARE ESTABLISHMENT,LD - South Locality - Cost of Care,LD - South Cambs - Care,Domiciliary Care
Cambridgeshire County Council,04-May-21,51301564548,"-1,269.17",VOYAGE,CARE ESTABLISHMENT,LD - South Locality - Cost of Care,LD - South Cambs - Care,Domiciliary Care
Cambridgeshire County Council,04-May-21,51301564548,"-1,269.17",VOYAGE,CARE ESTABLISHMENT,LD - South Locality - Cost of Care,LD - South Cambs - Care,Domiciliary Care
Cambridgeshire County Council,04-May-21,51301564548,"-1,269.17",VOYAGE,CARE ESTABLISHMENT,LD - South Locality - Cost of Care,LD - South Cambs - Care,Domiciliary Care
Cambridgeshire County Council,04-May-21,51301564548,"-1,269.17",VOYAGE,CARE ESTABLISHMENT,LD - South Locality - Cost of Care,LD - South Cambs - Care,Domiciliary Care
Cambridgeshire County Council,04-May-21,51301564548,"-1,269.17",VOYAGE,CARE ESTABLISHMENT,LD - South Locality - Cost of Care,LD - South Cambs - Care,Domiciliary Care
Cambridgeshire County Council,04-May-21,51301564548,"-1,269.17",VOYAGE,CARE ESTABLISHMENT,LD - South Locality - Cost of Care,LD - South Cambs - Care,Domiciliary Care
Cambridgeshire County Council,04-May-21,51301564548,"-1,269.17",VOYAGE,CARE ESTABLISHMENT,LD - South Locality - Cost of Care,LD - South Cambs - Care,Domiciliary Care
Cambridgeshire County Council,04-May-21,51301564548,"-1,269.17",VOYAGE,CARE ESTABLISHMENT,LD - South Locality - Cost of Care,LD - South Cambs - Care,Domiciliary Care
Cambridgeshire County Council,04-May-21,51301564548,"-1,269.17",VOYAGE,CARE ESTABLISHMENT,LD - South Locality - Cost of Care,LD - South Cambs - Care,Domiciliary Care
Cambridgeshire County Council,04-May-21,51301564548,"-1,269.17",VOYAGE,CARE ESTABLISHMENT,LD - South Locality - Cost of Care,LD - South Cambs - Care,Domiciliary Care
Cambridgeshire County Council,04-May-21,51301564548,"-1,269.17",VOYAGE,CARE ESTABLISHMENT,LD - South Locality - Cost of Care,LD - South Cambs - Care,Domiciliary Care
Cambridgeshire County Council,04-May-21,51301564548,"-1,269.17",VOYAGE,CARE ESTABLISHMENT,LD - South Locality - Cost of Care,LD - South Cambs - Care,Domiciliary Care
Cambridgeshire County Council,04-May-21,51301564548,"-1,269.17",VOYAGE,CARE ESTABLISHMENT,LD - South Locality - Cost of Care,LD - South Cambs - Care,Domiciliary Care
Cambridgeshire County Council,04-May-21,51301564548,"-1,269.17",VOYAGE,CARE ESTABLISHMENT,LD - South Locality - Cost of Care,LD - South Cambs - Care,Domiciliary Care
Cambridgeshire County Council,04-May-21,51301564548,"-1,269.17",VOYAGE,CARE ESTABLISHMENT,LD - South Locality - Cost of Care,LD - South Cambs - Care,Domiciliary Care
Cambridgeshire County Council,04-May-21,51301564548,"-1,269.17",VOYAGE,CARE ESTABLISHMENT,LD - South Locality - Cost of Care,LD - South Cambs - Care,Domiciliary Care
Cambridgeshire County Council,04-May-21,51301564548,"-1,269.17",VOYAGE,CARE ESTABLISHMENT,LD - South Locality - Cost of Care,LD - South Cambs - Care,Domiciliary Care
Cambridgeshire County Council,04-May-21,51301564548,"-1,269.17",VOYAGE,CARE ESTABLISHMENT,LD - South Locality - Cost of Care,LD - South Cambs - Care,Domiciliary Care
Cambridgeshire County Council,04-May-21,51301564548,"-1,269.17",VOYAGE,CARE ESTABLISHMENT,LD - South Locality - Cost of Care,LD - South Cambs - Care,Domiciliary Care
Cambridgeshire County Council,04-May-21,51301564548,"-1,269.17",VOYAGE,CARE ESTABLISHMENT,LD - South Locality - Cost of Care,LD - South Cambs - Care,Domiciliary Care
Cambridgeshire County Council,04-May-21,51301564548,"-1,269.17",VOYAGE,CARE ESTABLISHMENT,LD - South Locality - Cost of Care,LD - South Cambs - Care,Domiciliary Care
Cambridgeshire County Council,04-May-21,51301564548,"-1,269.17",VOYAGE,CARE ESTABLISHMENT,LD - South Locality - Cost of Care,LD - South Cambs - Care,Domiciliary Care
Cambridgeshire County Council,04-May-21,51301564548,"-1,269.17",VOYAGE,CARE ESTABLISHMENT,LD - South Locality - Cost of Care,LD - South Cambs - Care,Domiciliary Care
Cambridgeshire County Council,04-May-21,51301564548,"-1,269.17",VOYAGE,CARE ESTABLISHMENT,LD - South Locality - Cost of Care,LD - South Cambs - Care,Domiciliary Care
Cambridgeshire County Council,04-May-21,51301564548,"-1,269.17",VOYAGE,CARE ESTABLISHMENT,LD - South Locality - Cost of Care,LD - South Cambs - Care,Domiciliary Care
Cambridgeshire County Council,04-May-21,51301564548,"-1,269.17",VOYAGE,CARE ESTABLISHMENT,LD - South Locality - Cost of Care,LD - South Cambs - Care,Domiciliary Care
Cambridgeshire County Council,04-May-21,51301564548,"-1,269.17",VOYAGE,CARE ESTABLISHMENT,LD - South Locality - Cost of Care,LD - South Cambs - Care,Domiciliary Care
Cambridgeshire County Council,04-May-21,51301564548,"-1,269.17",VOYAGE,CARE ESTABLISHMENT,LD - South Locality - Cost of Care,LD - South Cambs - Care,Domiciliary Care
Cambridgeshire County Council,04-May-21,51301564548,"-1,269.17",VOYAGE,CARE ESTABLISHMENT,LD - South Locality - Cost of Care,LD - South Cambs - Care,Domiciliary Care
Cambridgeshire County Council,04-May-21,51301564548,"-1,269.17",VOYAGE,CARE ESTABLISHMENT,LD - South Locality - Cost of Care,LD - South Cambs - Care,Domiciliary Care
Cambridgeshire County Council,04-May-21,51301564548,"-1,269.17",VOYAGE,CARE ESTABLISHMENT,LD - South Locality - Cost of Care,LD - South Cambs - Care,Domiciliary Care
Cambridgeshire County Council,04-May-21,51301564548,"-1,269.17",VOYAGE,CARE ESTABLISHMENT,LD - South Locality - Cost of Care,LD - South Cambs - Care,Domiciliary Care
Cambridgeshire County Council,04-May-21,51301564548,"-1,269.17",VOYAGE,CARE ESTABLISHMENT,LD - South Locality - Cost of Care,LD - South Cambs - Care,Domiciliary Care
Cambridgeshire County Council,04-May-21,51301564548,"-1,269.17",VOYAGE,CARE ESTABLISHMENT,LD - South Locality - Cost of Care,LD - South Cambs - Care,Domiciliary Care
Cambridgeshire County Council,04-May-21,51301564548,"-1,269.17",VOYAGE,CARE ESTABLISHMENT,LD - South Locality - Cost of Care,LD - South Cambs - Care,Domiciliary Care
Cambridgeshire County Council,04-May-21,51301564548,"-1,269.17",VOYAGE,CARE ESTABLISHMENT,LD - South Locality - Cost of Care,LD - South Cambs - Care,Domiciliary Care
Cambridgeshire County Council,04-May-21,51301564548,"-1,269.17",VOYAGE,CARE ESTABLISHMENT,LD - South Locality - Cost of Care,LD - South Cambs - Care,Domiciliary Care
Cambridgeshire County Council,04-May-21,51301564539,"-1,269.10",23 LIONS CROSS (VOYAGE),CARE ESTABLISHMENT,LD - Hunts Locality - Cost of Care,LD - Huntingdonshire - Care,Supported Living
Cambridgeshire County Council,04-May-21,51301564539,"-1,269.10",23 LIONS CROSS (VOYAGE),CARE ESTABLISHMENT,LD - Hunts Locality - Cost of Care,LD - Huntingdonshire - Care,Supported Living
Cambridgeshire County Council,04-May-21,51301564539,"-1,269.10",23 LIONS CROSS (VOYAGE),CARE ESTABLISHMENT,LD - Hunts Locality - Cost of Care,LD - Huntingdonshire - Care,Supported Living
Cambridgeshire County Council,04-May-21,51301564539,"-1,269.10",23 LIONS CROSS (VOYAGE),CARE ESTABLISHMENT,LD - Hunts Locality - Cost of Care,LD - Huntingdonshire - Care,Supported Living
Cambridgeshire County Council,04-May-21,51301564539,"-1,269.10",23 LIONS CROSS (VOYAGE),CARE ESTABLISHMENT,LD - Hunts Locality - Cost of Care,LD - Huntingdonshire - Care,Supported Living
Cambridgeshire County Council,04-May-21,51301564539,"-1,269.10",23 LIONS CROSS (VOYAGE),CARE ESTABLISHMENT,LD - Hunts Locality - Cost of Care,LD - Huntingdonshire - Care,Supported Living
Cambridgeshire County Council,04-May-21,51301564539,"-1,269.10",23 LIONS CROSS (VOYAGE),CARE ESTABLISHMENT,LD - Hunts Locality - Cost of Care,LD - Huntingdonshire - Care,Supported Living
Cambridgeshire County Council,04-May-21,51301564539,"-1,269.10",23 LIONS CROSS (VOYAGE),CARE ESTABLISHMENT,LD - Hunts Locality - Cost of Care,LD - Huntingdonshire - Care,Supported Living
Cambridgeshire County Council,04-May-21,51301564539,"-1,269.10",23 LIONS CROSS (VOYAGE),CARE ESTABLISHMENT,LD - Hunts Locality - Cost of Care,LD - Huntingdonshire - Care,Supported Living
Cambridgeshire County Council,04-May-21,51301564539,"-1,269.10",23 LIONS CROSS (VOYAGE),CARE ESTABLISHMENT,LD - Hunts Locality - Cost of Care,LD - Huntingdonshire - Care,Supported Living
Cambridgeshire County Council,04-May-21,51301564539,"-1,269.10",23 LIONS CROSS (VOYAGE),CARE ESTABLISHMENT,LD - Hunts Locality - Cost of Care,LD - Huntingdonshire - Care,Supported Living
Cambridgeshire County Council,04-May-21,51301564535,"-1,264.73",23 LIONS CROSS (VOYAGE),CARE ESTABLISHMENT,LD - South Locality - Cost of Care,LD - South Cambs - Care,Supported Living
Cambridgeshire County Council,04-May-21,51301564535,"-1,264.73",23 LIONS CROSS (VOYAGE),CARE ESTABLISHMENT,LD - South Locality - Cost of Care,LD - South Cambs - Care,Supported Living
Cambridgeshire County Council,04-May-21,51301564535,"-1,264.73",23 LIONS CROSS (VOYAGE),CARE ESTABLISHMENT,LD - South Locality - Cost of Care,LD - South Cambs - Care,Supported Living
Cambridgeshire County Council,04-May-21,51301564535,"-1,264.73",23 LIONS CROSS (VOYAGE),CARE ESTABLISHMENT,LD - South Locality - Cost of Care,LD - South Cambs - Care,Supported Living
Cambridgeshire County Council,04-May-21,51301564535,"-1,264.73",23 LIONS CROSS (VOYAGE),CARE ESTABLISHMENT,LD - South Locality - Cost of Care,LD - South Cambs - Care,Supported Living
Cambridgeshire County Council,04-May-21,51301564535,"-1,264.73",23 LIONS CROSS (VOYAGE),CARE ESTABLISHMENT,LD - South Locality - Cost of Care,LD - South Cambs - Care,Supported Living
Cambridgeshire County Council,04-May-21,51301564535,"-1,264.73",23 LIONS CROSS (VOYAGE),CARE ESTABLISHMENT,LD - South Locality - Cost of Care,LD - South Cambs - Care,Supported Living
Cambridgeshire County Council,04-May-21,51301564535,"-1,264.73",23 LIONS CROSS (VOYAGE),CARE ESTABLISHMENT,LD - South Locality - Cost of Care,LD - South Cambs - Care,Supported Living
Cambridgeshire County Council,04-May-21,51301564535,"-1,264.73",23 LIONS CROSS (VOYAGE),CARE ESTABLISHMENT,LD - South Locality - Cost of Care,LD - South Cambs - Care,Supported Living
Cambridgeshire County Council,04-May-21,51301564535,"-1,264.73",23 LIONS CROSS (VOYAGE),CARE ESTABLISHMENT,LD - South Locality - Cost of Care,LD - South Cambs - Care,Supported Living
Cambridgeshire County Council,04-May-21,51301564535,"-1,264.73",23 LIONS CROSS (VOYAGE),CARE ESTABLISHMENT,LD - South Locality - Cost of Care,LD - South Cambs - Care,Supported Living
Cambridgeshire County Council,04-May-21,51301564535,"-1,264.73",23 LIONS CROSS (VOYAGE),CARE ESTABLISHMENT,LD - South Locality - Cost of Care,LD - South Cambs - Care,Supported Living
Cambridgeshire County Council,04-May-21,51301564535,"-1,264.73",23 LIONS CROSS (VOYAGE),CARE ESTABLISHMENT,LD - South Locality - Cost of Care,LD - South Cambs - Care,Supported Living
Cambridgeshire County Council,04-May-21,51301564535,"-1,264.73",23 LIONS CROSS (VOYAGE),CARE ESTABLISHMENT,LD - South Locality - Cost of Care,LD - South Cambs - Care,Supported Living
Cambridgeshire County Council,04-May-21,51301564535,"-1,264.73",23 LIONS CROSS (VOYAGE),CARE ESTABLISHMENT,LD - South Locality - Cost of Care,LD - South Cambs - Care,Supported Living
Cambridgeshire County Council,04-May-21,51301564535,"-1,264.73",23 LIONS CROSS (VOYAGE),CARE ESTABLISHMENT,LD - South Locality - Cost of Care,LD - South Cambs - Care,Supported Living
Cambridgeshire County Council,04-May-21,51301564535,"-1,264.73",23 LIONS CROSS (VOYAGE),CARE ESTABLISHMENT,LD - South Locality - Cost of Care,LD - South Cambs - Care,Supported Living
Cambridgeshire County Council,04-May-21,51301564535,"-1,264.73",23 LIONS CROSS (VOYAGE),CARE ESTABLISHMENT,LD - South Locality - Cost of Care,LD - South Cambs - Care,Supported Living
Cambridgeshire County Council,04-May-21,51301564535,"-1,264.73",23 LIONS CROSS (VOYAGE),CARE ESTABLISHMENT,LD - South Locality - Cost of Care,LD - South Cambs - Care,Supported Living
Cambridgeshire County Council,04-May-21,51301564535,"-1,264.73",23 LIONS CROSS (VOYAGE),CARE ESTABLISHMENT,LD - South Locality - Cost of Care,LD - South Cambs - Care,Supported Living
Cambridgeshire County Council,04-May-21,51301564535,"-1,264.73",23 LIONS CROSS (VOYAGE),CARE ESTABLISHMENT,LD - South Locality - Cost of Care,LD - South Cambs - Care,Supported Living
Cambridgeshire County Council,04-May-21,51301564535,"-1,264.73",23 LIONS CROSS (VOYAGE),CARE ESTABLISHMENT,LD - South Locality - Cost of Care,LD - South Cambs - Care,Supported Living
Cambridgeshire County Council,04-May-21,51301564535,"-1,264.73",23 LIONS CROSS (VOYAGE),CARE ESTABLISHMENT,LD - South Locality - Cost of Care,LD - South Cambs - Care,Supported Living
Cambridgeshire County Council,04-May-21,51301564535,"-1,264.73",23 LIONS CROSS (VOYAGE),CARE ESTABLISHMENT,LD - South Locality - Cost of Care,LD - South Cambs - Care,Supported Living
Cambridgeshire County Council,04-May-21,51301564535,"-1,264.73",23 LIONS CROSS (VOYAGE),CARE ESTABLISHMENT,LD - South Locality - Cost of Care,LD - South Cambs - Care,Supported Living
Cambridgeshire County Council,04-May-21,51301564535,"-1,264.73",23 LIONS CROSS (VOYAGE),CARE ESTABLISHMENT,LD - South Locality - Cost of Care,LD - South Cambs - Care,Supported Living
Cambridgeshire County Council,04-May-21,51301564535,"-1,264.73",23 LIONS CROSS (VOYAGE),CARE ESTABLISHMENT,LD - South Locality - Cost of Care,LD - South Cambs - Care,Supported Living
Cambridgeshire County Council,04-May-21,51301564535,"-1,264.73",23 LIONS CROSS (VOYAGE),CARE ESTABLISHMENT,LD - South Locality - Cost of Care,LD - South Cambs - Care,Supported Living
Cambridgeshire County Council,04-May-21,51301564535,"-1,264.73",23 LIONS CROSS (VOYAGE),CARE ESTABLISHMENT,LD - South Locality - Cost of Care,LD - South Cambs - Care,Supported Living
Cambridgeshire County Council,04-May-21,51301564535,"-1,264.73",23 LIONS CROSS (VOYAGE),CARE ESTABLISHMENT,LD - South Locality - Cost of Care,LD - South Cambs - Care,Supported Living
Cambridgeshire County Council,04-May-21,51301564535,"-1,264.73",23 LIONS CROSS (VOYAGE),CARE ESTABLISHMENT,LD - South Locality - Cost of Care,LD - South Cambs - Care,Supported Living
Cambridgeshire County Council,04-May-21,51301564535,"-1,264.73",23 LIONS CROSS (VOYAGE),CARE ESTABLISHMENT,LD - South Locality - Cost of Care,LD - South Cambs - Care,Supported Living
Cambridgeshire County Council,04-May-21,51301564535,"-1,264.73",23 LIONS CROSS (VOYAGE),CARE ESTABLISHMENT,LD - South Locality - Cost of Care,LD - South Cambs - Care,Supported Living
Cambridgeshire County Council,04-May-21,51301564535,"-1,264.73",23 LIONS CROSS (VOYAGE),CARE ESTABLISHMENT,LD - South Locality - Cost of Care,LD - South Cambs - Care,Supported Living
Cambridgeshire County Council,04-May-21,51301564535,"-1,264.73",23 LIONS CROSS (VOYAGE),CARE ESTABLISHMENT,LD - South Locality - Cost of Care,LD - South Cambs - Care,Supported Living
Cambridgeshire County Council,04-May-21,51301564535,"-1,264.73",23 LIONS CROSS (VOYAGE),CARE ESTABLISHMENT,LD - South Locality - Cost of Care,LD - South Cambs - Care,Supported Living
Cambridgeshire County Council,04-May-21,51301564535,"-1,264.73",23 LIONS CROSS (VOYAGE),CARE ESTABLISHMENT,LD - South Locality - Cost of Care,LD - South Cambs - Care,Supported Living
Cambridgeshire County Council,04-May-21,51301564535,"-1,264.73",23 LIONS CROSS (VOYAGE),CARE ESTABLISHMENT,LD - South Locality - Cost of Care,LD - South Cambs - Care,Supported Living
Cambridgeshire County Council,04-May-21,51301564535,"-1,264.73",23 LIONS CROSS (VOYAGE),CARE ESTABLISHMENT,LD - South Locality - Cost of Care,LD - South Cambs - Care,Supported Living
Cambridgeshire County Council,04-May-21,51301564535,"-1,264.73",23 LIONS CROSS (VOYAGE),CARE ESTABLISHMENT,LD - South Locality - Cost of Care,LD - South Cambs - Care,Supported Living
Cambridgeshire County Council,04-May-21,51301564535,"-1,264.73",23 LIONS CROSS (VOYAGE),CARE ESTABLISHMENT,LD - South Locality - Cost of Care,LD - South Cambs - Care,Supported Living
Cambridgeshire County Council,04-May-21,51301564535,"-1,264.73",23 LIONS CROSS (VOYAGE),CARE ESTABLISHMENT,LD - South Locality - Cost of Care,LD - South Cambs - Care,Supported Living
Cambridgeshire County Council,04-May-21,51301564535,"-1,264.73",23 LIONS CROSS (VOYAGE),CARE ESTABLISHMENT,LD - South Locality - Cost of Care,LD - South Cambs - Care,Supported Living
Cambridgeshire County Council,04-May-21,51301564535,"-1,264.73",23 LIONS CROSS (VOYAGE),CARE ESTABLISHMENT,LD - South Locality - Cost of Care,LD - South Cambs - Care,Supported Living
Cambridgeshire County Council,04-May-21,51301564538,"-1,214.65",2 CHEVERIL LANE (VOYAGE),CARE ESTABLISHMENT,LD - Hunts Locality - Cost of Care,LD - Huntingdonshire - Care,Supported Living
Cambridgeshire County Council,04-May-21,51301564538,"-1,214.65",2 CHEVERIL LANE (VOYAGE),CARE ESTABLISHMENT,LD - Hunts Locality - Cost of Care,LD - Huntingdonshire - Care,Supported Living
Cambridgeshire County Council,04-May-21,51301564538,"-1,214.65",2 CHEVERIL LANE (VOYAGE),CARE ESTABLISHMENT,LD - Hunts Locality - Cost of Care,LD - Huntingdonshire - Care,Supported Living
Cambridgeshire County Council,04-May-21,51301564538,"-1,214.65",2 CHEVERIL LANE (VOYAGE),CARE ESTABLISHMENT,LD - Hunts Locality - Cost of Care,LD - Huntingdonshire - Care,Supported Living
Cambridgeshire County Council,04-May-21,51301564538,"-1,214.65",2 CHEVERIL LANE (VOYAGE),CARE ESTABLISHMENT,LD - Hunts Locality - Cost of Care,LD - Huntingdonshire - Care,Supported Living
Cambridgeshire County Council,04-May-21,51301564538,"-1,214.65",2 CHEVERIL LANE (VOYAGE),CARE ESTABLISHMENT,LD - Hunts Locality - Cost of Care,LD - Huntingdonshire - Care,Supported Living
Cambridgeshire County Council,04-May-21,51301564538,"-1,214.65",2 CHEVERIL LANE (VOYAGE),CARE ESTABLISHMENT,LD - Hunts Locality - Cost of Care,LD - Huntingdonshire - Care,Supported Living
Cambridgeshire County Council,04-May-21,51301564538,"-1,214.65",2 CHEVERIL LANE (VOYAGE),CARE ESTABLISHMENT,LD - Hunts Locality - Cost of Care,LD - Huntingdonshire - Care,Supported Living
Cambridgeshire County Council,04-May-21,51301564538,"-1,214.65",2 CHEVERIL LANE (VOYAGE),CARE ESTABLISHMENT,LD - Hunts Locality - Cost of Care,LD - Huntingdonshire - Care,Supported Living
Cambridgeshire County Council,04-May-21,51301564538,"-1,214.65",2 CHEVERIL LANE (VOYAGE),CARE ESTABLISHMENT,LD - Hunts Locality - Cost of Care,LD - Huntingdonshire - Care,Supported Living
Cambridgeshire County Council,04-May-21,51301564538,"-1,214.65",2 CHEVERIL LANE (VOYAGE),CARE ESTABLISHMENT,LD - Hunts Locality - Cost of Care,LD - Huntingdonshire - Care,Supported Living
Cambridgeshire County Council,04-May-21,51301564538,"-1,214.65",2 CHEVERIL LANE (VOYAGE),CARE ESTABLISHMENT,LD - Hunts Locality - Cost of Care,LD - Huntingdonshire - Care,Supported Living
Cambridgeshire County Council,04-May-21,51301564538,"-1,214.65",2 CHEVERIL LANE (VOYAGE),CARE ESTABLISHMENT,LD - Hunts Locality - Cost of Care,LD - Huntingdonshire - Care,Supported Living
Cambridgeshire County Council,04-May-21,51301564538,"-1,214.65",2 CHEVERIL LANE (VOYAGE),CARE ESTABLISHMENT,LD - Hunts Locality - Cost of Care,LD - Huntingdonshire - Care,Supported Living
Cambridgeshire County Council,04-May-21,51301564538,"-1,214.65",2 CHEVERIL LANE (VOYAGE),CARE ESTABLISHMENT,LD - Hunts Locality - Cost of Care,LD - Huntingdonshire - Care,Supported Living
Cambridgeshire County Council,04-May-21,51301564538,"-1,214.65",2 CHEVERIL LANE (VOYAGE),CARE ESTABLISHMENT,LD - Hunts Locality - Cost of Care,LD - Huntingdonshire - Care,Supported Living
Cambridgeshire County Council,04-May-21,51301564538,"-1,214.65",2 CHEVERIL LANE (VOYAGE),CARE ESTABLISHMENT,LD - Hunts Locality - Cost of Care,LD - Huntingdonshire - Care,Supported Living
Cambridgeshire County Council,04-May-21,51301564538,"-1,214.65",2 CHEVERIL LANE (VOYAGE),CARE ESTABLISHMENT,LD - Hunts Locality - Cost of Care,LD - Huntingdonshire - Care,Supported Living
Cambridgeshire County Council,04-May-21,51301564538,"-1,214.65",2 CHEVERIL LANE (VOYAGE),CARE ESTABLISHMENT,LD - Hunts Locality - Cost of Care,LD - Huntingdonshire - Care,Supported Living
Cambridgeshire County Council,04-May-21,51301564538,"-1,214.65",2 CHEVERIL LANE (VOYAGE),CARE ESTABLISHMENT,LD - Hunts Locality - Cost of Care,LD - Huntingdonshire - Care,Supported Living
Cambridgeshire County Council,04-May-21,51301564538,"-1,214.65",2 CHEVERIL LANE (VOYAGE),CARE ESTABLISHMENT,LD - Hunts Locality - Cost of Care,LD - Huntingdonshire - Care,Supported Living
Cambridgeshire County Council,04-May-21,51301564538,"-1,214.65",2 CHEVERIL LANE (VOYAGE),CARE ESTABLISHMENT,LD - Hunts Locality - Cost of Care,LD - Huntingdonshire - Care,Supported Living
Cambridgeshire County Council,04-May-21,51301564538,"-1,214.65",2 CHEVERIL LANE (VOYAGE),CARE ESTABLISHMENT,LD - Hunts Locality - Cost of Care,LD - Huntingdonshire - Care,Supported Living
Cambridgeshire County Council,04-May-21,51301564538,"-1,214.65",2 CHEVERIL LANE (VOYAGE),CARE ESTABLISHMENT,LD - Hunts Locality - Cost of Care,LD - Huntingdonshire - Care,Supported Living
Cambridgeshire County Council,04-May-21,51301564538,"-1,214.65",2 CHEVERIL LANE (VOYAGE),CARE ESTABLISHMENT,LD - Hunts Locality - Cost of Care,LD - Huntingdonshire - Care,Supported Living
Cambridgeshire County Council,04-May-21,51301564538,"-1,214.65",2 CHEVERIL LANE (VOYAGE),CARE ESTABLISHMENT,LD - Hunts Locality - Cost of Care,LD - Huntingdonshire - Care,Supported Living
Cambridgeshire County Council,04-May-21,51301564538,"-1,214.65",2 CHEVERIL LANE (VOYAGE),CARE ESTABLISHMENT,LD - Hunts Locality - Cost of Care,LD - Huntingdonshire - Care,Supported Living
Cambridgeshire County Council,04-May-21,51301564538,"-1,214.65",2 CHEVERIL LANE (VOYAGE),CARE ESTABLISHMENT,LD - Hunts Locality - Cost of Care,LD - Huntingdonshire - Care,Supported Living
Cambridgeshire County Council,04-May-21,51301564538,"-1,214.65",2 CHEVERIL LANE (VOYAGE),CARE ESTABLISHMENT,LD - Hunts Locality - Cost of Care,LD - Huntingdonshire - Care,Supported Living
Cambridgeshire County Council,04-May-21,51301564538,"-1,214.65",2 CHEVERIL LANE (VOYAGE),CARE ESTABLISHMENT,LD - Hunts Locality - Cost of Care,LD - Huntingdonshire - Care,Supported Living
Cambridgeshire County Council,04-May-21,51301564538,"-1,214.65",2 CHEVERIL LANE (VOYAGE),CARE ESTABLISHMENT,LD - Hunts Locality - Cost of Care,LD - Huntingdonshire - Care,Supported Living
Cambridgeshire County Council,04-May-21,51301564538,"-1,214.65",2 CHEVERIL LANE (VOYAGE),CARE ESTABLISHMENT,LD - Hunts Locality - Cost of Care,LD - Huntingdonshire - Care,Supported Living
Cambridgeshire County Council,04-May-21,51301564538,"-1,214.65",2 CHEVERIL LANE (VOYAGE),CARE ESTABLISHMENT,LD - Hunts Locality - Cost of Care,LD - Huntingdonshire - Care,Supported Living
Cambridgeshire County Council,04-May-21,51301564538,"-1,214.65",2 CHEVERIL LANE (VOYAGE),CARE ESTABLISHMENT,LD - Hunts Locality - Cost of Care,LD - Huntingdonshire - Care,Supported Living
Cambridgeshire County Council,04-May-21,51301564538,"-1,214.65",2 CHEVERIL LANE (VOYAGE),CARE ESTABLISHMENT,LD - Hunts Locality - Cost of Care,LD - Huntingdonshire - Care,Supported Living
Cambridgeshire County Council,04-May-21,51301564538,"-1,214.65",2 CHEVERIL LANE (VOYAGE),CARE ESTABLISHMENT,LD - Hunts Locality - Cost of Care,LD - Huntingdonshire - Care,Supported Living
Cambridgeshire County Council,04-May-21,51301564538,"-1,214.65",2 CHEVERIL LANE (VOYAGE),CARE ESTABLISHMENT,LD - Hunts Locality - Cost of Care,LD - Huntingdonshire - Care,Supported Living
Cambridgeshire County Council,04-May-21,51301564538,"-1,214.65",2 CHEVERIL LANE (VOYAGE),CARE ESTABLISHMENT,LD - Hunts Locality - Cost of Care,LD - Huntingdonshire - Care,Supported Living
Cambridgeshire County Council,04-May-21,51301564538,"-1,214.65",2 CHEVERIL LANE (VOYAGE),CARE ESTABLISHMENT,LD - Hunts Locality - Cost of Care,LD - Huntingdonshire - Care,Supported Living
Cambridgeshire County Council,04-May-21,51301564526,"-1,186.95",17 HAMLETT CLOSE (VOYAGE),CARE ESTABLISHMENT,LD - Hunts Locality - Cost of Care,LD - Huntingdonshire - Care,Supported Living
Cambridgeshire County Council,04-May-21,51301564526,"-1,186.95",17 HAMLETT CLOSE (VOYAGE),CARE ESTABLISHMENT,LD - Hunts Locality - Cost of Care,LD - Huntingdonshire - Care,Supported Living
Cambridgeshire County Council,04-May-21,51301564526,"-1,186.95",17 HAMLETT CLOSE (VOYAGE),CARE ESTABLISHMENT,LD - Hunts Locality - Cost of Care,LD - Huntingdonshire - Care,Supported Living
Cambridgeshire County Council,04-May-21,51301564526,"-1,186.95",17 HAMLETT CLOSE (VOYAGE),CARE ESTABLISHMENT,LD - Hunts Locality - Cost of Care,LD - Huntingdonshire - Care,Supported Living
Cambridgeshire County Council,04-May-21,51301564526,"-1,186.95",17 HAMLETT CLOSE (VOYAGE),CARE ESTABLISHMENT,LD - Hunts Locality - Cost of Care,LD - Huntingdonshire - Care,Supported Living
Cambridgeshire County Council,04-May-21,51301564526,"-1,186.95",17 HAMLETT CLOSE (VOYAGE),CARE ESTABLISHMENT,LD - Hunts Locality - Cost of Care,LD - Huntingdonshire - Care,Supported Living
Cambridgeshire County Council,04-May-21,51301564526,"-1,186.95",17 HAMLETT CLOSE (VOYAGE),CARE ESTABLISHMENT,LD - Hunts Locality - Cost of Care,LD - Huntingdonshire - Care,Supported Living
Cambridgeshire County Council,04-May-21,51301564526,"-1,186.95",17 HAMLETT CLOSE (VOYAGE),CARE ESTABLISHMENT,LD - Hunts Locality - Cost of Care,LD - Huntingdonshire - Care,Supported Living
Cambridgeshire County Council,04-May-21,51301564526,"-1,186.95",17 HAMLETT CLOSE (VOYAGE),CARE ESTABLISHMENT,LD - Hunts Locality - Cost of Care,LD - Huntingdonshire - Care,Supported Living
Cambridgeshire County Council,04-May-21,51301564526,"-1,186.95",17 HAMLETT CLOSE (VOYAGE),CARE ESTABLISHMENT,LD - Hunts Locality - Cost of Care,LD - Huntingdonshire - Care,Supported Living
Cambridgeshire County Council,04-May-21,51301564526,"-1,186.95",17 HAMLETT CLOSE (VOYAGE),CARE ESTABLISHMENT,LD - Hunts Locality - Cost of Care,LD - Huntingdonshire - Care,Supported Living
Cambridgeshire County Council,04-May-21,51301564526,"-1,186.95",17 HAMLETT CLOSE (VOYAGE),CARE ESTABLISHMENT,LD - Hunts Locality - Cost of Care,LD - Huntingdonshire - Care,Supported Living
Cambridgeshire County Council,04-May-21,51301564526,"-1,186.95",17 HAMLETT CLOSE (VOYAGE),CARE ESTABLISHMENT,LD - Hunts Locality - Cost of Care,LD - Huntingdonshire - Care,Supported Living
Cambridgeshire County Council,04-May-21,51301564526,"-1,186.95",17 HAMLETT CLOSE (VOYAGE),CARE ESTABLISHMENT,LD - Hunts Locality - Cost of Care,LD - Huntingdonshire - Care,Supported Living
Cambridgeshire County Council,04-May-21,51301564526,"-1,186.95",17 HAMLETT CLOSE (VOYAGE),CARE ESTABLISHMENT,LD - Hunts Locality - Cost of Care,LD - Huntingdonshire - Care,Supported Living
Cambridgeshire County Council,04-May-21,51301564526,"-1,186.95",17 HAMLETT CLOSE (VOYAGE),CARE ESTABLISHMENT,LD - Hunts Locality - Cost of Care,LD - Huntingdonshire - Care,Supported Living
Cambridgeshire County Council,04-May-21,51301564526,"-1,186.95",17 HAMLETT CLOSE (VOYAGE),CARE ESTABLISHMENT,LD - Hunts Locality - Cost of Care,LD - Huntingdonshire - Care,Supported Living
Cambridgeshire County Council,04-May-21,51301564526,"-1,186.95",17 HAMLETT CLOSE (VOYAGE),CARE ESTABLISHMENT,LD - Hunts Locality - Cost of Care,LD - Huntingdonshire - Care,Supported Living
Cambridgeshire County Council,04-May-21,51301564526,"-1,186.95",17 HAMLETT CLOSE (VOYAGE),CARE ESTABLISHMENT,LD - Hunts Locality - Cost of Care,LD - Huntingdonshire - Care,Supported Living
Cambridgeshire County Council,04-May-21,51301564526,"-1,186.95",17 HAMLETT CLOSE (VOYAGE),CARE ESTABLISHMENT,LD - Hunts Locality - Cost of Care,LD - Huntingdonshire - Care,Supported Living
Cambridgeshire County Council,04-May-21,51301564526,"-1,186.95",17 HAMLETT CLOSE (VOYAGE),CARE ESTABLISHMENT,LD - Hunts Locality - Cost of Care,LD - Huntingdonshire - Care,Supported Living
Cambridgeshire County Council,04-May-21,51301564526,"-1,186.95",17 HAMLETT CLOSE (VOYAGE),CARE ESTABLISHMENT,LD - Hunts Locality - Cost of Care,LD - Huntingdonshire - Care,Supported Living
Cambridgeshire County Council,04-May-21,51301564526,"-1,186.95",17 HAMLETT CLOSE (VOYAGE),CARE ESTABLISHMENT,LD - Hunts Locality - Cost of Care,LD - Huntingdonshire - Care,Supported Living
Cambridgeshire County Council,04-May-21,51301564526,"-1,186.95",17 HAMLETT CLOSE (VOYAGE),CARE ESTABLISHMENT,LD - Hunts Locality - Cost of Care,LD - Huntingdonshire - Care,Supported Living
Cambridgeshire County Council,04-May-21,51301564526,"-1,186.95",17 HAMLETT CLOSE (VOYAGE),CARE ESTABLISHMENT,LD - Hunts Locality - Cost of Care,LD - Huntingdonshire - Care,Supported Living
Cambridgeshire County Council,04-May-21,51301564526,"-1,186.95",17 HAMLETT CLOSE (VOYAGE),CARE ESTABLISHMENT,LD - Hunts Locality - Cost of Care,LD - Huntingdonshire - Care,Supported Living
Cambridgeshire County Council,04-May-21,51301564526,"-1,186.95",17 HAMLETT CLOSE (VOYAGE),CARE ESTABLISHMENT,LD - Hunts Locality - Cost of Care,LD - Huntingdonshire - Care,Supported Living
Cambridgeshire County Council,04-May-21,51301564526,"-1,186.95",17 HAMLETT CLOSE (VOYAGE),CARE ESTABLISHMENT,LD - Hunts Locality - Cost of Care,LD - Huntingdonshire - Care,Supported Living
Cambridgeshire County Council,04-May-21,51301564526,"-1,186.95",17 HAMLETT CLOSE (VOYAGE),CARE ESTABLISHMENT,LD - Hunts Locality - Cost of Care,LD - Huntingdonshire - Care,Supported Living
Cambridgeshire County Council,04-May-21,51301564526,"-1,186.95",17 HAMLETT CLOSE (VOYAGE),CARE ESTABLISHMENT,LD - Hunts Locality - Cost of Care,LD - Huntingdonshire - Care,Supported Living
Cambridgeshire County Council,04-May-21,51301564526,"-1,186.95",17 HAMLETT CLOSE (VOYAGE),CARE ESTABLISHMENT,LD - Hunts Locality - Cost of Care,LD - Huntingdonshire - Care,Supported Living
Cambridgeshire County Council,04-May-21,51301564526,"-1,186.95",17 HAMLETT CLOSE (VOYAGE),CARE ESTABLISHMENT,LD - Hunts Locality - Cost of Care,LD - Huntingdonshire - Care,Supported Living
Cambridgeshire County Council,04-May-21,51301564526,"-1,186.95",17 HAMLETT CLOSE (VOYAGE),CARE ESTABLISHMENT,LD - Hunts Locality - Cost of Care,LD - Huntingdonshire - Care,Supported Living
Cambridgeshire County Council,04-May-21,51301564526,"-1,186.95",17 HAMLETT CLOSE (VOYAGE),CARE ESTABLISHMENT,LD - Hunts Locality - Cost of Care,LD - Huntingdonshire - Care,Supported Living
Cambridgeshire County Council,04-May-21,51301564526,"-1,186.95",17 HAMLETT CLOSE (VOYAGE),CARE ESTABLISHMENT,LD - Hunts Locality - Cost of Care,LD - Huntingdonshire - Care,Supported Living
Cambridgeshire County Council,04-May-21,51301564526,"-1,186.95",17 HAMLETT CLOSE (VOYAGE),CARE ESTABLISHMENT,LD - Hunts Locality - Cost of Care,LD - Huntingdonshire - Care,Supported Living
Cambridgeshire County Council,04-May-21,51301564526,"-1,186.95",17 HAMLETT CLOSE (VOYAGE),CARE ESTABLISHMENT,LD - Hunts Locality - Cost of Care,LD - Huntingdonshire - Care,Supported Living
Cambridgeshire County Council,04-May-21,51301564526,"-1,186.95",17 HAMLETT CLOSE (VOYAGE),CARE ESTABLISHMENT,LD - Hunts Locality - Cost of Care,LD - Huntingdonshire - Care,Supported Living
Cambridgeshire County Council,04-May-21,51301564526,"-1,186.95",17 HAMLETT CLOSE (VOYAGE),CARE ESTABLISHMENT,LD - Hunts Locality - Cost of Care,LD - Huntingdonshire - Care,Supported Living
Cambridgeshire County Council,04-May-21,51301564526,"-1,186.95",17 HAMLETT CLOSE (VOYAGE),CARE ESTABLISHMENT,LD - Hunts Locality - Cost of Care,LD - Huntingdonshire - Care,Supported Living
Cambridgeshire County Council,04-May-21,51301564526,"-1,186.95",17 HAMLETT CLOSE (VOYAGE),CARE ESTABLISHMENT,LD - Hunts Locality - Cost of Care,LD - Huntingdonshire - Care,Supported Living
Cambridgeshire County Council,04-May-21,51301564526,"-1,186.95",17 HAMLETT CLOSE (VOYAGE),CARE ESTABLISHMENT,LD - Hunts Locality - Cost of Care,LD - Huntingdonshire - Care,Supported Living
Cambridgeshire County Council,04-May-21,51301564526,"-1,186.95",17 HAMLETT CLOSE (VOYAGE),CARE ESTABLISHMENT,LD - Hunts Locality - Cost of Care,LD - Huntingdonshire - Care,Supported Living
Cambridgeshire County Council,04-May-21,51301564526,"-1,186.95",17 HAMLETT CLOSE (VOYAGE),CARE ESTABLISHMENT,LD - Hunts Locality - Cost of Care,LD - Huntingdonshire - Care,Supported Living
Cambridgeshire County Council,04-May-21,51301564526,"-1,186.95",17 HAMLETT CLOSE (VOYAGE),CARE ESTABLISHMENT,LD - Hunts Locality - Cost of Care,LD - Huntingdonshire - Care,Supported Living
Cambridgeshire County Council,04-May-21,51301564526,"-1,186.95",17 HAMLETT CLOSE (VOYAGE),CARE ESTABLISHMENT,LD - Hunts Locality - Cost of Care,LD - Huntingdonshire - Care,Supported Living
Cambridgeshire County Council,04-May-21,51301564526,"-1,186.95",17 HAMLETT CLOSE (VOYAGE),CARE ESTABLISHMENT,LD - Hunts Locality - Cost of Care,LD - Huntingdonshire - Care,Supported Living
Cambridgeshire County Council,04-May-21,51301564526,"-1,186.95",17 HAMLETT CLOSE (VOYAGE),CARE ESTABLISHMENT,LD - Hunts Locality - Cost of Care,LD - Huntingdonshire - Care,Supported Living
Cambridgeshire County Council,04-May-21,51301564526,"-1,186.95",17 HAMLETT CLOSE (VOYAGE),CARE ESTABLISHMENT,LD - Hunts Locality - Cost of Care,LD - Huntingdonshire - Care,Supported Living
Cambridgeshire County Council,04-May-21,51301564526,"-1,186.95",17 HAMLETT CLOSE (VOYAGE),CARE ESTABLISHMENT,LD - Hunts Locality - Cost of Care,LD - Huntingdonshire - Care,Supported Living
Cambridgeshire County Council,04-May-21,51301564526,"-1,186.95",17 HAMLETT CLOSE (VOYAGE),CARE ESTABLISHMENT,LD - Hunts Locality - Cost of Care,LD - Huntingdonshire - Care,Supported Living
Cambridgeshire County Council,04-May-21,51301564526,"-1,186.95",17 HAMLETT CLOSE (VOYAGE),CARE ESTABLISHMENT,LD - Hunts Locality - Cost of Care,LD - Huntingdonshire - Care,Supported Living
Cambridgeshire County Council,04-May-21,51301564526,"-1,186.95",17 HAMLETT CLOSE (VOYAGE),CARE ESTABLISHMENT,LD - Hunts Locality - Cost of Care,LD - Huntingdonshire - Care,Supported Living
Cambridgeshire County Council,04-May-21,51301564526,"-1,186.95",17 HAMLETT CLOSE (VOYAGE),CARE ESTABLISHMENT,LD - Hunts Locality - Cost of Care,LD - Huntingdonshire - Care,Supported Living
Cambridgeshire County Council,04-May-21,51301564530,"-1,181.96",2 CHEVERIL LANE (VOYAGE),CARE ESTABLISHMENT,LD - Hunts Locality - Cost of Care,LD - Huntingdonshire - Care,Supported Living
Cambridgeshire County Council,04-May-21,51301564530,"-1,181.96",2 CHEVERIL LANE (VOYAGE),CARE ESTABLISHMENT,LD - Hunts Locality - Cost of Care,LD - Huntingdonshire - Care,Supported Living
Cambridgeshire County Council,04-May-21,51301564530,"-1,181.96",2 CHEVERIL LANE (VOYAGE),CARE ESTABLISHMENT,LD - Hunts Locality - Cost of Care,LD - Huntingdonshire - Care,Supported Living
Cambridgeshire County Council,04-May-21,51301564530,"-1,181.96",2 CHEVERIL LANE (VOYAGE),CARE ESTABLISHMENT,LD - Hunts Locality - Cost of Care,LD - Huntingdonshire - Care,Supported Living
Cambridgeshire County Council,04-May-21,51301564530,"-1,181.96",2 CHEVERIL LANE (VOYAGE),CARE ESTABLISHMENT,LD - Hunts Locality - Cost of Care,LD - Huntingdonshire - Care,Supported Living
Cambridgeshire County Council,04-May-21,51301564530,"-1,181.96",2 CHEVERIL LANE (VOYAGE),CARE ESTABLISHMENT,LD - Hunts Locality - Cost of Care,LD - Huntingdonshire - Care,Supported Living
Cambridgeshire County Council,04-May-21,51301564530,"-1,181.96",2 CHEVERIL LANE (VOYAGE),CARE ESTABLISHMENT,LD - Hunts Locality - Cost of Care,LD - Huntingdonshire - Care,Supported Living
Cambridgeshire County Council,04-May-21,51301564530,"-1,181.96",2 CHEVERIL LANE (VOYAGE),CARE ESTABLISHMENT,LD - Hunts Locality - Cost of Care,LD - Huntingdonshire - Care,Supported Living
Cambridgeshire County Council,04-May-21,51301564530,"-1,181.96",2 CHEVERIL LANE (VOYAGE),CARE ESTABLISHMENT,LD - Hunts Locality - Cost of Care,LD - Huntingdonshire - Care,Supported Living
Cambridgeshire County Council,04-May-21,51301564530,"-1,181.96",2 CHEVERIL LANE (VOYAGE),CARE ESTABLISHMENT,LD - Hunts Locality - Cost of Care,LD - Huntingdonshire - Care,Supported Living
Cambridgeshire County Council,04-May-21,51301564530,"-1,181.96",2 CHEVERIL LANE (VOYAGE),CARE ESTABLISHMENT,LD - Hunts Locality - Cost of Care,LD - Huntingdonshire - Care,Supported Living
Cambridgeshire County Council,04-May-21,51301564530,"-1,181.96",2 CHEVERIL LANE (VOYAGE),CARE ESTABLISHMENT,LD - Hunts Locality - Cost of Care,LD - Huntingdonshire - Care,Supported Living
Cambridgeshire County Council,04-May-21,51301564530,"-1,181.96",2 CHEVERIL LANE (VOYAGE),CARE ESTABLISHMENT,LD - Hunts Locality - Cost of Care,LD - Huntingdonshire - Care,Supported Living
Cambridgeshire County Council,04-May-21,51301564530,"-1,181.96",2 CHEVERIL LANE (VOYAGE),CARE ESTABLISHMENT,LD - Hunts Locality - Cost of Care,LD - Huntingdonshire - Care,Supported Living
Cambridgeshire County Council,04-May-21,51301564530,"-1,181.96",2 CHEVERIL LANE (VOYAGE),CARE ESTABLISHMENT,LD - Hunts Locality - Cost of Care,LD - Huntingdonshire - Care,Supported Living
Cambridgeshire County Council,04-May-21,51301564530,"-1,181.96",2 CHEVERIL LANE (VOYAGE),CARE ESTABLISHMENT,LD - Hunts Locality - Cost of Care,LD - Huntingdonshire - Care,Supported Living
Cambridgeshire County Council,04-May-21,51301564530,"-1,181.96",2 CHEVERIL LANE (VOYAGE),CARE ESTABLISHMENT,LD - Hunts Locality - Cost of Care,LD - Huntingdonshire - Care,Supported Living
Cambridgeshire County Council,04-May-21,51301564530,"-1,181.96",2 CHEVERIL LANE (VOYAGE),CARE ESTABLISHMENT,LD - Hunts Locality - Cost of Care,LD - Huntingdonshire - Care,Supported Living
Cambridgeshire County Council,04-May-21,51301564530,"-1,181.96",2 CHEVERIL LANE (VOYAGE),CARE ESTABLISHMENT,LD - Hunts Locality - Cost of Care,LD - Huntingdonshire - Care,Supported Living
Cambridgeshire County Council,04-May-21,51301564530,"-1,181.96",2 CHEVERIL LANE (VOYAGE),CARE ESTABLISHMENT,LD - Hunts Locality - Cost of Care,LD - Huntingdonshire - Care,Supported Living
Cambridgeshire County Council,04-May-21,51301564530,"-1,181.96",2 CHEVERIL LANE (VOYAGE),CARE ESTABLISHMENT,LD - Hunts Locality - Cost of Care,LD - Huntingdonshire - Care,Supported Living
Cambridgeshire County Council,04-May-21,51301564530,"-1,181.96",2 CHEVERIL LANE (VOYAGE),CARE ESTABLISHMENT,LD - Hunts Locality - Cost of Care,LD - Huntingdonshire - Care,Supported Living
Cambridgeshire County Council,04-May-21,51301564530,"-1,181.96",2 CHEVERIL LANE (VOYAGE),CARE ESTABLISHMENT,LD - Hunts Locality - Cost of Care,LD - Huntingdonshire - Care,Supported Living
Cambridgeshire County Council,04-May-21,51301564530,"-1,181.96",2 CHEVERIL LANE (VOYAGE),CARE ESTABLISHMENT,LD - Hunts Locality - Cost of Care,LD - Huntingdonshire - Care,Supported Living
Cambridgeshire County Council,04-May-21,51301564530,"-1,181.96",2 CHEVERIL LANE (VOYAGE),CARE ESTABLISHMENT,LD - Hunts Locality - Cost of Care,LD - Huntingdonshire - Care,Supported Living
Cambridgeshire County Council,04-May-21,51301564530,"-1,181.96",2 CHEVERIL LANE (VOYAGE),CARE ESTABLISHMENT,LD - Hunts Locality - Cost of Care,LD - Huntingdonshire - Care,Supported Living
Cambridgeshire County Council,04-May-21,51301564530,"-1,181.96",2 CHEVERIL LANE (VOYAGE),CARE ESTABLISHMENT,LD - Hunts Locality - Cost of Care,LD - Huntingdonshire - Care,Supported Living
Cambridgeshire County Council,04-May-21,51301564530,"-1,181.96",2 CHEVERIL LANE (VOYAGE),CARE ESTABLISHMENT,LD - Hunts Locality - Cost of Care,LD - Huntingdonshire - Care,Supported Living
Cambridgeshire County Council,04-May-21,51301564530,"-1,181.96",2 CHEVERIL LANE (VOYAGE),CARE ESTABLISHMENT,LD - Hunts Locality - Cost of Care,LD - Huntingdonshire - Care,Supported Living
Cambridgeshire County Council,04-May-21,51301564530,"-1,181.96",2 CHEVERIL LANE (VOYAGE),CARE ESTABLISHMENT,LD - Hunts Locality - Cost of Care,LD - Huntingdonshire - Care,Supported Living
Cambridgeshire County Council,04-May-21,51301564530,"-1,181.96",2 CHEVERIL LANE (VOYAGE),CARE ESTABLISHMENT,LD - Hunts Locality - Cost of Care,LD - Huntingdonshire - Care,Supported Living
Cambridgeshire County Council,04-May-21,51301564530,"-1,181.96",2 CHEVERIL LANE (VOYAGE),CARE ESTABLISHMENT,LD - Hunts Locality - Cost of Care,LD - Huntingdonshire - Care,Supported Living
Cambridgeshire County Council,04-May-21,51301564530,"-1,181.96",2 CHEVERIL LANE (VOYAGE),CARE ESTABLISHMENT,LD - Hunts Locality - Cost of Care,LD - Huntingdonshire - Care,Supported Living
Cambridgeshire County Council,04-May-21,51301564530,"-1,181.96",2 CHEVERIL LANE (VOYAGE),CARE ESTABLISHMENT,LD - Hunts Locality - Cost of Care,LD - Huntingdonshire - Care,Supported Living
Cambridgeshire County Council,04-May-21,51301564530,"-1,181.96",2 CHEVERIL LANE (VOYAGE),CARE ESTABLISHMENT,LD - Hunts Locality - Cost of Care,LD - Huntingdonshire - Care,Supported Living
Cambridgeshire County Council,04-May-21,51301564530,"-1,181.96",2 CHEVERIL LANE (VOYAGE),CARE ESTABLISHMENT,LD - Hunts Locality - Cost of Care,LD - Huntingdonshire - Care,Supported Living
Cambridgeshire County Council,04-May-21,51301564530,"-1,181.96",2 CHEVERIL LANE (VOYAGE),CARE ESTABLISHMENT,LD - Hunts Locality - Cost of Care,LD - Huntingdonshire - Care,Supported Living
Cambridgeshire County Council,04-May-21,51301564530,"-1,181.96",2 CHEVERIL LANE (VOYAGE),CARE ESTABLISHMENT,LD - Hunts Locality - Cost of Care,LD - Huntingdonshire - Care,Supported Living
Cambridgeshire County Council,04-May-21,51301564530,"-1,181.96",2 CHEVERIL LANE (VOYAGE),CARE ESTABLISHMENT,LD - Hunts Locality - Cost of Care,LD - Huntingdonshire - Care,Supported Living
Cambridgeshire County Council,04-May-21,51301564530,"-1,181.96",2 CHEVERIL LANE (VOYAGE),CARE ESTABLISHMENT,LD - Hunts Locality - Cost of Care,LD - Huntingdonshire - Care,Supported Living
Cambridgeshire County Council,04-May-21,51301564530,"-1,181.96",2 CHEVERIL LANE (VOYAGE),CARE ESTABLISHMENT,LD - Hunts Locality - Cost of Care,LD - Huntingdonshire - Care,Supported Living
Cambridgeshire County Council,04-May-21,51301564530,"-1,181.96",2 CHEVERIL LANE (VOYAGE),CARE ESTABLISHMENT,LD - Hunts Locality - Cost of Care,LD - Huntingdonshire - Care,Supported Living
Cambridgeshire County Council,04-May-21,51301564530,"-1,181.96",2 CHEVERIL LANE (VOYAGE),CARE ESTABLISHMENT,LD - Hunts Locality - Cost of Care,LD - Huntingdonshire - Care,Supported Living
Cambridgeshire County Council,04-May-21,51301564530,"-1,181.96",2 CHEVERIL LANE (VOYAGE),CARE ESTABLISHMENT,LD - Hunts Locality - Cost of Care,LD - Huntingdonshire - Care,Supported Living
Cambridgeshire County Council,04-May-21,51301564530,"-1,181.96",2 CHEVERIL LANE (VOYAGE),CARE ESTABLISHMENT,LD - Hunts Locality - Cost of Care,LD - Huntingdonshire - Care,Supported Living
Cambridgeshire County Council,04-May-21,51301564530,"-1,181.96",2 CHEVERIL LANE (VOYAGE),CARE ESTABLISHMENT,LD - Hunts Locality - Cost of Care,LD - Huntingdonshire - Care,Supported Living
Cambridgeshire County Council,04-May-21,51301564530,"-1,181.96",2 CHEVERIL LANE (VOYAGE),CARE ESTABLISHMENT,LD - Hunts Locality - Cost of Care,LD - Huntingdonshire - Care,Supported Living
Cambridgeshire County Council,04-May-21,51301564530,"-1,181.96",2 CHEVERIL LANE (VOYAGE),CARE ESTABLISHMENT,LD - Hunts Locality - Cost of Care,LD - Huntingdonshire - Care,Supported Living
Cambridgeshire County Council,04-May-21,51301564530,"-1,181.96",2 CHEVERIL LANE (VOYAGE),CARE ESTABLISHMENT,LD - Hunts Locality - Cost of Care,LD - Huntingdonshire - Care,Supported Living
Cambridgeshire County Council,04-May-21,51301564530,"-1,181.96",2 CHEVERIL LANE (VOYAGE),CARE ESTABLISHMENT,LD - Hunts Locality - Cost of Care,LD - Huntingdonshire - Care,Supported Living
Cambridgeshire County Council,04-May-21,51301564530,"-1,181.96",2 CHEVERIL LANE (VOYAGE),CARE ESTABLISHMENT,LD - Hunts Locality - Cost of Care,LD - Huntingdonshire - Care,Supported Living
Cambridgeshire County Council,04-May-21,51301564530,"-1,181.96",2 CHEVERIL LANE (VOYAGE),CARE ESTABLISHMENT,LD - Hunts Locality - Cost of Care,LD - Huntingdonshire - Care,Supported Living
Cambridgeshire County Council,04-May-21,51301564530,"-1,181.96",2 CHEVERIL LANE (VOYAGE),CARE ESTABLISHMENT,LD - Hunts Locality - Cost of Care,LD - Huntingdonshire - Care,Supported Living
Cambridgeshire County Council,04-May-21,51301564530,"-1,181.96",2 CHEVERIL LANE (VOYAGE),CARE ESTABLISHMENT,LD - Hunts Locality - Cost of Care,LD - Huntingdonshire - Care,Supported Living
Cambridgeshire County Council,04-May-21,51301564530,"-1,181.96",2 CHEVERIL LANE (VOYAGE),CARE ESTABLISHMENT,LD - Hunts Locality - Cost of Care,LD - Huntingdonshire - Care,Supported Living
Cambridgeshire County Council,04-May-21,51301564521,"-1,156.68",RENTON COURT (VOYAGE),CARE ESTABLISHMENT,LD - Hunts Locality - Cost of Care,LD - Huntingdonshire - Care,Supported Living
Cambridgeshire County Council,04-May-21,51301564521,"-1,156.68",RENTON COURT (VOYAGE),CARE ESTABLISHMENT,LD - Hunts Locality - Cost of Care,LD - Huntingdonshire - Care,Supported Living
Cambridgeshire County Council,04-May-21,51301564521,"-1,156.68",RENTON COURT (VOYAGE),CARE ESTABLISHMENT,LD - Hunts Locality - Cost of Care,LD - Huntingdonshire - Care,Supported Living
Cambridgeshire County Council,04-May-21,51301564521,"-1,156.68",RENTON COURT (VOYAGE),CARE ESTABLISHMENT,LD - Hunts Locality - Cost of Care,LD - Huntingdonshire - Care,Supported Living
Cambridgeshire County Council,04-May-21,51301564521,"-1,156.68",RENTON COURT (VOYAGE),CARE ESTABLISHMENT,LD - Hunts Locality - Cost of Care,LD - Huntingdonshire - Care,Supported Living
Cambridgeshire County Council,04-May-21,51301564521,"-1,156.68",RENTON COURT (VOYAGE),CARE ESTABLISHMENT,LD - Hunts Locality - Cost of Care,LD - Huntingdonshire - Care,Supported Living
Cambridgeshire County Council,04-May-21,51301564521,"-1,156.68",RENTON COURT (VOYAGE),CARE ESTABLISHMENT,LD - Hunts Locality - Cost of Care,LD - Huntingdonshire - Care,Supported Living
Cambridgeshire County Council,04-May-21,51301564521,"-1,156.68",RENTON COURT (VOYAGE),CARE ESTABLISHMENT,LD - Hunts Locality - Cost of Care,LD - Huntingdonshire - Care,Supported Living
Cambridgeshire County Council,04-May-21,51301564521,"-1,156.68",RENTON COURT (VOYAGE),CARE ESTABLISHMENT,LD - Hunts Locality - Cost of Care,LD - Huntingdonshire - Care,Supported Living
Cambridgeshire County Council,04-May-21,51301564521,"-1,156.68",RENTON COURT (VOYAGE),CARE ESTABLISHMENT,LD - Hunts Locality - Cost of Care,LD - Huntingdonshire - Care,Supported Living
Cambridgeshire County Council,04-May-21,51301564521,"-1,156.68",RENTON COURT (VOYAGE),CARE ESTABLISHMENT,LD - Hunts Locality - Cost of Care,LD - Huntingdonshire - Care,Supported Living
Cambridgeshire County Council,04-May-21,51301564521,"-1,156.68",RENTON COURT (VOYAGE),CARE ESTABLISHMENT,LD - Hunts Locality - Cost of Care,LD - Huntingdonshire - Care,Supported Living
Cambridgeshire County Council,04-May-21,51301564521,"-1,156.68",RENTON COURT (VOYAGE),CARE ESTABLISHMENT,LD - Hunts Locality - Cost of Care,LD - Huntingdonshire - Care,Supported Living
Cambridgeshire County Council,04-May-21,51301564521,"-1,156.68",RENTON COURT (VOYAGE),CARE ESTABLISHMENT,LD - Hunts Locality - Cost of Care,LD - Huntingdonshire - Care,Supported Living
Cambridgeshire County Council,04-May-21,51301564521,"-1,156.68",RENTON COURT (VOYAGE),CARE ESTABLISHMENT,LD - Hunts Locality - Cost of Care,LD - Huntingdonshire - Care,Supported Living
Cambridgeshire County Council,04-May-21,51301564521,"-1,156.68",RENTON COURT (VOYAGE),CARE ESTABLISHMENT,LD - Hunts Locality - Cost of Care,LD - Huntingdonshire - Care,Supported Living
Cambridgeshire County Council,04-May-21,51301564521,"-1,156.68",RENTON COURT (VOYAGE),CARE ESTABLISHMENT,LD - Hunts Locality - Cost of Care,LD - Huntingdonshire - Care,Supported Living
Cambridgeshire County Council,04-May-21,51301564521,"-1,156.68",RENTON COURT (VOYAGE),CARE ESTABLISHMENT,LD - Hunts Locality - Cost of Care,LD - Huntingdonshire - Care,Supported Living
Cambridgeshire County Council,04-May-21,51301564521,"-1,156.68",RENTON COURT (VOYAGE),CARE ESTABLISHMENT,LD - Hunts Locality - Cost of Care,LD - Huntingdonshire - Care,Supported Living
Cambridgeshire County Council,04-May-21,51301564521,"-1,156.68",RENTON COURT (VOYAGE),CARE ESTABLISHMENT,LD - Hunts Locality - Cost of Care,LD - Huntingdonshire - Care,Supported Living
Cambridgeshire County Council,04-May-21,51301564521,"-1,156.68",RENTON COURT (VOYAGE),CARE ESTABLISHMENT,LD - Hunts Locality - Cost of Care,LD - Huntingdonshire - Care,Supported Living
Cambridgeshire County Council,04-May-21,51301564521,"-1,156.68",RENTON COURT (VOYAGE),CARE ESTABLISHMENT,LD - Hunts Locality - Cost of Care,LD - Huntingdonshire - Care,Supported Living
Cambridgeshire County Council,04-May-21,51301564521,"-1,156.68",RENTON COURT (VOYAGE),CARE ESTABLISHMENT,LD - Hunts Locality - Cost of Care,LD - Huntingdonshire - Care,Supported Living
Cambridgeshire County Council,04-May-21,51301564521,"-1,156.68",RENTON COURT (VOYAGE),CARE ESTABLISHMENT,LD - Hunts Locality - Cost of Care,LD - Huntingdonshire - Care,Supported Living
Cambridgeshire County Council,04-May-21,51301564521,"-1,156.68",RENTON COURT (VOYAGE),CARE ESTABLISHMENT,LD - Hunts Locality - Cost of Care,LD - Huntingdonshire - Care,Supported Living
Cambridgeshire County Council,04-May-21,51301564521,"-1,156.68",RENTON COURT (VOYAGE),CARE ESTABLISHMENT,LD - Hunts Locality - Cost of Care,LD - Huntingdonshire - Care,Supported Living
Cambridgeshire County Council,04-May-21,51301564521,"-1,156.68",RENTON COURT (VOYAGE),CARE ESTABLISHMENT,LD - Hunts Locality - Cost of Care,LD - Huntingdonshire - Care,Supported Living
Cambridgeshire County Council,04-May-21,51301564521,"-1,156.68",RENTON COURT (VOYAGE),CARE ESTABLISHMENT,LD - Hunts Locality - Cost of Care,LD - Huntingdonshire - Care,Supported Living
Cambridgeshire County Council,04-May-21,51301564521,"-1,156.68",RENTON COURT (VOYAGE),CARE ESTABLISHMENT,LD - Hunts Locality - Cost of Care,LD - Huntingdonshire - Care,Supported Living
Cambridgeshire County Council,04-May-21,51301564521,"-1,156.68",RENTON COURT (VOYAGE),CARE ESTABLISHMENT,LD - Hunts Locality - Cost of Care,LD - Huntingdonshire - Care,Supported Living
Cambridgeshire County Council,04-May-21,51301564521,"-1,156.68",RENTON COURT (VOYAGE),CARE ESTABLISHMENT,LD - Hunts Locality - Cost of Care,LD - Huntingdonshire - Care,Supported Living
Cambridgeshire County Council,04-May-21,51301564521,"-1,156.68",RENTON COURT (VOYAGE),CARE ESTABLISHMENT,LD - Hunts Locality - Cost of Care,LD - Huntingdonshire - Care,Supported Living
Cambridgeshire County Council,04-May-21,51301564521,"-1,156.68",RENTON COURT (VOYAGE),CARE ESTABLISHMENT,LD - Hunts Locality - Cost of Care,LD - Huntingdonshire - Care,Supported Living
Cambridgeshire County Council,04-May-21,51301564521,"-1,156.68",RENTON COURT (VOYAGE),CARE ESTABLISHMENT,LD - Hunts Locality - Cost of Care,LD - Huntingdonshire - Care,Supported Living
Cambridgeshire County Council,04-May-21,51301564521,"-1,156.68",RENTON COURT (VOYAGE),CARE ESTABLISHMENT,LD - Hunts Locality - Cost of Care,LD - Huntingdonshire - Care,Supported Living
Cambridgeshire County Council,04-May-21,51301564521,"-1,156.68",RENTON COURT (VOYAGE),CARE ESTABLISHMENT,LD - Hunts Locality - Cost of Care,LD - Huntingdonshire - Care,Supported Living
Cambridgeshire County Council,04-May-21,51301564521,"-1,156.68",RENTON COURT (VOYAGE),CARE ESTABLISHMENT,LD - Hunts Locality - Cost of Care,LD - Huntingdonshire - Care,Supported Living
Cambridgeshire County Council,04-May-21,51301564521,"-1,156.68",RENTON COURT (VOYAGE),CARE ESTABLISHMENT,LD - Hunts Locality - Cost of Care,LD - Huntingdonshire - Care,Supported Living
Cambridgeshire County Council,04-May-21,51301564521,"-1,156.68",RENTON COURT (VOYAGE),CARE ESTABLISHMENT,LD - Hunts Locality - Cost of Care,LD - Huntingdonshire - Care,Supported Living
Cambridgeshire County Council,04-May-21,51301564521,"-1,156.68",RENTON COURT (VOYAGE),CARE ESTABLISHMENT,LD - Hunts Locality - Cost of Care,LD - Huntingdonshire - Care,Supported Living
Cambridgeshire County Council,04-May-21,51301564521,"-1,156.68",RENTON COURT (VOYAGE),CARE ESTABLISHMENT,LD - Hunts Locality - Cost of Care,LD - Huntingdonshire - Care,Supported Living
Cambridgeshire County Council,04-May-21,51301564521,"-1,156.68",RENTON COURT (VOYAGE),CARE ESTABLISHMENT,LD - Hunts Locality - Cost of Care,LD - Huntingdonshire - Care,Supported Living
Cambridgeshire County Council,04-May-21,51301564521,"-1,156.68",RENTON COURT (VOYAGE),CARE ESTABLISHMENT,LD - Hunts Locality - Cost of Care,LD - Huntingdonshire - Care,Supported Living
Cambridgeshire County Council,04-May-21,51301564521,"-1,156.68",RENTON COURT (VOYAGE),CARE ESTABLISHMENT,LD - Hunts Locality - Cost of Care,LD - Huntingdonshire - Care,Supported Living
Cambridgeshire County Council,04-May-21,51301564521,"-1,156.68",RENTON COURT (VOYAGE),CARE ESTABLISHMENT,LD - Hunts Locality - Cost of Care,LD - Huntingdonshire - Care,Supported Living
Cambridgeshire County Council,04-May-21,51301564521,"-1,156.68",RENTON COURT (VOYAGE),CARE ESTABLISHMENT,LD - Hunts Locality - Cost of Care,LD - Huntingdonshire - Care,Supported Living
Cambridgeshire County Council,04-May-21,51301564521,"-1,156.68",RENTON COURT (VOYAGE),CARE ESTABLISHMENT,LD - Hunts Locality - Cost of Care,LD - Huntingdonshire - Care,Supported Living
Cambridgeshire County Council,04-May-21,51301564521,"-1,156.68",RENTON COURT (VOYAGE),CARE ESTABLISHMENT,LD - Hunts Locality - Cost of Care,LD - Huntingdonshire - Care,Supported Living
Cambridgeshire County Council,04-May-21,51301564521,"-1,156.68",RENTON COURT (VOYAGE),CARE ESTABLISHMENT,LD - Hunts Locality - Cost of Care,LD - Huntingdonshire - Care,Supported Living
Cambridgeshire County Council,04-May-21,51301564521,"-1,156.68",RENTON COURT (VOYAGE),CARE ESTABLISHMENT,LD - Hunts Locality - Cost of Care,LD - Huntingdonshire - Care,Supported Living
Cambridgeshire County Council,04-May-21,51301564521,"-1,156.68",RENTON COURT (VOYAGE),CARE ESTABLISHMENT,LD - Hunts Locality - Cost of Care,LD - Huntingdonshire - Care,Supported Living
Cambridgeshire County Council,04-May-21,51301564521,"-1,156.68",RENTON COURT (VOYAGE),CARE ESTABLISHMENT,LD - Hunts Locality - Cost of Care,LD - Huntingdonshire - Care,Supported Living
Cambridgeshire County Council,04-May-21,51301564521,"-1,156.68",RENTON COURT (VOYAGE),CARE ESTABLISHMENT,LD - Hunts Locality - Cost of Care,LD - Huntingdonshire - Care,Supported Living
Cambridgeshire County Council,04-May-21,51301564521,"-1,156.68",RENTON COURT (VOYAGE),CARE ESTABLISHMENT,LD - Hunts Locality - Cost of Care,LD - Huntingdonshire - Care,Supported Living
Cambridgeshire County Council,04-May-21,51301564521,"-1,156.68",RENTON COURT (VOYAGE),CARE ESTABLISHMENT,LD - Hunts Locality - Cost of Care,LD - Huntingdonshire - Care,Supported Living
Cambridgeshire County Council,04-May-21,51301564531,"-1,148.15",17 HAMLETT CLOSE (VOYAGE),CARE ESTABLISHMENT,LD - Hunts Locality - Cost of Care,LD - Huntingdonshire - Care,Supported Living
Cambridgeshire County Council,04-May-21,51301564531,"-1,148.15",17 HAMLETT CLOSE (VOYAGE),CARE ESTABLISHMENT,LD - Hunts Locality - Cost of Care,LD - Huntingdonshire - Care,Supported Living
Cambridgeshire County Council,04-May-21,51301564531,"-1,148.15",17 HAMLETT CLOSE (VOYAGE),CARE ESTABLISHMENT,LD - Hunts Locality - Cost of Care,LD - Huntingdonshire - Care,Supported Living
Cambridgeshire County Council,04-May-21,51301564531,"-1,148.15",17 HAMLETT CLOSE (VOYAGE),CARE ESTABLISHMENT,LD - Hunts Locality - Cost of Care,LD - Huntingdonshire - Care,Supported Living
Cambridgeshire County Council,04-May-21,51301564531,"-1,148.15",17 HAMLETT CLOSE (VOYAGE),CARE ESTABLISHMENT,LD - Hunts Locality - Cost of Care,LD - Huntingdonshire - Care,Supported Living
Cambridgeshire County Council,04-May-21,51301564531,"-1,148.15",17 HAMLETT CLOSE (VOYAGE),CARE ESTABLISHMENT,LD - Hunts Locality - Cost of Care,LD - Huntingdonshire - Care,Supported Living
Cambridgeshire County Council,04-May-21,51301564531,"-1,148.15",17 HAMLETT CLOSE (VOYAGE),CARE ESTABLISHMENT,LD - Hunts Locality - Cost of Care,LD - Huntingdonshire - Care,Supported Living
Cambridgeshire County Council,04-May-21,51301564531,"-1,148.15",17 HAMLETT CLOSE (VOYAGE),CARE ESTABLISHMENT,LD - Hunts Locality - Cost of Care,LD - Huntingdonshire - Care,Supported Living
Cambridgeshire County Council,04-May-21,51301564531,"-1,148.15",17 HAMLETT CLOSE (VOYAGE),CARE ESTABLISHMENT,LD - Hunts Locality - Cost of Care,LD - Huntingdonshire - Care,Supported Living
Cambridgeshire County Council,04-May-21,51301564531,"-1,148.15",17 HAMLETT CLOSE (VOYAGE),CARE ESTABLISHMENT,LD - Hunts Locality - Cost of Care,LD - Huntingdonshire - Care,Supported Living
Cambridgeshire County Council,04-May-21,51301564531,"-1,148.15",17 HAMLETT CLOSE (VOYAGE),CARE ESTABLISHMENT,LD - Hunts Locality - Cost of Care,LD - Huntingdonshire - Care,Supported Living
Cambridgeshire County Council,04-May-21,51301564531,"-1,148.15",17 HAMLETT CLOSE (VOYAGE),CARE ESTABLISHMENT,LD - Hunts Locality - Cost of Care,LD - Huntingdonshire - Care,Supported Living
Cambridgeshire County Council,04-May-21,51301564531,"-1,148.15",17 HAMLETT CLOSE (VOYAGE),CARE ESTABLISHMENT,LD - Hunts Locality - Cost of Care,LD - Huntingdonshire - Care,Supported Living
Cambridgeshire County Council,04-May-21,51301564531,"-1,148.15",17 HAMLETT CLOSE (VOYAGE),CARE ESTABLISHMENT,LD - Hunts Locality - Cost of Care,LD - Huntingdonshire - Care,Supported Living
Cambridgeshire County Council,04-May-21,51301564531,"-1,148.15",17 HAMLETT CLOSE (VOYAGE),CARE ESTABLISHMENT,LD - Hunts Locality - Cost of Care,LD - Huntingdonshire - Care,Supported Living
Cambridgeshire County Council,04-May-21,51301564531,"-1,148.15",17 HAMLETT CLOSE (VOYAGE),CARE ESTABLISHMENT,LD - Hunts Locality - Cost of Care,LD - Huntingdonshire - Care,Supported Living
Cambridgeshire County Council,04-May-21,51301564531,"-1,148.15",17 HAMLETT CLOSE (VOYAGE),CARE ESTABLISHMENT,LD - Hunts Locality - Cost of Care,LD - Huntingdonshire - Care,Supported Living
Cambridgeshire County Council,04-May-21,51301564531,"-1,148.15",17 HAMLETT CLOSE (VOYAGE),CARE ESTABLISHMENT,LD - Hunts Locality - Cost of Care,LD - Huntingdonshire - Care,Supported Living
Cambridgeshire County Council,04-May-21,51301564531,"-1,148.15",17 HAMLETT CLOSE (VOYAGE),CARE ESTABLISHMENT,LD - Hunts Locality - Cost of Care,LD - Huntingdonshire - Care,Supported Living
Cambridgeshire County Council,04-May-21,51301564531,"-1,148.15",17 HAMLETT CLOSE (VOYAGE),CARE ESTABLISHMENT,LD - Hunts Locality - Cost of Care,LD - Huntingdonshire - Care,Supported Living
Cambridgeshire County Council,04-May-21,51301564531,"-1,148.15",17 HAMLETT CLOSE (VOYAGE),CARE ESTABLISHMENT,LD - Hunts Locality - Cost of Care,LD - Huntingdonshire - Care,Supported Living
Cambridgeshire County Council,04-May-21,51301564531,"-1,148.15",17 HAMLETT CLOSE (VOYAGE),CARE ESTABLISHMENT,LD - Hunts Locality - Cost of Care,LD - Huntingdonshire - Care,Supported Living
Cambridgeshire County Council,04-May-21,51301564531,"-1,148.15",17 HAMLETT CLOSE (VOYAGE),CARE ESTABLISHMENT,LD - Hunts Locality - Cost of Care,LD - Huntingdonshire - Care,Supported Living
Cambridgeshire County Council,04-May-21,51301564531,"-1,148.15",17 HAMLETT CLOSE (VOYAGE),CARE ESTABLISHMENT,LD - Hunts Locality - Cost of Care,LD - Huntingdonshire - Care,Supported Living
Cambridgeshire County Council,04-May-21,51301564531,"-1,148.15",17 HAMLETT CLOSE (VOYAGE),CARE ESTABLISHMENT,LD - Hunts Locality - Cost of Care,LD - Huntingdonshire - Care,Supported Living
Cambridgeshire County Council,04-May-21,51301564531,"-1,148.15",17 HAMLETT CLOSE (VOYAGE),CARE ESTABLISHMENT,LD - Hunts Locality - Cost of Care,LD - Huntingdonshire - Care,Supported Living
Cambridgeshire County Council,04-May-21,51301564531,"-1,148.15",17 HAMLETT CLOSE (VOYAGE),CARE ESTABLISHMENT,LD - Hunts Locality - Cost of Care,LD - Huntingdonshire - Care,Supported Living
Cambridgeshire County Council,04-May-21,51301564531,"-1,148.15",17 HAMLETT CLOSE (VOYAGE),CARE ESTABLISHMENT,LD - Hunts Locality - Cost of Care,LD - Huntingdonshire - Care,Supported Living
Cambridgeshire County Council,04-May-21,51301564531,"-1,148.15",17 HAMLETT CLOSE (VOYAGE),CARE ESTABLISHMENT,LD - Hunts Locality - Cost of Care,LD - Huntingdonshire - Care,Supported Living
Cambridgeshire County Council,04-May-21,51301564531,"-1,148.15",17 HAMLETT CLOSE (VOYAGE),CARE ESTABLISHMENT,LD - Hunts Locality - Cost of Care,LD - Huntingdonshire - Care,Supported Living
Cambridgeshire County Council,04-May-21,51301564531,"-1,148.15",17 HAMLETT CLOSE (VOYAGE),CARE ESTABLISHMENT,LD - Hunts Locality - Cost of Care,LD - Huntingdonshire - Care,Supported Living
Cambridgeshire County Council,04-May-21,51301564531,"-1,148.15",17 HAMLETT CLOSE (VOYAGE),CARE ESTABLISHMENT,LD - Hunts Locality - Cost of Care,LD - Huntingdonshire - Care,Supported Living
Cambridgeshire County Council,04-May-21,51301564531,"-1,148.15",17 HAMLETT CLOSE (VOYAGE),CARE ESTABLISHMENT,LD - Hunts Locality - Cost of Care,LD - Huntingdonshire - Care,Supported Living
Cambridgeshire County Council,04-May-21,51301564531,"-1,148.15",17 HAMLETT CLOSE (VOYAGE),CARE ESTABLISHMENT,LD - Hunts Locality - Cost of Care,LD - Huntingdonshire - Care,Supported Living
Cambridgeshire County Council,04-May-21,51301564531,"-1,148.15",17 HAMLETT CLOSE (VOYAGE),CARE ESTABLISHMENT,LD - Hunts Locality - Cost of Care,LD - Huntingdonshire - Care,Supported Living
Cambridgeshire County Council,04-May-21,51301564531,"-1,148.15",17 HAMLETT CLOSE (VOYAGE),CARE ESTABLISHMENT,LD - Hunts Locality - Cost of Care,LD - Huntingdonshire - Care,Supported Living
Cambridgeshire County Council,04-May-21,51301564531,"-1,148.15",17 HAMLETT CLOSE (VOYAGE),CARE ESTABLISHMENT,LD - Hunts Locality - Cost of Care,LD - Huntingdonshire - Care,Supported Living
Cambridgeshire County Council,04-May-21,51301564531,"-1,148.15",17 HAMLETT CLOSE (VOYAGE),CARE ESTABLISHMENT,LD - Hunts Locality - Cost of Care,LD - Huntingdonshire - Care,Supported Living
Cambridgeshire County Council,04-May-21,51301564531,"-1,148.15",17 HAMLETT CLOSE (VOYAGE),CARE ESTABLISHMENT,LD - Hunts Locality - Cost of Care,LD - Huntingdonshire - Care,Supported Living
Cambridgeshire County Council,04-May-21,51301564531,"-1,148.15",17 HAMLETT CLOSE (VOYAGE),CARE ESTABLISHMENT,LD - Hunts Locality - Cost of Care,LD - Huntingdonshire - Care,Supported Living
Cambridgeshire County Council,04-May-21,51301564531,"-1,148.15",17 HAMLETT CLOSE (VOYAGE),CARE ESTABLISHMENT,LD - Hunts Locality - Cost of Care,LD - Huntingdonshire - Care,Supported Living
Cambridgeshire County Council,04-May-21,51301564531,"-1,148.15",17 HAMLETT CLOSE (VOYAGE),CARE ESTABLISHMENT,LD - Hunts Locality - Cost of Care,LD - Huntingdonshire - Care,Supported Living
Cambridgeshire County Council,04-May-21,51301564531,"-1,148.15",17 HAMLETT CLOSE (VOYAGE),CARE ESTABLISHMENT,LD - Hunts Locality - Cost of Care,LD - Huntingdonshire - Care,Supported Living
Cambridgeshire County Council,04-May-21,51301564531,"-1,148.15",17 HAMLETT CLOSE (VOYAGE),CARE ESTABLISHMENT,LD - Hunts Locality - Cost of Care,LD - Huntingdonshire - Care,Supported Living
Cambridgeshire County Council,04-May-21,51301564531,"-1,148.15",17 HAMLETT CLOSE (VOYAGE),CARE ESTABLISHMENT,LD - Hunts Locality - Cost of Care,LD - Huntingdonshire - Care,Supported Living
Cambridgeshire County Council,04-May-21,51301564531,"-1,148.15",17 HAMLETT CLOSE (VOYAGE),CARE ESTABLISHMENT,LD - Hunts Locality - Cost of Care,LD - Huntingdonshire - Care,Supported Living
Cambridgeshire County Council,04-May-21,51301564531,"-1,148.15",17 HAMLETT CLOSE (VOYAGE),CARE ESTABLISHMENT,LD - Hunts Locality - Cost of Care,LD - Huntingdonshire - Care,Supported Living
Cambridgeshire County Council,04-May-21,51301564531,"-1,148.15",17 HAMLETT CLOSE (VOYAGE),CARE ESTABLISHMENT,LD - Hunts Locality - Cost of Care,LD - Huntingdonshire - Care,Supported Living
Cambridgeshire County Council,04-May-21,51301564531,"-1,148.15",17 HAMLETT CLOSE (VOYAGE),CARE ESTABLISHMENT,LD - Hunts Locality - Cost of Care,LD - Huntingdonshire - Care,Supported Living
Cambridgeshire County Council,04-May-21,51301564531,"-1,148.15",17 HAMLETT CLOSE (VOYAGE),CARE ESTABLISHMENT,LD - Hunts Locality - Cost of Care,LD - Huntingdonshire - Care,Supported Living
Cambridgeshire County Council,04-May-21,51301564531,"-1,148.15",17 HAMLETT CLOSE (VOYAGE),CARE ESTABLISHMENT,LD - Hunts Locality - Cost of Care,LD - Huntingdonshire - Care,Supported Living
Cambridgeshire County Council,04-May-21,51301564531,"-1,148.15",17 HAMLETT CLOSE (VOYAGE),CARE ESTABLISHMENT,LD - Hunts Locality - Cost of Care,LD - Huntingdonshire - Care,Supported Living
Cambridgeshire County Council,04-May-21,51301564531,"-1,148.15",17 HAMLETT CLOSE (VOYAGE),CARE ESTABLISHMENT,LD - Hunts Locality - Cost of Care,LD - Huntingdonshire - Care,Supported Living
Cambridgeshire County Council,04-May-21,51301564531,"-1,148.15",17 HAMLETT CLOSE (VOYAGE),CARE ESTABLISHMENT,LD - Hunts Locality - Cost of Care,LD - Huntingdonshire - Care,Supported Living
Cambridgeshire County Council,04-May-21,51301564531,"-1,148.15",17 HAMLETT CLOSE (VOYAGE),CARE ESTABLISHMENT,LD - Hunts Locality - Cost of Care,LD - Huntingdonshire - Care,Supported Living
Cambridgeshire County Council,04-May-21,51301564546,"-1,143.30",VOYAGE,CARE ESTABLISHMENT,LD - South Locality - Cost of Care,LD - South Cambs - Care,Supported Living
Cambridgeshire County Council,04-May-21,51301564546,"-1,143.30",VOYAGE,CARE ESTABLISHMENT,LD - South Locality - Cost of Care,LD - South Cambs - Care,Supported Living
Cambridgeshire County Council,04-May-21,51301564546,"-1,143.30",VOYAGE,CARE ESTABLISHMENT,LD - South Locality - Cost of Care,LD - South Cambs - Care,Supported Living
Cambridgeshire County Council,04-May-21,51301564546,"-1,143.30",VOYAGE,CARE ESTABLISHMENT,LD - South Locality - Cost of Care,LD - South Cambs - Care,Supported Living
Cambridgeshire County Council,04-May-21,51301564546,"-1,143.30",VOYAGE,CARE ESTABLISHMENT,LD - South Locality - Cost of Care,LD - South Cambs - Care,Supported Living
Cambridgeshire County Council,04-May-21,51301564546,"-1,143.30",VOYAGE,CARE ESTABLISHMENT,LD - South Locality - Cost of Care,LD - South Cambs - Care,Supported Living
Cambridgeshire County Council,04-May-21,51301564546,"-1,143.30",VOYAGE,CARE ESTABLISHMENT,LD - South Locality - Cost of Care,LD - South Cambs - Care,Supported Living
Cambridgeshire County Council,04-May-21,51301564546,"-1,143.30",VOYAGE,CARE ESTABLISHMENT,LD - South Locality - Cost of Care,LD - South Cambs - Care,Supported Living
Cambridgeshire County Council,04-May-21,51301564546,"-1,143.30",VOYAGE,CARE ESTABLISHMENT,LD - South Locality - Cost of Care,LD - South Cambs - Care,Supported Living
Cambridgeshire County Council,04-May-21,51301564546,"-1,143.30",VOYAGE,CARE ESTABLISHMENT,LD - South Locality - Cost of Care,LD - South Cambs - Care,Supported Living
Cambridgeshire County Council,04-May-21,51301564546,"-1,143.30",VOYAGE,CARE ESTABLISHMENT,LD - South Locality - Cost of Care,LD - South Cambs - Care,Supported Living
Cambridgeshire County Council,04-May-21,51301564546,"-1,143.30",VOYAGE,CARE ESTABLISHMENT,LD - South Locality - Cost of Care,LD - South Cambs - Care,Supported Living
Cambridgeshire County Council,04-May-21,51301564546,"-1,143.30",VOYAGE,CARE ESTABLISHMENT,LD - South Locality - Cost of Care,LD - South Cambs - Care,Supported Living
Cambridgeshire County Council,04-May-21,51301564546,"-1,143.30",VOYAGE,CARE ESTABLISHMENT,LD - South Locality - Cost of Care,LD - South Cambs - Care,Supported Living
Cambridgeshire County Council,04-May-21,51301564546,"-1,143.30",VOYAGE,CARE ESTABLISHMENT,LD - South Locality - Cost of Care,LD - South Cambs - Care,Supported Living
Cambridgeshire County Council,04-May-21,51301564546,"-1,143.30",VOYAGE,CARE ESTABLISHMENT,LD - South Locality - Cost of Care,LD - South Cambs - Care,Supported Living
Cambridgeshire County Council,04-May-21,51301564546,"-1,143.30",VOYAGE,CARE ESTABLISHMENT,LD - South Locality - Cost of Care,LD - South Cambs - Care,Supported Living
Cambridgeshire County Council,04-May-21,51301564546,"-1,143.30",VOYAGE,CARE ESTABLISHMENT,LD - South Locality - Cost of Care,LD - South Cambs - Care,Supported Living
Cambridgeshire County Council,04-May-21,51301564546,"-1,143.30",VOYAGE,CARE ESTABLISHMENT,LD - South Locality - Cost of Care,LD - South Cambs - Care,Supported Living
Cambridgeshire County Council,04-May-21,51301564546,"-1,143.30",VOYAGE,CARE ESTABLISHMENT,LD - South Locality - Cost of Care,LD - South Cambs - Care,Supported Living
Cambridgeshire County Council,04-May-21,51301564546,"-1,143.30",VOYAGE,CARE ESTABLISHMENT,LD - South Locality - Cost of Care,LD - South Cambs - Care,Supported Living
Cambridgeshire County Council,04-May-21,51301564546,"-1,143.30",VOYAGE,CARE ESTABLISHMENT,LD - South Locality - Cost of Care,LD - South Cambs - Care,Supported Living
Cambridgeshire County Council,04-May-21,51301564546,"-1,143.30",VOYAGE,CARE ESTABLISHMENT,LD - South Locality - Cost of Care,LD - South Cambs - Care,Supported Living
Cambridgeshire County Council,04-May-21,51301564546,"-1,143.30",VOYAGE,CARE ESTABLISHMENT,LD - South Locality - Cost of Care,LD - South Cambs - Care,Supported Living
Cambridgeshire County Council,04-May-21,51301564546,"-1,143.30",VOYAGE,CARE ESTABLISHMENT,LD - South Locality - Cost of Care,LD - South Cambs - Care,Supported Living
Cambridgeshire County Council,04-May-21,51301564546,"-1,143.30",VOYAGE,CARE ESTABLISHMENT,LD - South Locality - Cost of Care,LD - South Cambs - Care,Supported Living
Cambridgeshire County Council,04-May-21,51301564546,"-1,143.30",VOYAGE,CARE ESTABLISHMENT,LD - South Locality - Cost of Care,LD - South Cambs - Care,Supported Living
Cambridgeshire County Council,04-May-21,51301564546,"-1,143.30",VOYAGE,CARE ESTABLISHMENT,LD - South Locality - Cost of Care,LD - South Cambs - Care,Supported Living
Cambridgeshire County Council,04-May-21,51301564546,"-1,143.30",VOYAGE,CARE ESTABLISHMENT,LD - South Locality - Cost of Care,LD - South Cambs - Care,Supported Living
Cambridgeshire County Council,04-May-21,51301564546,"-1,143.30",VOYAGE,CARE ESTABLISHMENT,LD - South Locality - Cost of Care,LD - South Cambs - Care,Supported Living
Cambridgeshire County Council,04-May-21,51301564546,"-1,143.30",VOYAGE,CARE ESTABLISHMENT,LD - South Locality - Cost of Care,LD - South Cambs - Care,Supported Living
Cambridgeshire County Council,04-May-21,51301564546,"-1,143.30",VOYAGE,CARE ESTABLISHMENT,LD - South Locality - Cost of Care,LD - South Cambs - Care,Supported Living
Cambridgeshire County Council,04-May-21,51301564546,"-1,143.30",VOYAGE,CARE ESTABLISHMENT,LD - South Locality - Cost of Care,LD - South Cambs - Care,Supported Living
Cambridgeshire County Council,04-May-21,51301564546,"-1,143.30",VOYAGE,CARE ESTABLISHMENT,LD - South Locality - Cost of Care,LD - South Cambs - Care,Supported Living
Cambridgeshire County Council,04-May-21,51301564546,"-1,143.30",VOYAGE,CARE ESTABLISHMENT,LD - South Locality - Cost of Care,LD - South Cambs - Care,Supported Living
Cambridgeshire County Council,04-May-21,51301564546,"-1,143.30",VOYAGE,CARE ESTABLISHMENT,LD - South Locality - Cost of Care,LD - South Cambs - Care,Supported Living
Cambridgeshire County Council,04-May-21,51301564546,"-1,143.30",VOYAGE,CARE ESTABLISHMENT,LD - South Locality - Cost of Care,LD - South Cambs - Care,Supported Living
Cambridgeshire County Council,04-May-21,51301564546,"-1,143.30",VOYAGE,CARE ESTABLISHMENT,LD - South Locality - Cost of Care,LD - South Cambs - Care,Supported Living
Cambridgeshire County Council,04-May-21,51301564546,"-1,143.30",VOYAGE,CARE ESTABLISHMENT,LD - South Locality - Cost of Care,LD - South Cambs - Care,Supported Living
Cambridgeshire County Council,04-May-21,51301564546,"-1,143.30",VOYAGE,CARE ESTABLISHMENT,LD - South Locality - Cost of Care,LD - South Cambs - Care,Supported Living
Cambridgeshire County Council,04-May-21,51301564546,"-1,143.30",VOYAGE,CARE ESTABLISHMENT,LD - South Locality - Cost of Care,LD - South Cambs - Care,Supported Living
Cambridgeshire County Council,04-May-21,51301564546,"-1,143.30",VOYAGE,CARE ESTABLISHMENT,LD - South Locality - Cost of Care,LD - South Cambs - Care,Supported Living
Cambridgeshire County Council,04-May-21,51301564546,"-1,143.30",VOYAGE,CARE ESTABLISHMENT,LD - South Locality - Cost of Care,LD - South Cambs - Care,Supported Living
Cambridgeshire County Council,04-May-21,51301564546,"-1,143.30",VOYAGE,CARE ESTABLISHMENT,LD - South Locality - Cost of Care,LD - South Cambs - Care,Supported Living
Cambridgeshire County Council,04-May-21,51301564546,"-1,143.30",VOYAGE,CARE ESTABLISHMENT,LD - South Locality - Cost of Care,LD - South Cambs - Care,Supported Living
Cambridgeshire County Council,04-May-21,51301564546,"-1,143.30",VOYAGE,CARE ESTABLISHMENT,LD - South Locality - Cost of Care,LD - South Cambs - Care,Supported Living
Cambridgeshire County Council,04-May-21,51301564546,"-1,143.30",VOYAGE,CARE ESTABLISHMENT,LD - South Locality - Cost of Care,LD - South Cambs - Care,Supported Living
Cambridgeshire County Council,04-May-21,51301564546,"-1,143.30",VOYAGE,CARE ESTABLISHMENT,LD - South Locality - Cost of Care,LD - South Cambs - Care,Supported Living
Cambridgeshire County Council,04-May-21,51301564546,"-1,143.30",VOYAGE,CARE ESTABLISHMENT,LD - South Locality - Cost of Care,LD - South Cambs - Care,Supported Living
Cambridgeshire County Council,04-May-21,51301564546,"-1,143.30",VOYAGE,CARE ESTABLISHMENT,LD - South Locality - Cost of Care,LD - South Cambs - Care,Supported Living
Cambridgeshire County Council,04-May-21,51301564546,"-1,143.30",VOYAGE,CARE ESTABLISHMENT,LD - South Locality - Cost of Care,LD - South Cambs - Care,Supported Living
Cambridgeshire County Council,04-May-21,51301564546,"-1,143.30",VOYAGE,CARE ESTABLISHMENT,LD - South Locality - Cost of Care,LD - South Cambs - Care,Supported Living
Cambridgeshire County Council,04-May-21,51301564546,"-1,143.30",VOYAGE,CARE ESTABLISHMENT,LD - South Locality - Cost of Care,LD - South Cambs - Care,Supported Living
Cambridgeshire County Council,04-May-21,51301564546,"-1,143.30",VOYAGE,CARE ESTABLISHMENT,LD - South Locality - Cost of Care,LD - South Cambs - Care,Supported Living
Cambridgeshire County Council,04-May-21,51301564546,"-1,143.30",VOYAGE,CARE ESTABLISHMENT,LD - South Locality - Cost of Care,LD - South Cambs - Care,Supported Living
Cambridgeshire County Council,04-May-21,51301564516,"-1,141.69",RENTON COURT (VOYAGE),CARE ESTABLISHMENT,LD - Hunts Locality - Cost of Care,LD - Huntingdonshire - Care,Supported Living
Cambridgeshire County Council,04-May-21,51301564542,"-1,088.42",17 HAMLETT CLOSE (VOYAGE),CARE ESTABLISHMENT,LD - Hunts Locality - Cost of Care,LD - Huntingdonshire - Care,Supported Living
Cambridgeshire County Council,04-May-21,51301564542,"-1,088.42",17 HAMLETT CLOSE (VOYAGE),CARE ESTABLISHMENT,LD - Hunts Locality - Cost of Care,LD - Huntingdonshire - Care,Supported Living
Cambridgeshire County Council,04-May-21,51301564542,"-1,088.42",17 HAMLETT CLOSE (VOYAGE),CARE ESTABLISHMENT,LD - Hunts Locality - Cost of Care,LD - Huntingdonshire - Care,Supported Living
Cambridgeshire County Council,04-May-21,51301564542,"-1,088.42",17 HAMLETT CLOSE (VOYAGE),CARE ESTABLISHMENT,LD - Hunts Locality - Cost of Care,LD - Huntingdonshire - Care,Supported Living
Cambridgeshire County Council,04-May-21,51301564542,"-1,088.42",17 HAMLETT CLOSE (VOYAGE),CARE ESTABLISHMENT,LD - Hunts Locality - Cost of Care,LD - Huntingdonshire - Care,Supported Living
Cambridgeshire County Council,04-May-21,51301564542,"-1,088.42",17 HAMLETT CLOSE (VOYAGE),CARE ESTABLISHMENT,LD - Hunts Locality - Cost of Care,LD - Huntingdonshire - Care,Supported Living
Cambridgeshire County Council,04-May-21,51301564542,"-1,088.42",17 HAMLETT CLOSE (VOYAGE),CARE ESTABLISHMENT,LD - Hunts Locality - Cost of Care,LD - Huntingdonshire - Care,Supported Living
Cambridgeshire County Council,04-May-21,51301564542,"-1,088.42",17 HAMLETT CLOSE (VOYAGE),CARE ESTABLISHMENT,LD - Hunts Locality - Cost of Care,LD - Huntingdonshire - Care,Supported Living
Cambridgeshire County Council,04-May-21,51301564542,"-1,088.42",17 HAMLETT CLOSE (VOYAGE),CARE ESTABLISHMENT,LD - Hunts Locality - Cost of Care,LD - Huntingdonshire - Care,Supported Living
Cambridgeshire County Council,04-May-21,51301564542,"-1,088.42",17 HAMLETT CLOSE (VOYAGE),CARE ESTABLISHMENT,LD - Hunts Locality - Cost of Care,LD - Huntingdonshire - Care,Supported Living
Cambridgeshire County Council,04-May-21,51301564542,"-1,088.42",17 HAMLETT CLOSE (VOYAGE),CARE ESTABLISHMENT,LD - Hunts Locality - Cost of Care,LD - Huntingdonshire - Care,Supported Living
Cambridgeshire County Council,04-May-21,51301564542,"-1,088.42",17 HAMLETT CLOSE (VOYAGE),CARE ESTABLISHMENT,LD - Hunts Locality - Cost of Care,LD - Huntingdonshire - Care,Supported Living
Cambridgeshire County Council,04-May-21,51301564542,"-1,088.42",17 HAMLETT CLOSE (VOYAGE),CARE ESTABLISHMENT,LD - Hunts Locality - Cost of Care,LD - Huntingdonshire - Care,Supported Living
Cambridgeshire County Council,04-May-21,51301564542,"-1,088.42",17 HAMLETT CLOSE (VOYAGE),CARE ESTABLISHMENT,LD - Hunts Locality - Cost of Care,LD - Huntingdonshire - Care,Supported Living
Cambridgeshire County Council,04-May-21,51301564542,"-1,088.42",17 HAMLETT CLOSE (VOYAGE),CARE ESTABLISHMENT,LD - Hunts Locality - Cost of Care,LD - Huntingdonshire - Care,Supported Living
Cambridgeshire County Council,04-May-21,51301564542,"-1,088.42",17 HAMLETT CLOSE (VOYAGE),CARE ESTABLISHMENT,LD - Hunts Locality - Cost of Care,LD - Huntingdonshire - Care,Supported Living
Cambridgeshire County Council,04-May-21,51301564542,"-1,088.42",17 HAMLETT CLOSE (VOYAGE),CARE ESTABLISHMENT,LD - Hunts Locality - Cost of Care,LD - Huntingdonshire - Care,Supported Living
Cambridgeshire County Council,04-May-21,51301564542,"-1,088.42",17 HAMLETT CLOSE (VOYAGE),CARE ESTABLISHMENT,LD - Hunts Locality - Cost of Care,LD - Huntingdonshire - Care,Supported Living
Cambridgeshire County Council,04-May-21,51301564542,"-1,088.42",17 HAMLETT CLOSE (VOYAGE),CARE ESTABLISHMENT,LD - Hunts Locality - Cost of Care,LD - Huntingdonshire - Care,Supported Living
Cambridgeshire County Council,04-May-21,51301564542,"-1,088.42",17 HAMLETT CLOSE (VOYAGE),CARE ESTABLISHMENT,LD - Hunts Locality - Cost of Care,LD - Huntingdonshire - Care,Supported Living
Cambridgeshire County Council,04-May-21,51301564542,"-1,088.42",17 HAMLETT CLOSE (VOYAGE),CARE ESTABLISHMENT,LD - Hunts Locality - Cost of Care,LD - Huntingdonshire - Care,Supported Living
Cambridgeshire County Council,04-May-21,51301564542,"-1,088.42",17 HAMLETT CLOSE (VOYAGE),CARE ESTABLISHMENT,LD - Hunts Locality - Cost of Care,LD - Huntingdonshire - Care,Supported Living
Cambridgeshire County Council,04-May-21,51301564542,"-1,088.42",17 HAMLETT CLOSE (VOYAGE),CARE ESTABLISHMENT,LD - Hunts Locality - Cost of Care,LD - Huntingdonshire - Care,Supported Living
Cambridgeshire County Council,04-May-21,51301564542,"-1,088.42",17 HAMLETT CLOSE (VOYAGE),CARE ESTABLISHMENT,LD - Hunts Locality - Cost of Care,LD - Huntingdonshire - Care,Supported Living
Cambridgeshire County Council,04-May-21,51301564542,"-1,088.42",17 HAMLETT CLOSE (VOYAGE),CARE ESTABLISHMENT,LD - Hunts Locality - Cost of Care,LD - Huntingdonshire - Care,Supported Living
Cambridgeshire County Council,04-May-21,51301564542,"-1,088.42",17 HAMLETT CLOSE (VOYAGE),CARE ESTABLISHMENT,LD - Hunts Locality - Cost of Care,LD - Huntingdonshire - Care,Supported Living
Cambridgeshire County Council,04-May-21,51301564542,"-1,088.42",17 HAMLETT CLOSE (VOYAGE),CARE ESTABLISHMENT,LD - Hunts Locality - Cost of Care,LD - Huntingdonshire - Care,Supported Living
Cambridgeshire County Council,04-May-21,51301564542,"-1,088.42",17 HAMLETT CLOSE (VOYAGE),CARE ESTABLISHMENT,LD - Hunts Locality - Cost of Care,LD - Huntingdonshire - Care,Supported Living
Cambridgeshire County Council,04-May-21,51301564542,"-1,088.42",17 HAMLETT CLOSE (VOYAGE),CARE ESTABLISHMENT,LD - Hunts Locality - Cost of Care,LD - Huntingdonshire - Care,Supported Living
Cambridgeshire County Council,04-May-21,51301564542,"-1,088.42",17 HAMLETT CLOSE (VOYAGE),CARE ESTABLISHMENT,LD - Hunts Locality - Cost of Care,LD - Huntingdonshire - Care,Supported Living
Cambridgeshire County Council,04-May-21,51301564542,"-1,088.42",17 HAMLETT CLOSE (VOYAGE),CARE ESTABLISHMENT,LD - Hunts Locality - Cost of Care,LD - Huntingdonshire - Care,Supported Living
Cambridgeshire County Council,04-May-21,51301564542,"-1,088.42",17 HAMLETT CLOSE (VOYAGE),CARE ESTABLISHMENT,LD - Hunts Locality - Cost of Care,LD - Huntingdonshire - Care,Supported Living
Cambridgeshire County Council,04-May-21,51301564542,"-1,088.42",17 HAMLETT CLOSE (VOYAGE),CARE ESTABLISHMENT,LD - Hunts Locality - Cost of Care,LD - Huntingdonshire - Care,Supported Living
Cambridgeshire County Council,04-May-21,51301564542,"-1,088.42",17 HAMLETT CLOSE (VOYAGE),CARE ESTABLISHMENT,LD - Hunts Locality - Cost of Care,LD - Huntingdonshire - Care,Supported Living
Cambridgeshire County Council,04-May-21,51301564542,"-1,088.42",17 HAMLETT CLOSE (VOYAGE),CARE ESTABLISHMENT,LD - Hunts Locality - Cost of Care,LD - Huntingdonshire - Care,Supported Living
Cambridgeshire County Council,04-May-21,51301564542,"-1,088.42",17 HAMLETT CLOSE (VOYAGE),CARE ESTABLISHMENT,LD - Hunts Locality - Cost of Care,LD - Huntingdonshire - Care,Supported Living
Cambridgeshire County Council,04-May-21,51301564542,"-1,088.42",17 HAMLETT CLOSE (VOYAGE),CARE ESTABLISHMENT,LD - Hunts Locality - Cost of Care,LD - Huntingdonshire - Care,Supported Living
Cambridgeshire County Council,04-May-21,51301564542,"-1,088.42",17 HAMLETT CLOSE (VOYAGE),CARE ESTABLISHMENT,LD - Hunts Locality - Cost of Care,LD - Huntingdonshire - Care,Supported Living
Cambridgeshire County Council,04-May-21,51301564525,"-1,079.85",17 HAMLETT CLOSE (VOYAGE),CARE ESTABLISHMENT,LD - Hunts Locality - Cost of Care,LD - Huntingdonshire - Care,Supported Living
Cambridgeshire County Council,04-May-21,51301564525,"-1,079.85",17 HAMLETT CLOSE (VOYAGE),CARE ESTABLISHMENT,LD - Hunts Locality - Cost of Care,LD - Huntingdonshire - Care,Supported Living
Cambridgeshire County Council,04-May-21,51301564525,"-1,079.85",17 HAMLETT CLOSE (VOYAGE),CARE ESTABLISHMENT,LD - Hunts Locality - Cost of Care,LD - Huntingdonshire - Care,Supported Living
Cambridgeshire County Council,04-May-21,51301564525,"-1,079.85",17 HAMLETT CLOSE (VOYAGE),CARE ESTABLISHMENT,LD - Hunts Locality - Cost of Care,LD - Huntingdonshire - Care,Supported Living
Cambridgeshire County Council,04-May-21,51301564525,"-1,079.85",17 HAMLETT CLOSE (VOYAGE),CARE ESTABLISHMENT,LD - Hunts Locality - Cost of Care,LD - Huntingdonshire - Care,Supported Living
Cambridgeshire County Council,04-May-21,51301564525,"-1,079.85",17 HAMLETT CLOSE (VOYAGE),CARE ESTABLISHMENT,LD - Hunts Locality - Cost of Care,LD - Huntingdonshire - Care,Supported Living
Cambridgeshire County Council,04-May-21,51301564525,"-1,079.85",17 HAMLETT CLOSE (VOYAGE),CARE ESTABLISHMENT,LD - Hunts Locality - Cost of Care,LD - Huntingdonshire - Care,Supported Living
Cambridgeshire County Council,04-May-21,51301564525,"-1,079.85",17 HAMLETT CLOSE (VOYAGE),CARE ESTABLISHMENT,LD - Hunts Locality - Cost of Care,LD - Huntingdonshire - Care,Supported Living
Cambridgeshire County Council,04-May-21,51301564525,"-1,079.85",17 HAMLETT CLOSE (VOYAGE),CARE ESTABLISHMENT,LD - Hunts Locality - Cost of Care,LD - Huntingdonshire - Care,Supported Living
Cambridgeshire County Council,04-May-21,51301564525,"-1,079.85",17 HAMLETT CLOSE (VOYAGE),CARE ESTABLISHMENT,LD - Hunts Locality - Cost of Care,LD - Huntingdonshire - Care,Supported Living
Cambridgeshire County Council,04-May-21,51301564525,"-1,079.85",17 HAMLETT CLOSE (VOYAGE),CARE ESTABLISHMENT,LD - Hunts Locality - Cost of Care,LD - Huntingdonshire - Care,Supported Living
Cambridgeshire County Council,04-May-21,51301564525,"-1,079.85",17 HAMLETT CLOSE (VOYAGE),CARE ESTABLISHMENT,LD - Hunts Locality - Cost of Care,LD - Huntingdonshire - Care,Supported Living
Cambridgeshire County Council,04-May-21,51301564525,"-1,079.85",17 HAMLETT CLOSE (VOYAGE),CARE ESTABLISHMENT,LD - Hunts Locality - Cost of Care,LD - Huntingdonshire - Care,Supported Living
Cambridgeshire County Council,04-May-21,51301564525,"-1,079.85",17 HAMLETT CLOSE (VOYAGE),CARE ESTABLISHMENT,LD - Hunts Locality - Cost of Care,LD - Huntingdonshire - Care,Supported Living
Cambridgeshire County Council,04-May-21,51301564525,"-1,079.85",17 HAMLETT CLOSE (VOYAGE),CARE ESTABLISHMENT,LD - Hunts Locality - Cost of Care,LD - Huntingdonshire - Care,Supported Living
Cambridgeshire County Council,04-May-21,51301564525,"-1,079.85",17 HAMLETT CLOSE (VOYAGE),CARE ESTABLISHMENT,LD - Hunts Locality - Cost of Care,LD - Huntingdonshire - Care,Supported Living
Cambridgeshire County Council,04-May-21,51301564525,"-1,079.85",17 HAMLETT CLOSE (VOYAGE),CARE ESTABLISHMENT,LD - Hunts Locality - Cost of Care,LD - Huntingdonshire - Care,Supported Living
Cambridgeshire County Council,04-May-21,51301564525,"-1,079.85",17 HAMLETT CLOSE (VOYAGE),CARE ESTABLISHMENT,LD - Hunts Locality - Cost of Care,LD - Huntingdonshire - Care,Supported Living
Cambridgeshire County Council,04-May-21,51301564525,"-1,079.85",17 HAMLETT CLOSE (VOYAGE),CARE ESTABLISHMENT,LD - Hunts Locality - Cost of Care,LD - Huntingdonshire - Care,Supported Living
Cambridgeshire County Council,04-May-21,51301564525,"-1,079.85",17 HAMLETT CLOSE (VOYAGE),CARE ESTABLISHMENT,LD - Hunts Locality - Cost of Care,LD - Huntingdonshire - Care,Supported Living
Cambridgeshire County Council,04-May-21,51301564525,"-1,079.85",17 HAMLETT CLOSE (VOYAGE),CARE ESTABLISHMENT,LD - Hunts Locality - Cost of Care,LD - Huntingdonshire - Care,Supported Living
Cambridgeshire County Council,04-May-21,51301564525,"-1,079.85",17 HAMLETT CLOSE (VOYAGE),CARE ESTABLISHMENT,LD - Hunts Locality - Cost of Care,LD - Huntingdonshire - Care,Supported Living
Cambridgeshire County Council,04-May-21,51301564525,"-1,079.85",17 HAMLETT CLOSE (VOYAGE),CARE ESTABLISHMENT,LD - Hunts Locality - Cost of Care,LD - Huntingdonshire - Care,Supported Living
Cambridgeshire County Council,04-May-21,51301564525,"-1,079.85",17 HAMLETT CLOSE (VOYAGE),CARE ESTABLISHMENT,LD - Hunts Locality - Cost of Care,LD - Huntingdonshire - Care,Supported Living
Cambridgeshire County Council,04-May-21,51301564525,"-1,079.85",17 HAMLETT CLOSE (VOYAGE),CARE ESTABLISHMENT,LD - Hunts Locality - Cost of Care,LD - Huntingdonshire - Care,Supported Living
Cambridgeshire County Council,04-May-21,51301564525,"-1,079.85",17 HAMLETT CLOSE (VOYAGE),CARE ESTABLISHMENT,LD - Hunts Locality - Cost of Care,LD - Huntingdonshire - Care,Supported Living
Cambridgeshire County Council,04-May-21,51301564525,"-1,079.85",17 HAMLETT CLOSE (VOYAGE),CARE ESTABLISHMENT,LD - Hunts Locality - Cost of Care,LD - Huntingdonshire - Care,Supported Living
Cambridgeshire County Council,04-May-21,51301564525,"-1,079.85",17 HAMLETT CLOSE (VOYAGE),CARE ESTABLISHMENT,LD - Hunts Locality - Cost of Care,LD - Huntingdonshire - Care,Supported Living
Cambridgeshire County Council,04-May-21,51301564525,"-1,079.85",17 HAMLETT CLOSE (VOYAGE),CARE ESTABLISHMENT,LD - Hunts Locality - Cost of Care,LD - Huntingdonshire - Care,Supported Living
Cambridgeshire County Council,04-May-21,51301564525,"-1,079.85",17 HAMLETT CLOSE (VOYAGE),CARE ESTABLISHMENT,LD - Hunts Locality - Cost of Care,LD - Huntingdonshire - Care,Supported Living
Cambridgeshire County Council,04-May-21,51301564525,"-1,079.85",17 HAMLETT CLOSE (VOYAGE),CARE ESTABLISHMENT,LD - Hunts Locality - Cost of Care,LD - Huntingdonshire - Care,Supported Living
Cambridgeshire County Council,04-May-21,51301564525,"-1,079.85",17 HAMLETT CLOSE (VOYAGE),CARE ESTABLISHMENT,LD - Hunts Locality - Cost of Care,LD - Huntingdonshire - Care,Supported Living
Cambridgeshire County Council,04-May-21,51301564525,"-1,079.85",17 HAMLETT CLOSE (VOYAGE),CARE ESTABLISHMENT,LD - Hunts Locality - Cost of Care,LD - Huntingdonshire - Care,Supported Living
Cambridgeshire County Council,04-May-21,51301564525,"-1,079.85",17 HAMLETT CLOSE (VOYAGE),CARE ESTABLISHMENT,LD - Hunts Locality - Cost of Care,LD - Huntingdonshire - Care,Supported Living
Cambridgeshire County Council,04-May-21,51301564525,"-1,079.85",17 HAMLETT CLOSE (VOYAGE),CARE ESTABLISHMENT,LD - Hunts Locality - Cost of Care,LD - Huntingdonshire - Care,Supported Living
Cambridgeshire County Council,04-May-21,51301564525,"-1,079.85",17 HAMLETT CLOSE (VOYAGE),CARE ESTABLISHMENT,LD - Hunts Locality - Cost of Care,LD - Huntingdonshire - Care,Supported Living
Cambridgeshire County Council,04-May-21,51301564525,"-1,079.85",17 HAMLETT CLOSE (VOYAGE),CARE ESTABLISHMENT,LD - Hunts Locality - Cost of Care,LD - Huntingdonshire - Care,Supported Living
Cambridgeshire County Council,04-May-21,51301564525,"-1,079.85",17 HAMLETT CLOSE (VOYAGE),CARE ESTABLISHMENT,LD - Hunts Locality - Cost of Care,LD - Huntingdonshire - Care,Supported Living
Cambridgeshire County Council,04-May-21,51301564525,"-1,079.85",17 HAMLETT CLOSE (VOYAGE),CARE ESTABLISHMENT,LD - Hunts Locality - Cost of Care,LD - Huntingdonshire - Care,Supported Living
Cambridgeshire County Council,04-May-21,51301564525,"-1,079.85",17 HAMLETT CLOSE (VOYAGE),CARE ESTABLISHMENT,LD - Hunts Locality - Cost of Care,LD - Huntingdonshire - Care,Supported Living
Cambridgeshire County Council,04-May-21,51301564525,"-1,079.85",17 HAMLETT CLOSE (VOYAGE),CARE ESTABLISHMENT,LD - Hunts Locality - Cost of Care,LD - Huntingdonshire - Care,Supported Living
Cambridgeshire County Council,04-May-21,51301564525,"-1,079.85",17 HAMLETT CLOSE (VOYAGE),CARE ESTABLISHMENT,LD - Hunts Locality - Cost of Care,LD - Huntingdonshire - Care,Supported Living
Cambridgeshire County Council,04-May-21,51301564525,"-1,079.85",17 HAMLETT CLOSE (VOYAGE),CARE ESTABLISHMENT,LD - Hunts Locality - Cost of Care,LD - Huntingdonshire - Care,Supported Living
Cambridgeshire County Council,04-May-21,51301564525,"-1,079.85",17 HAMLETT CLOSE (VOYAGE),CARE ESTABLISHMENT,LD - Hunts Locality - Cost of Care,LD - Huntingdonshire - Care,Supported Living
Cambridgeshire County Council,04-May-21,51301564525,"-1,079.85",17 HAMLETT CLOSE (VOYAGE),CARE ESTABLISHMENT,LD - Hunts Locality - Cost of Care,LD - Huntingdonshire - Care,Supported Living
Cambridgeshire County Council,04-May-21,51301564525,"-1,079.85",17 HAMLETT CLOSE (VOYAGE),CARE ESTABLISHMENT,LD - Hunts Locality - Cost of Care,LD - Huntingdonshire - Care,Supported Living
Cambridgeshire County Council,04-May-21,51301564525,"-1,079.85",17 HAMLETT CLOSE (VOYAGE),CARE ESTABLISHMENT,LD - Hunts Locality - Cost of Care,LD - Huntingdonshire - Care,Supported Living
Cambridgeshire County Council,04-May-21,51301564525,"-1,079.85",17 HAMLETT CLOSE (VOYAGE),CARE ESTABLISHMENT,LD - Hunts Locality - Cost of Care,LD - Huntingdonshire - Care,Supported Living
Cambridgeshire County Council,04-May-21,51301564525,"-1,079.85",17 HAMLETT CLOSE (VOYAGE),CARE ESTABLISHMENT,LD - Hunts Locality - Cost of Care,LD - Huntingdonshire - Care,Supported Living
Cambridgeshire County Council,04-May-21,51301564525,"-1,079.85",17 HAMLETT CLOSE (VOYAGE),CARE ESTABLISHMENT,LD - Hunts Locality - Cost of Care,LD - Huntingdonshire - Care,Supported Living
Cambridgeshire County Council,04-May-21,51301564525,"-1,079.85",17 HAMLETT CLOSE (VOYAGE),CARE ESTABLISHMENT,LD - Hunts Locality - Cost of Care,LD - Huntingdonshire - Care,Supported Living
Cambridgeshire County Council,04-May-21,51301564525,"-1,079.85",17 HAMLETT CLOSE (VOYAGE),CARE ESTABLISHMENT,LD - Hunts Locality - Cost of Care,LD - Huntingdonshire - Care,Supported Living
Cambridgeshire County Council,04-May-21,51301564525,"-1,079.85",17 HAMLETT CLOSE (VOYAGE),CARE ESTABLISHMENT,LD - Hunts Locality - Cost of Care,LD - Huntingdonshire - Care,Supported Living
Cambridgeshire County Council,04-May-21,51301564525,"-1,079.85",17 HAMLETT CLOSE (VOYAGE),CARE ESTABLISHMENT,LD - Hunts Locality - Cost of Care,LD - Huntingdonshire - Care,Supported Living
Cambridgeshire County Council,04-May-21,51301564543,"-1,050.88",23 LIONS CROSS (VOYAGE),CARE ESTABLISHMENT,LD - Hunts Locality - Cost of Care,LD - Huntingdonshire - Care,Supported Living
Cambridgeshire County Council,04-May-21,51301564543,"-1,050.88",23 LIONS CROSS (VOYAGE),CARE ESTABLISHMENT,LD - Hunts Locality - Cost of Care,LD - Huntingdonshire - Care,Supported Living
Cambridgeshire County Council,04-May-21,51301564543,"-1,050.88",23 LIONS CROSS (VOYAGE),CARE ESTABLISHMENT,LD - Hunts Locality - Cost of Care,LD - Huntingdonshire - Care,Supported Living
Cambridgeshire County Council,04-May-21,51301564543,"-1,050.88",23 LIONS CROSS (VOYAGE),CARE ESTABLISHMENT,LD - Hunts Locality - Cost of Care,LD - Huntingdonshire - Care,Supported Living
Cambridgeshire County Council,04-May-21,51301564543,"-1,050.88",23 LIONS CROSS (VOYAGE),CARE ESTABLISHMENT,LD - Hunts Locality - Cost of Care,LD - Huntingdonshire - Care,Supported Living
Cambridgeshire County Council,04-May-21,51301564543,"-1,050.88",23 LIONS CROSS (VOYAGE),CARE ESTABLISHMENT,LD - Hunts Locality - Cost of Care,LD - Huntingdonshire - Care,Supported Living
Cambridgeshire County Council,04-May-21,51301564543,"-1,050.88",23 LIONS CROSS (VOYAGE),CARE ESTABLISHMENT,LD - Hunts Locality - Cost of Care,LD - Huntingdonshire - Care,Supported Living
Cambridgeshire County Council,04-May-21,51301564543,"-1,050.88",23 LIONS CROSS (VOYAGE),CARE ESTABLISHMENT,LD - Hunts Locality - Cost of Care,LD - Huntingdonshire - Care,Supported Living
Cambridgeshire County Council,04-May-21,51301564543,"-1,050.88",23 LIONS CROSS (VOYAGE),CARE ESTABLISHMENT,LD - Hunts Locality - Cost of Care,LD - Huntingdonshire - Care,Supported Living
Cambridgeshire County Council,04-May-21,51301564543,"-1,050.88",23 LIONS CROSS (VOYAGE),CARE ESTABLISHMENT,LD - Hunts Locality - Cost of Care,LD - Huntingdonshire - Care,Supported Living
Cambridgeshire County Council,04-May-21,51301564543,"-1,050.88",23 LIONS CROSS (VOYAGE),CARE ESTABLISHMENT,LD - Hunts Locality - Cost of Care,LD - Huntingdonshire - Care,Supported Living
Cambridgeshire County Council,04-May-21,51301564543,"-1,050.88",23 LIONS CROSS (VOYAGE),CARE ESTABLISHMENT,LD - Hunts Locality - Cost of Care,LD - Huntingdonshire - Care,Supported Living
Cambridgeshire County Council,04-May-21,51301564543,"-1,050.88",23 LIONS CROSS (VOYAGE),CARE ESTABLISHMENT,LD - Hunts Locality - Cost of Care,LD - Huntingdonshire - Care,Supported Living
Cambridgeshire County Council,04-May-21,51301564543,"-1,050.88",23 LIONS CROSS (VOYAGE),CARE ESTABLISHMENT,LD - Hunts Locality - Cost of Care,LD - Huntingdonshire - Care,Supported Living
Cambridgeshire County Council,04-May-21,51301564543,"-1,050.88",23 LIONS CROSS (VOYAGE),CARE ESTABLISHMENT,LD - Hunts Locality - Cost of Care,LD - Huntingdonshire - Care,Supported Living
Cambridgeshire County Council,04-May-21,51301564543,"-1,050.88",23 LIONS CROSS (VOYAGE),CARE ESTABLISHMENT,LD - Hunts Locality - Cost of Care,LD - Huntingdonshire - Care,Supported Living
Cambridgeshire County Council,04-May-21,51301564543,"-1,050.88",23 LIONS CROSS (VOYAGE),CARE ESTABLISHMENT,LD - Hunts Locality - Cost of Care,LD - Huntingdonshire - Care,Supported Living
Cambridgeshire County Council,04-May-21,51301564543,"-1,050.88",23 LIONS CROSS (VOYAGE),CARE ESTABLISHMENT,LD - Hunts Locality - Cost of Care,LD - Huntingdonshire - Care,Supported Living
Cambridgeshire County Council,04-May-21,51301564543,"-1,050.88",23 LIONS CROSS (VOYAGE),CARE ESTABLISHMENT,LD - Hunts Locality - Cost of Care,LD - Huntingdonshire - Care,Supported Living
Cambridgeshire County Council,04-May-21,51301564543,"-1,050.88",23 LIONS CROSS (VOYAGE),CARE ESTABLISHMENT,LD - Hunts Locality - Cost of Care,LD - Huntingdonshire - Care,Supported Living
Cambridgeshire County Council,04-May-21,51301564543,"-1,050.88",23 LIONS CROSS (VOYAGE),CARE ESTABLISHMENT,LD - Hunts Locality - Cost of Care,LD - Huntingdonshire - Care,Supported Living
Cambridgeshire County Council,04-May-21,51301564543,"-1,050.88",23 LIONS CROSS (VOYAGE),CARE ESTABLISHMENT,LD - Hunts Locality - Cost of Care,LD - Huntingdonshire - Care,Supported Living
Cambridgeshire County Council,04-May-21,51301564543,"-1,050.88",23 LIONS CROSS (VOYAGE),CARE ESTABLISHMENT,LD - Hunts Locality - Cost of Care,LD - Huntingdonshire - Care,Supported Living
Cambridgeshire County Council,04-May-21,51301564543,"-1,050.88",23 LIONS CROSS (VOYAGE),CARE ESTABLISHMENT,LD - Hunts Locality - Cost of Care,LD - Huntingdonshire - Care,Supported Living
Cambridgeshire County Council,04-May-21,51301564543,"-1,050.88",23 LIONS CROSS (VOYAGE),CARE ESTABLISHMENT,LD - Hunts Locality - Cost of Care,LD - Huntingdonshire - Care,Supported Living
Cambridgeshire County Council,04-May-21,51301564543,"-1,050.88",23 LIONS CROSS (VOYAGE),CARE ESTABLISHMENT,LD - Hunts Locality - Cost of Care,LD - Huntingdonshire - Care,Supported Living
Cambridgeshire County Council,04-May-21,51301564543,"-1,050.88",23 LIONS CROSS (VOYAGE),CARE ESTABLISHMENT,LD - Hunts Locality - Cost of Care,LD - Huntingdonshire - Care,Supported Living
Cambridgeshire County Council,04-May-21,51301564543,"-1,050.88",23 LIONS CROSS (VOYAGE),CARE ESTABLISHMENT,LD - Hunts Locality - Cost of Care,LD - Huntingdonshire - Care,Supported Living
Cambridgeshire County Council,04-May-21,51301564543,"-1,050.88",23 LIONS CROSS (VOYAGE),CARE ESTABLISHMENT,LD - Hunts Locality - Cost of Care,LD - Huntingdonshire - Care,Supported Living
Cambridgeshire County Council,04-May-21,51301564543,"-1,050.88",23 LIONS CROSS (VOYAGE),CARE ESTABLISHMENT,LD - Hunts Locality - Cost of Care,LD - Huntingdonshire - Care,Supported Living
Cambridgeshire County Council,04-May-21,51301564543,"-1,050.88",23 LIONS CROSS (VOYAGE),CARE ESTABLISHMENT,LD - Hunts Locality - Cost of Care,LD - Huntingdonshire - Care,Supported Living
Cambridgeshire County Council,04-May-21,51301564543,"-1,050.88",23 LIONS CROSS (VOYAGE),CARE ESTABLISHMENT,LD - Hunts Locality - Cost of Care,LD - Huntingdonshire - Care,Supported Living
Cambridgeshire County Council,04-May-21,51301564543,"-1,050.88",23 LIONS CROSS (VOYAGE),CARE ESTABLISHMENT,LD - Hunts Locality - Cost of Care,LD - Huntingdonshire - Care,Supported Living
Cambridgeshire County Council,04-May-21,51301564543,"-1,050.88",23 LIONS CROSS (VOYAGE),CARE ESTABLISHMENT,LD - Hunts Locality - Cost of Care,LD - Huntingdonshire - Care,Supported Living
Cambridgeshire County Council,04-May-21,51301564543,"-1,050.88",23 LIONS CROSS (VOYAGE),CARE ESTABLISHMENT,LD - Hunts Locality - Cost of Care,LD - Huntingdonshire - Care,Supported Living
Cambridgeshire County Council,04-May-21,51301564543,"-1,050.88",23 LIONS CROSS (VOYAGE),CARE ESTABLISHMENT,LD - Hunts Locality - Cost of Care,LD - Huntingdonshire - Care,Supported Living
Cambridgeshire County Council,04-May-21,51301564543,"-1,050.88",23 LIONS CROSS (VOYAGE),CARE ESTABLISHMENT,LD - Hunts Locality - Cost of Care,LD - Huntingdonshire - Care,Supported Living
Cambridgeshire County Council,04-May-21,51301564543,"-1,050.88",23 LIONS CROSS (VOYAGE),CARE ESTABLISHMENT,LD - Hunts Locality - Cost of Care,LD - Huntingdonshire - Care,Supported Living
Cambridgeshire County Council,04-May-21,51301564543,"-1,050.88",23 LIONS CROSS (VOYAGE),CARE ESTABLISHMENT,LD - Hunts Locality - Cost of Care,LD - Huntingdonshire - Care,Supported Living
Cambridgeshire County Council,04-May-21,51301564543,"-1,050.88",23 LIONS CROSS (VOYAGE),CARE ESTABLISHMENT,LD - Hunts Locality - Cost of Care,LD - Huntingdonshire - Care,Supported Living
Cambridgeshire County Council,04-May-21,51301564543,"-1,050.88",23 LIONS CROSS (VOYAGE),CARE ESTABLISHMENT,LD - Hunts Locality - Cost of Care,LD - Huntingdonshire - Care,Supported Living
Cambridgeshire County Council,04-May-21,51301564543,"-1,050.88",23 LIONS CROSS (VOYAGE),CARE ESTABLISHMENT,LD - Hunts Locality - Cost of Care,LD - Huntingdonshire - Care,Supported Living
Cambridgeshire County Council,04-May-21,51301564543,"-1,050.88",23 LIONS CROSS (VOYAGE),CARE ESTABLISHMENT,LD - Hunts Locality - Cost of Care,LD - Huntingdonshire - Care,Supported Living
Cambridgeshire County Council,04-May-21,51301564543,"-1,050.88",23 LIONS CROSS (VOYAGE),CARE ESTABLISHMENT,LD - Hunts Locality - Cost of Care,LD - Huntingdonshire - Care,Supported Living
Cambridgeshire County Council,04-May-21,51301564543,"-1,050.88",23 LIONS CROSS (VOYAGE),CARE ESTABLISHMENT,LD - Hunts Locality - Cost of Care,LD - Huntingdonshire - Care,Supported Living
Cambridgeshire County Council,04-May-21,51301564543,"-1,050.88",23 LIONS CROSS (VOYAGE),CARE ESTABLISHMENT,LD - Hunts Locality - Cost of Care,LD - Huntingdonshire - Care,Supported Living
Cambridgeshire County Council,04-May-21,51301564543,"-1,050.88",23 LIONS CROSS (VOYAGE),CARE ESTABLISHMENT,LD - Hunts Locality - Cost of Care,LD - Huntingdonshire - Care,Supported Living
Cambridgeshire County Council,04-May-21,51301564543,"-1,050.88",23 LIONS CROSS (VOYAGE),CARE ESTABLISHMENT,LD - Hunts Locality - Cost of Care,LD - Huntingdonshire - Care,Supported Living
Cambridgeshire County Council,04-May-21,51301564543,"-1,050.88",23 LIONS CROSS (VOYAGE),CARE ESTABLISHMENT,LD - Hunts Locality - Cost of Care,LD - Huntingdonshire - Care,Supported Living
Cambridgeshire County Council,04-May-21,51301564543,"-1,050.88",23 LIONS CROSS (VOYAGE),CARE ESTABLISHMENT,LD - Hunts Locality - Cost of Care,LD - Huntingdonshire - Care,Supported Living
Cambridgeshire County Council,04-May-21,51301564543,"-1,050.88",23 LIONS CROSS (VOYAGE),CARE ESTABLISHMENT,LD - Hunts Locality - Cost of Care,LD - Huntingdonshire - Care,Supported Living
Cambridgeshire County Council,04-May-21,51301564543,"-1,050.88",23 LIONS CROSS (VOYAGE),CARE ESTABLISHMENT,LD - Hunts Locality - Cost of Care,LD - Huntingdonshire - Care,Supported Living
Cambridgeshire County Council,04-May-21,51301564543,"-1,050.88",23 LIONS CROSS (VOYAGE),CARE ESTABLISHMENT,LD - Hunts Locality - Cost of Care,LD - Huntingdonshire - Care,Supported Living
Cambridgeshire County Council,04-May-21,51301564543,"-1,050.88",23 LIONS CROSS (VOYAGE),CARE ESTABLISHMENT,LD - Hunts Locality - Cost of Care,LD - Huntingdonshire - Care,Supported Living
Cambridgeshire County Council,04-May-21,51301564543,"-1,050.88",23 LIONS CROSS (VOYAGE),CARE ESTABLISHMENT,LD - Hunts Locality - Cost of Care,LD - Huntingdonshire - Care,Supported Living
Cambridgeshire County Council,04-May-21,51301564532,"-1,049.16",2 CHEVERIL LANE (VOYAGE),CARE ESTABLISHMENT,LD - Hunts Locality - Cost of Care,LD - Huntingdonshire - Care,Supported Living
Cambridgeshire County Council,04-May-21,51301564532,"-1,049.16",2 CHEVERIL LANE (VOYAGE),CARE ESTABLISHMENT,LD - Hunts Locality - Cost of Care,LD - Huntingdonshire - Care,Supported Living
Cambridgeshire County Council,04-May-21,51301564532,"-1,049.16",2 CHEVERIL LANE (VOYAGE),CARE ESTABLISHMENT,LD - Hunts Locality - Cost of Care,LD - Huntingdonshire - Care,Supported Living
Cambridgeshire County Council,04-May-21,51301564532,"-1,049.16",2 CHEVERIL LANE (VOYAGE),CARE ESTABLISHMENT,LD - Hunts Locality - Cost of Care,LD - Huntingdonshire - Care,Supported Living
Cambridgeshire County Council,04-May-21,51301564532,"-1,049.16",2 CHEVERIL LANE (VOYAGE),CARE ESTABLISHMENT,LD - Hunts Locality - Cost of Care,LD - Huntingdonshire - Care,Supported Living
Cambridgeshire County Council,04-May-21,51301564532,"-1,049.16",2 CHEVERIL LANE (VOYAGE),CARE ESTABLISHMENT,LD - Hunts Locality - Cost of Care,LD - Huntingdonshire - Care,Supported Living
Cambridgeshire County Council,04-May-21,51301564532,"-1,049.16",2 CHEVERIL LANE (VOYAGE),CARE ESTABLISHMENT,LD - Hunts Locality - Cost of Care,LD - Huntingdonshire - Care,Supported Living
Cambridgeshire County Council,04-May-21,51301564532,"-1,049.16",2 CHEVERIL LANE (VOYAGE),CARE ESTABLISHMENT,LD - Hunts Locality - Cost of Care,LD - Huntingdonshire - Care,Supported Living
Cambridgeshire County Council,04-May-21,51301564532,"-1,049.16",2 CHEVERIL LANE (VOYAGE),CARE ESTABLISHMENT,LD - Hunts Locality - Cost of Care,LD - Huntingdonshire - Care,Supported Living
Cambridgeshire County Council,04-May-21,51301564532,"-1,049.16",2 CHEVERIL LANE (VOYAGE),CARE ESTABLISHMENT,LD - Hunts Locality - Cost of Care,LD - Huntingdonshire - Care,Supported Living
Cambridgeshire County Council,04-May-21,51301564532,"-1,049.16",2 CHEVERIL LANE (VOYAGE),CARE ESTABLISHMENT,LD - Hunts Locality - Cost of Care,LD - Huntingdonshire - Care,Supported Living
Cambridgeshire County Council,04-May-21,51301564532,"-1,049.16",2 CHEVERIL LANE (VOYAGE),CARE ESTABLISHMENT,LD - Hunts Locality - Cost of Care,LD - Huntingdonshire - Care,Supported Living
Cambridgeshire County Council,04-May-21,51301564532,"-1,049.16",2 CHEVERIL LANE (VOYAGE),CARE ESTABLISHMENT,LD - Hunts Locality - Cost of Care,LD - Huntingdonshire - Care,Supported Living
Cambridgeshire County Council,04-May-21,51301564532,"-1,049.16",2 CHEVERIL LANE (VOYAGE),CARE ESTABLISHMENT,LD - Hunts Locality - Cost of Care,LD - Huntingdonshire - Care,Supported Living
Cambridgeshire County Council,04-May-21,51301564532,"-1,049.16",2 CHEVERIL LANE (VOYAGE),CARE ESTABLISHMENT,LD - Hunts Locality - Cost of Care,LD - Huntingdonshire - Care,Supported Living
Cambridgeshire County Council,04-May-21,51301564532,"-1,049.16",2 CHEVERIL LANE (VOYAGE),CARE ESTABLISHMENT,LD - Hunts Locality - Cost of Care,LD - Huntingdonshire - Care,Supported Living
Cambridgeshire County Council,04-May-21,51301564532,"-1,049.16",2 CHEVERIL LANE (VOYAGE),CARE ESTABLISHMENT,LD - Hunts Locality - Cost of Care,LD - Huntingdonshire - Care,Supported Living
Cambridgeshire County Council,04-May-21,51301564532,"-1,049.16",2 CHEVERIL LANE (VOYAGE),CARE ESTABLISHMENT,LD - Hunts Locality - Cost of Care,LD - Huntingdonshire - Care,Supported Living
Cambridgeshire County Council,04-May-21,51301564532,"-1,049.16",2 CHEVERIL LANE (VOYAGE),CARE ESTABLISHMENT,LD - Hunts Locality - Cost of Care,LD - Huntingdonshire - Care,Supported Living
Cambridgeshire County Council,04-May-21,51301564532,"-1,049.16",2 CHEVERIL LANE (VOYAGE),CARE ESTABLISHMENT,LD - Hunts Locality - Cost of Care,LD - Huntingdonshire - Care,Supported Living
Cambridgeshire County Council,04-May-21,51301564532,"-1,049.16",2 CHEVERIL LANE (VOYAGE),CARE ESTABLISHMENT,LD - Hunts Locality - Cost of Care,LD - Huntingdonshire - Care,Supported Living
Cambridgeshire County Council,04-May-21,51301564532,"-1,049.16",2 CHEVERIL LANE (VOYAGE),CARE ESTABLISHMENT,LD - Hunts Locality - Cost of Care,LD - Huntingdonshire - Care,Supported Living
Cambridgeshire County Council,04-May-21,51301564532,"-1,049.16",2 CHEVERIL LANE (VOYAGE),CARE ESTABLISHMENT,LD - Hunts Locality - Cost of Care,LD - Huntingdonshire - Care,Supported Living
Cambridgeshire County Council,04-May-21,51301564532,"-1,049.16",2 CHEVERIL LANE (VOYAGE),CARE ESTABLISHMENT,LD - Hunts Locality - Cost of Care,LD - Huntingdonshire - Care,Supported Living
Cambridgeshire County Council,04-May-21,51301564532,"-1,049.16",2 CHEVERIL LANE (VOYAGE),CARE ESTABLISHMENT,LD - Hunts Locality - Cost of Care,LD - Huntingdonshire - Care,Supported Living
Cambridgeshire County Council,04-May-21,51301564532,"-1,049.16",2 CHEVERIL LANE (VOYAGE),CARE ESTABLISHMENT,LD - Hunts Locality - Cost of Care,LD - Huntingdonshire - Care,Supported Living
Cambridgeshire County Council,04-May-21,51301564532,"-1,049.16",2 CHEVERIL LANE (VOYAGE),CARE ESTABLISHMENT,LD - Hunts Locality - Cost of Care,LD - Huntingdonshire - Care,Supported Living
Cambridgeshire County Council,04-May-21,51301564532,"-1,049.16",2 CHEVERIL LANE (VOYAGE),CARE ESTABLISHMENT,LD - Hunts Locality - Cost of Care,LD - Huntingdonshire - Care,Supported Living
Cambridgeshire County Council,04-May-21,51301564532,"-1,049.16",2 CHEVERIL LANE (VOYAGE),CARE ESTABLISHMENT,LD - Hunts Locality - Cost of Care,LD - Huntingdonshire - Care,Supported Living
Cambridgeshire County Council,04-May-21,51301564532,"-1,049.16",2 CHEVERIL LANE (VOYAGE),CARE ESTABLISHMENT,LD - Hunts Locality - Cost of Care,LD - Huntingdonshire - Care,Supported Living
Cambridgeshire County Council,04-May-21,51301564532,"-1,049.16",2 CHEVERIL LANE (VOYAGE),CARE ESTABLISHMENT,LD - Hunts Locality - Cost of Care,LD - Huntingdonshire - Care,Supported Living
Cambridgeshire County Council,04-May-21,51301564532,"-1,049.16",2 CHEVERIL LANE (VOYAGE),CARE ESTABLISHMENT,LD - Hunts Locality - Cost of Care,LD - Huntingdonshire - Care,Supported Living
Cambridgeshire County Council,04-May-21,51301564532,"-1,049.16",2 CHEVERIL LANE (VOYAGE),CARE ESTABLISHMENT,LD - Hunts Locality - Cost of Care,LD - Huntingdonshire - Care,Supported Living
Cambridgeshire County Council,04-May-21,51301564532,"-1,049.16",2 CHEVERIL LANE (VOYAGE),CARE ESTABLISHMENT,LD - Hunts Locality - Cost of Care,LD - Huntingdonshire - Care,Supported Living
Cambridgeshire County Council,04-May-21,51301564532,"-1,049.16",2 CHEVERIL LANE (VOYAGE),CARE ESTABLISHMENT,LD - Hunts Locality - Cost of Care,LD - Huntingdonshire - Care,Supported Living
Cambridgeshire County Council,04-May-21,51301564532,"-1,049.16",2 CHEVERIL LANE (VOYAGE),CARE ESTABLISHMENT,LD - Hunts Locality - Cost of Care,LD - Huntingdonshire - Care,Supported Living
Cambridgeshire County Council,04-May-21,51301564532,"-1,049.16",2 CHEVERIL LANE (VOYAGE),CARE ESTABLISHMENT,LD - Hunts Locality - Cost of Care,LD - Huntingdonshire - Care,Supported Living
Cambridgeshire County Council,04-May-21,51301564532,"-1,049.16",2 CHEVERIL LANE (VOYAGE),CARE ESTABLISHMENT,LD - Hunts Locality - Cost of Care,LD - Huntingdonshire - Care,Supported Living
Cambridgeshire County Council,04-May-21,51301564532,"-1,049.16",2 CHEVERIL LANE (VOYAGE),CARE ESTABLISHMENT,LD - Hunts Locality - Cost of Care,LD - Huntingdonshire - Care,Supported Living
Cambridgeshire County Council,04-May-21,51301564532,"-1,049.16",2 CHEVERIL LANE (VOYAGE),CARE ESTABLISHMENT,LD - Hunts Locality - Cost of Care,LD - Huntingdonshire - Care,Supported Living
Cambridgeshire County Council,04-May-21,51301564532,"-1,049.16",2 CHEVERIL LANE (VOYAGE),CARE ESTABLISHMENT,LD - Hunts Locality - Cost of Care,LD - Huntingdonshire - Care,Supported Living
Cambridgeshire County Council,04-May-21,51301564532,"-1,049.16",2 CHEVERIL LANE (VOYAGE),CARE ESTABLISHMENT,LD - Hunts Locality - Cost of Care,LD - Huntingdonshire - Care,Supported Living
Cambridgeshire County Council,04-May-21,51301564532,"-1,049.16",2 CHEVERIL LANE (VOYAGE),CARE ESTABLISHMENT,LD - Hunts Locality - Cost of Care,LD - Huntingdonshire - Care,Supported Living
Cambridgeshire County Council,04-May-21,51301564532,"-1,049.16",2 CHEVERIL LANE (VOYAGE),CARE ESTABLISHMENT,LD - Hunts Locality - Cost of Care,LD - Huntingdonshire - Care,Supported Living
Cambridgeshire County Council,04-May-21,51301564532,"-1,049.16",2 CHEVERIL LANE (VOYAGE),CARE ESTABLISHMENT,LD - Hunts Locality - Cost of Care,LD - Huntingdonshire - Care,Supported Living
Cambridgeshire County Council,04-May-21,51301564532,"-1,049.16",2 CHEVERIL LANE (VOYAGE),CARE ESTABLISHMENT,LD - Hunts Locality - Cost of Care,LD - Huntingdonshire - Care,Supported Living
Cambridgeshire County Council,04-May-21,51301564532,"-1,049.16",2 CHEVERIL LANE (VOYAGE),CARE ESTABLISHMENT,LD - Hunts Locality - Cost of Care,LD - Huntingdonshire - Care,Supported Living
Cambridgeshire County Council,04-May-21,51301564532,"-1,049.16",2 CHEVERIL LANE (VOYAGE),CARE ESTABLISHMENT,LD - Hunts Locality - Cost of Care,LD - Huntingdonshire - Care,Supported Living
Cambridgeshire County Council,04-May-21,51301564532,"-1,049.16",2 CHEVERIL LANE (VOYAGE),CARE ESTABLISHMENT,LD - Hunts Locality - Cost of Care,LD - Huntingdonshire - Care,Supported Living
Cambridgeshire County Council,04-May-21,51301564532,"-1,049.16",2 CHEVERIL LANE (VOYAGE),CARE ESTABLISHMENT,LD - Hunts Locality - Cost of Care,LD - Huntingdonshire - Care,Supported Living
Cambridgeshire County Council,04-May-21,51301564532,"-1,049.16",2 CHEVERIL LANE (VOYAGE),CARE ESTABLISHMENT,LD - Hunts Locality - Cost of Care,LD - Huntingdonshire - Care,Supported Living
Cambridgeshire County Council,04-May-21,51301564532,"-1,049.16",2 CHEVERIL LANE (VOYAGE),CARE ESTABLISHMENT,LD - Hunts Locality - Cost of Care,LD - Huntingdonshire - Care,Supported Living
Cambridgeshire County Council,04-May-21,51301564532,"-1,049.16",2 CHEVERIL LANE (VOYAGE),CARE ESTABLISHMENT,LD - Hunts Locality - Cost of Care,LD - Huntingdonshire - Care,Supported Living
Cambridgeshire County Council,04-May-21,51301564532,"-1,049.16",2 CHEVERIL LANE (VOYAGE),CARE ESTABLISHMENT,LD - Hunts Locality - Cost of Care,LD - Huntingdonshire - Care,Supported Living
Cambridgeshire County Council,04-May-21,51301564532,"-1,049.16",2 CHEVERIL LANE (VOYAGE),CARE ESTABLISHMENT,LD - Hunts Locality - Cost of Care,LD - Huntingdonshire - Care,Supported Living
Cambridgeshire County Council,04-May-21,51301564516,"-1,038.49",RENTON COURT (VOYAGE),CARE ESTABLISHMENT,LD - Hunts Locality - Cost of Care,LD - Huntingdonshire - Care,Supported Living
Cambridgeshire County Council,04-May-21,51301564516,"-1,038.49",RENTON COURT (VOYAGE),CARE ESTABLISHMENT,LD - Hunts Locality - Cost of Care,LD - Huntingdonshire - Care,Supported Living
Cambridgeshire County Council,04-May-21,51301564516,"-1,038.49",RENTON COURT (VOYAGE),CARE ESTABLISHMENT,LD - Hunts Locality - Cost of Care,LD - Huntingdonshire - Care,Supported Living
Cambridgeshire County Council,04-May-21,51301564516,"-1,038.49",RENTON COURT (VOYAGE),CARE ESTABLISHMENT,LD - Hunts Locality - Cost of Care,LD - Huntingdonshire - Care,Supported Living
Cambridgeshire County Council,04-May-21,51301564516,"-1,038.49",RENTON COURT (VOYAGE),CARE ESTABLISHMENT,LD - Hunts Locality - Cost of Care,LD - Huntingdonshire - Care,Supported Living
Cambridgeshire County Council,04-May-21,51301564516,"-1,038.49",RENTON COURT (VOYAGE),CARE ESTABLISHMENT,LD - Hunts Locality - Cost of Care,LD - Huntingdonshire - Care,Supported Living
Cambridgeshire County Council,04-May-21,51301564516,"-1,038.49",RENTON COURT (VOYAGE),CARE ESTABLISHMENT,LD - Hunts Locality - Cost of Care,LD - Huntingdonshire - Care,Supported Living
Cambridgeshire County Council,04-May-21,51301564516,"-1,038.49",RENTON COURT (VOYAGE),CARE ESTABLISHMENT,LD - Hunts Locality - Cost of Care,LD - Huntingdonshire - Care,Supported Living
Cambridgeshire County Council,04-May-21,51301564516,"-1,038.49",RENTON COURT (VOYAGE),CARE ESTABLISHMENT,LD - Hunts Locality - Cost of Care,LD - Huntingdonshire - Care,Supported Living
Cambridgeshire County Council,04-May-21,51301564516,"-1,038.49",RENTON COURT (VOYAGE),CARE ESTABLISHMENT,LD - Hunts Locality - Cost of Care,LD - Huntingdonshire - Care,Supported Living
Cambridgeshire County Council,04-May-21,51301564516,"-1,038.49",RENTON COURT (VOYAGE),CARE ESTABLISHMENT,LD - Hunts Locality - Cost of Care,LD - Huntingdonshire - Care,Supported Living
Cambridgeshire County Council,04-May-21,51301564516,"-1,038.49",RENTON COURT (VOYAGE),CARE ESTABLISHMENT,LD - Hunts Locality - Cost of Care,LD - Huntingdonshire - Care,Supported Living
Cambridgeshire County Council,04-May-21,51301564516,"-1,038.49",RENTON COURT (VOYAGE),CARE ESTABLISHMENT,LD - Hunts Locality - Cost of Care,LD - Huntingdonshire - Care,Supported Living
Cambridgeshire County Council,04-May-21,51301564516,"-1,038.49",RENTON COURT (VOYAGE),CARE ESTABLISHMENT,LD - Hunts Locality - Cost of Care,LD - Huntingdonshire - Care,Supported Living
Cambridgeshire County Council,04-May-21,51301564516,"-1,038.49",RENTON COURT (VOYAGE),CARE ESTABLISHMENT,LD - Hunts Locality - Cost of Care,LD - Huntingdonshire - Care,Supported Living
Cambridgeshire County Council,04-May-21,51301564516,"-1,038.49",RENTON COURT (VOYAGE),CARE ESTABLISHMENT,LD - Hunts Locality - Cost of Care,LD - Huntingdonshire - Care,Supported Living
Cambridgeshire County Council,04-May-21,51301564516,"-1,038.49",RENTON COURT (VOYAGE),CARE ESTABLISHMENT,LD - Hunts Locality - Cost of Care,LD - Huntingdonshire - Care,Supported Living
Cambridgeshire County Council,04-May-21,51301564516,"-1,038.49",RENTON COURT (VOYAGE),CARE ESTABLISHMENT,LD - Hunts Locality - Cost of Care,LD - Huntingdonshire - Care,Supported Living
Cambridgeshire County Council,04-May-21,51301564516,"-1,038.49",RENTON COURT (VOYAGE),CARE ESTABLISHMENT,LD - Hunts Locality - Cost of Care,LD - Huntingdonshire - Care,Supported Living
Cambridgeshire County Council,04-May-21,51301564516,"-1,038.49",RENTON COURT (VOYAGE),CARE ESTABLISHMENT,LD - Hunts Locality - Cost of Care,LD - Huntingdonshire - Care,Supported Living
Cambridgeshire County Council,04-May-21,51301564516,"-1,038.49",RENTON COURT (VOYAGE),CARE ESTABLISHMENT,LD - Hunts Locality - Cost of Care,LD - Huntingdonshire - Care,Supported Living
Cambridgeshire County Council,04-May-21,51301564516,"-1,038.49",RENTON COURT (VOYAGE),CARE ESTABLISHMENT,LD - Hunts Locality - Cost of Care,LD - Huntingdonshire - Care,Supported Living
Cambridgeshire County Council,04-May-21,51301564516,"-1,038.49",RENTON COURT (VOYAGE),CARE ESTABLISHMENT,LD - Hunts Locality - Cost of Care,LD - Huntingdonshire - Care,Supported Living
Cambridgeshire County Council,04-May-21,51301564516,"-1,038.49",RENTON COURT (VOYAGE),CARE ESTABLISHMENT,LD - Hunts Locality - Cost of Care,LD - Huntingdonshire - Care,Supported Living
Cambridgeshire County Council,04-May-21,51301564516,"-1,038.49",RENTON COURT (VOYAGE),CARE ESTABLISHMENT,LD - Hunts Locality - Cost of Care,LD - Huntingdonshire - Care,Supported Living
Cambridgeshire County Council,04-May-21,51301564516,"-1,038.49",RENTON COURT (VOYAGE),CARE ESTABLISHMENT,LD - Hunts Locality - Cost of Care,LD - Huntingdonshire - Care,Supported Living
Cambridgeshire County Council,04-May-21,51301564516,"-1,038.49",RENTON COURT (VOYAGE),CARE ESTABLISHMENT,LD - Hunts Locality - Cost of Care,LD - Huntingdonshire - Care,Supported Living
Cambridgeshire County Council,04-May-21,51301564516,"-1,038.49",RENTON COURT (VOYAGE),CARE ESTABLISHMENT,LD - Hunts Locality - Cost of Care,LD - Huntingdonshire - Care,Supported Living
Cambridgeshire County Council,04-May-21,51301564516,"-1,038.49",RENTON COURT (VOYAGE),CARE ESTABLISHMENT,LD - Hunts Locality - Cost of Care,LD - Huntingdonshire - Care,Supported Living
Cambridgeshire County Council,04-May-21,51301564516,"-1,038.49",RENTON COURT (VOYAGE),CARE ESTABLISHMENT,LD - Hunts Locality - Cost of Care,LD - Huntingdonshire - Care,Supported Living
Cambridgeshire County Council,04-May-21,51301564516,"-1,038.49",RENTON COURT (VOYAGE),CARE ESTABLISHMENT,LD - Hunts Locality - Cost of Care,LD - Huntingdonshire - Care,Supported Living
Cambridgeshire County Council,04-May-21,51301564516,"-1,038.49",RENTON COURT (VOYAGE),CARE ESTABLISHMENT,LD - Hunts Locality - Cost of Care,LD - Huntingdonshire - Care,Supported Living
Cambridgeshire County Council,04-May-21,51301564516,"-1,038.49",RENTON COURT (VOYAGE),CARE ESTABLISHMENT,LD - Hunts Locality - Cost of Care,LD - Huntingdonshire - Care,Supported Living
Cambridgeshire County Council,04-May-21,51301564516,"-1,038.49",RENTON COURT (VOYAGE),CARE ESTABLISHMENT,LD - Hunts Locality - Cost of Care,LD - Huntingdonshire - Care,Supported Living
Cambridgeshire County Council,04-May-21,51301564516,"-1,038.49",RENTON COURT (VOYAGE),CARE ESTABLISHMENT,LD - Hunts Locality - Cost of Care,LD - Huntingdonshire - Care,Supported Living
Cambridgeshire County Council,04-May-21,51301564535,"-1,017.90",23 LIONS CROSS (VOYAGE),CARE ESTABLISHMENT,LD - South Locality - Cost of Care,LD - South Cambs - Care,Supported Living
Cambridgeshire County Council,04-May-21,51301564535,"-1,017.90",23 LIONS CROSS (VOYAGE),CARE ESTABLISHMENT,LD - South Locality - Cost of Care,LD - South Cambs - Care,Supported Living
Cambridgeshire County Council,04-May-21,51301564535,"-1,017.90",23 LIONS CROSS (VOYAGE),CARE ESTABLISHMENT,LD - South Locality - Cost of Care,LD - South Cambs - Care,Supported Living
Cambridgeshire County Council,04-May-21,51301564535,"-1,017.90",23 LIONS CROSS (VOYAGE),CARE ESTABLISHMENT,LD - South Locality - Cost of Care,LD - South Cambs - Care,Supported Living
Cambridgeshire County Council,04-May-21,51301564535,"-1,017.90",23 LIONS CROSS (VOYAGE),CARE ESTABLISHMENT,LD - South Locality - Cost of Care,LD - South Cambs - Care,Supported Living
Cambridgeshire County Council,04-May-21,51301564535,"-1,017.90",23 LIONS CROSS (VOYAGE),CARE ESTABLISHMENT,LD - South Locality - Cost of Care,LD - South Cambs - Care,Supported Living
Cambridgeshire County Council,04-May-21,51301564535,"-1,017.90",23 LIONS CROSS (VOYAGE),CARE ESTABLISHMENT,LD - South Locality - Cost of Care,LD - South Cambs - Care,Supported Living
Cambridgeshire County Council,04-May-21,51301564535,"-1,017.90",23 LIONS CROSS (VOYAGE),CARE ESTABLISHMENT,LD - South Locality - Cost of Care,LD - South Cambs - Care,Supported Living
Cambridgeshire County Council,04-May-21,51301564535,"-1,017.90",23 LIONS CROSS (VOYAGE),CARE ESTABLISHMENT,LD - South Locality - Cost of Care,LD - South Cambs - Care,Supported Living
Cambridgeshire County Council,04-May-21,51301564535,"-1,017.90",23 LIONS CROSS (VOYAGE),CARE ESTABLISHMENT,LD - South Locality - Cost of Care,LD - South Cambs - Care,Supported Living
Cambridgeshire County Council,04-May-21,51301564535,"-1,017.90",23 LIONS CROSS (VOYAGE),CARE ESTABLISHMENT,LD - South Locality - Cost of Care,LD - South Cambs - Care,Supported Living
Cambridgeshire County Council,04-May-21,51301564526,"-1,017.39",17 HAMLETT CLOSE (VOYAGE),CARE ESTABLISHMENT,LD - Hunts Locality - Cost of Care,LD - Huntingdonshire - Care,Supported Living
Cambridgeshire County Council,04-May-21,51301564529,-996.03,2 CHEVERIL LANE (VOYAGE),CARE ESTABLISHMENT,LD - Hunts Locality - Cost of Care,LD - Huntingdonshire - Care,Supported Living
Cambridgeshire County Council,04-May-21,51301564529,-996.03,2 CHEVERIL LANE (VOYAGE),CARE ESTABLISHMENT,LD - Hunts Locality - Cost of Care,LD - Huntingdonshire - Care,Supported Living
Cambridgeshire County Council,04-May-21,51301564529,-996.03,2 CHEVERIL LANE (VOYAGE),CARE ESTABLISHMENT,LD - Hunts Locality - Cost of Care,LD - Huntingdonshire - Care,Supported Living
Cambridgeshire County Council,04-May-21,51301564529,-996.03,2 CHEVERIL LANE (VOYAGE),CARE ESTABLISHMENT,LD - Hunts Locality - Cost of Care,LD - Huntingdonshire - Care,Supported Living
Cambridgeshire County Council,04-May-21,51301564529,-996.03,2 CHEVERIL LANE (VOYAGE),CARE ESTABLISHMENT,LD - Hunts Locality - Cost of Care,LD - Huntingdonshire - Care,Supported Living
Cambridgeshire County Council,04-May-21,51301564529,-996.03,2 CHEVERIL LANE (VOYAGE),CARE ESTABLISHMENT,LD - Hunts Locality - Cost of Care,LD - Huntingdonshire - Care,Supported Living
Cambridgeshire County Council,04-May-21,51301564529,-996.03,2 CHEVERIL LANE (VOYAGE),CARE ESTABLISHMENT,LD - Hunts Locality - Cost of Care,LD - Huntingdonshire - Care,Supported Living
Cambridgeshire County Council,04-May-21,51301564529,-996.03,2 CHEVERIL LANE (VOYAGE),CARE ESTABLISHMENT,LD - Hunts Locality - Cost of Care,LD - Huntingdonshire - Care,Supported Living
Cambridgeshire County Council,04-May-21,51301564529,-996.03,2 CHEVERIL LANE (VOYAGE),CARE ESTABLISHMENT,LD - Hunts Locality - Cost of Care,LD - Huntingdonshire - Care,Supported Living
Cambridgeshire County Council,04-May-21,51301564529,-996.03,2 CHEVERIL LANE (VOYAGE),CARE ESTABLISHMENT,LD - Hunts Locality - Cost of Care,LD - Huntingdonshire - Care,Supported Living
Cambridgeshire County Council,04-May-21,51301564529,-996.03,2 CHEVERIL LANE (VOYAGE),CARE ESTABLISHMENT,LD - Hunts Locality - Cost of Care,LD - Huntingdonshire - Care,Supported Living
Cambridgeshire County Council,04-May-21,51301564529,-996.03,2 CHEVERIL LANE (VOYAGE),CARE ESTABLISHMENT,LD - Hunts Locality - Cost of Care,LD - Huntingdonshire - Care,Supported Living
Cambridgeshire County Council,04-May-21,51301564529,-996.03,2 CHEVERIL LANE (VOYAGE),CARE ESTABLISHMENT,LD - Hunts Locality - Cost of Care,LD - Huntingdonshire - Care,Supported Living
Cambridgeshire County Council,04-May-21,51301564529,-996.03,2 CHEVERIL LANE (VOYAGE),CARE ESTABLISHMENT,LD - Hunts Locality - Cost of Care,LD - Huntingdonshire - Care,Supported Living
Cambridgeshire County Council,04-May-21,51301564529,-996.03,2 CHEVERIL LANE (VOYAGE),CARE ESTABLISHMENT,LD - Hunts Locality - Cost of Care,LD - Huntingdonshire - Care,Supported Living
Cambridgeshire County Council,04-May-21,51301564529,-996.03,2 CHEVERIL LANE (VOYAGE),CARE ESTABLISHMENT,LD - Hunts Locality - Cost of Care,LD - Huntingdonshire - Care,Supported Living
Cambridgeshire County Council,04-May-21,51301564529,-996.03,2 CHEVERIL LANE (VOYAGE),CARE ESTABLISHMENT,LD - Hunts Locality - Cost of Care,LD - Huntingdonshire - Care,Supported Living
Cambridgeshire County Council,04-May-21,51301564529,-996.03,2 CHEVERIL LANE (VOYAGE),CARE ESTABLISHMENT,LD - Hunts Locality - Cost of Care,LD - Huntingdonshire - Care,Supported Living
Cambridgeshire County Council,04-May-21,51301564529,-996.03,2 CHEVERIL LANE (VOYAGE),CARE ESTABLISHMENT,LD - Hunts Locality - Cost of Care,LD - Huntingdonshire - Care,Supported Living
Cambridgeshire County Council,04-May-21,51301564529,-996.03,2 CHEVERIL LANE (VOYAGE),CARE ESTABLISHMENT,LD - Hunts Locality - Cost of Care,LD - Huntingdonshire - Care,Supported Living
Cambridgeshire County Council,04-May-21,51301564529,-996.03,2 CHEVERIL LANE (VOYAGE),CARE ESTABLISHMENT,LD - Hunts Locality - Cost of Care,LD - Huntingdonshire - Care,Supported Living
Cambridgeshire County Council,04-May-21,51301564529,-996.03,2 CHEVERIL LANE (VOYAGE),CARE ESTABLISHMENT,LD - Hunts Locality - Cost of Care,LD - Huntingdonshire - Care,Supported Living
Cambridgeshire County Council,04-May-21,51301564529,-996.03,2 CHEVERIL LANE (VOYAGE),CARE ESTABLISHMENT,LD - Hunts Locality - Cost of Care,LD - Huntingdonshire - Care,Supported Living
Cambridgeshire County Council,04-May-21,51301564529,-996.03,2 CHEVERIL LANE (VOYAGE),CARE ESTABLISHMENT,LD - Hunts Locality - Cost of Care,LD - Huntingdonshire - Care,Supported Living
Cambridgeshire County Council,04-May-21,51301564529,-996.03,2 CHEVERIL LANE (VOYAGE),CARE ESTABLISHMENT,LD - Hunts Locality - Cost of Care,LD - Huntingdonshire - Care,Supported Living
Cambridgeshire County Council,04-May-21,51301564529,-996.03,2 CHEVERIL LANE (VOYAGE),CARE ESTABLISHMENT,LD - Hunts Locality - Cost of Care,LD - Huntingdonshire - Care,Supported Living
Cambridgeshire County Council,04-May-21,51301564529,-996.03,2 CHEVERIL LANE (VOYAGE),CARE ESTABLISHMENT,LD - Hunts Locality - Cost of Care,LD - Huntingdonshire - Care,Supported Living
Cambridgeshire County Council,04-May-21,51301564529,-996.03,2 CHEVERIL LANE (VOYAGE),CARE ESTABLISHMENT,LD - Hunts Locality - Cost of Care,LD - Huntingdonshire - Care,Supported Living
Cambridgeshire County Council,04-May-21,51301564529,-996.03,2 CHEVERIL LANE (VOYAGE),CARE ESTABLISHMENT,LD - Hunts Locality - Cost of Care,LD - Huntingdonshire - Care,Supported Living
Cambridgeshire County Council,04-May-21,51301564529,-996.03,2 CHEVERIL LANE (VOYAGE),CARE ESTABLISHMENT,LD - Hunts Locality - Cost of Care,LD - Huntingdonshire - Care,Supported Living
Cambridgeshire County Council,04-May-21,51301564529,-996.03,2 CHEVERIL LANE (VOYAGE),CARE ESTABLISHMENT,LD - Hunts Locality - Cost of Care,LD - Huntingdonshire - Care,Supported Living
Cambridgeshire County Council,04-May-21,51301564529,-996.03,2 CHEVERIL LANE (VOYAGE),CARE ESTABLISHMENT,LD - Hunts Locality - Cost of Care,LD - Huntingdonshire - Care,Supported Living
Cambridgeshire County Council,04-May-21,51301564529,-996.03,2 CHEVERIL LANE (VOYAGE),CARE ESTABLISHMENT,LD - Hunts Locality - Cost of Care,LD - Huntingdonshire - Care,Supported Living
Cambridgeshire County Council,04-May-21,51301564529,-996.03,2 CHEVERIL LANE (VOYAGE),CARE ESTABLISHMENT,LD - Hunts Locality - Cost of Care,LD - Huntingdonshire - Care,Supported Living
Cambridgeshire County Council,04-May-21,51301564529,-996.03,2 CHEVERIL LANE (VOYAGE),CARE ESTABLISHMENT,LD - Hunts Locality - Cost of Care,LD - Huntingdonshire - Care,Supported Living
Cambridgeshire County Council,04-May-21,51301564529,-996.03,2 CHEVERIL LANE (VOYAGE),CARE ESTABLISHMENT,LD - Hunts Locality - Cost of Care,LD - Huntingdonshire - Care,Supported Living
Cambridgeshire County Council,04-May-21,51301564529,-996.03,2 CHEVERIL LANE (VOYAGE),CARE ESTABLISHMENT,LD - Hunts Locality - Cost of Care,LD - Huntingdonshire - Care,Supported Living
Cambridgeshire County Council,04-May-21,51301564529,-996.03,2 CHEVERIL LANE (VOYAGE),CARE ESTABLISHMENT,LD - Hunts Locality - Cost of Care,LD - Huntingdonshire - Care,Supported Living
Cambridgeshire County Council,04-May-21,51301564529,-996.03,2 CHEVERIL LANE (VOYAGE),CARE ESTABLISHMENT,LD - Hunts Locality - Cost of Care,LD - Huntingdonshire - Care,Supported Living
Cambridgeshire County Council,04-May-21,51301564529,-996.03,2 CHEVERIL LANE (VOYAGE),CARE ESTABLISHMENT,LD - Hunts Locality - Cost of Care,LD - Huntingdonshire - Care,Supported Living
Cambridgeshire County Council,04-May-21,51301564529,-996.03,2 CHEVERIL LANE (VOYAGE),CARE ESTABLISHMENT,LD - Hunts Locality - Cost of Care,LD - Huntingdonshire - Care,Supported Living
Cambridgeshire County Council,04-May-21,51301564529,-996.03,2 CHEVERIL LANE (VOYAGE),CARE ESTABLISHMENT,LD - Hunts Locality - Cost of Care,LD - Huntingdonshire - Care,Supported Living
Cambridgeshire County Council,04-May-21,51301564529,-996.03,2 CHEVERIL LANE (VOYAGE),CARE ESTABLISHMENT,LD - Hunts Locality - Cost of Care,LD - Huntingdonshire - Care,Supported Living
Cambridgeshire County Council,04-May-21,51301564529,-996.03,2 CHEVERIL LANE (VOYAGE),CARE ESTABLISHMENT,LD - Hunts Locality - Cost of Care,LD - Huntingdonshire - Care,Supported Living
